Workbook

Sheet كشاف
B1: اليوم | D1: السبت | M1: الأحد | V1: الأثنين | AE1: الثلاثاء | AN1: الأربعاء | AW1: الخميس
B2: الحصة | C2: رقم الفصل | D2: الأولى | E2: الثانية | F2: الثالثة | G2: الرابعة | H2: الخامسة | I2: السادسة | J2: السابعة | K2: الثامنة | L2: التاسعة | M2: الأولى | N2: الثانية | O2: الثالثة | P2: الرابعة | Q2: الخامسة | R2: السادسة | S2: السابعة | T2: الثامنة | U2: التاسعة | V2: الأولى | W2: الثانية | X2: الثالثة | Y2: الرابعة | Z2: الخامسة | AA2: السادسة | AB2: السابعة | AC2: الثامنة | AD2: التاسعة | AE2: الأولى | AF2: الثانية | AG2: الثالثة | AH2: الرابعة | AI2: الخامسة | AJ2: السادسة | AK2: السابعة | AL2: الثامنة | AM2: التاسعة | AN2: الأولى | AO2: الثانية | AP2: الثالثة | AQ2: الرابعة | AR2: الخامسة | AS2: السادسة | AT2: السابعة | AU2: الثامنة | AV2: التاسعة | AW2: الأولى | AX2: الثانية | AY2: الثالثة | AZ2: الرابعة | BA2: الخامسة | BB2: السادسة | BC2: السابعة | BD2: الثامنة | BE2: التاسعة
B3: الفصل | BI3: م | BJ3: الاسم | BK3: الوظيفة | BL3: المادة | BM3: التخصص | BN3: النصاب
B4: 1/1 | M4: حساب | N4: حساب | O4: عربي | P4: عربي | Q4: متعدد | R4: متعدد | S4: عربي | T4: عربي | V4: E | W4: متعدد | X4: دين | Y4: عربي | Z4: عربي | AA4: حساب | AB4: حساب | AC4: متعدد | AE4: متعدد | AF4: متعدد | AG4: عربي | AH4: عربي | AI4: حساب | AJ4: حساب | AK4: متعدد | AL4: E | AN4: العاب | AO4: توكاتسو | AP4: متعدد | AQ4: عربي | AR4: عربي | AS4: E | AT4: دين | AU4: متعدد | AW4: متعدد | AX4: العاب | AY4: حساب | AZ4: حساب | BA4: عربي | BB4: عربي | BC4: متعدد | BD4: E | BG4: =B4 -> 1/1 | BI4: 1 | BJ4: محمد ناجى | BK4: خبير | BL4: رياضيات | BM4: فصل | BN4: 18
M5: منال جمعه | N5: منال جمعه | O5: منال جمعه | P5: منال جمعه | Q5: منال جمعه | R5: منال جمعه | S5: منال جمعه | T5: منال جمعه | V5: احمد ابراهيم | W5: منال جمعه | X5: منال جمعه | Y5: منال جمعه | Z5: منال جمعه | AA5: منال جمعه | AB5: منال جمعه | AC5: منال جمعه | AE5: منال جمعه | AF5: منال جمعه | AG5: منال جمعه | AH5: منال جمعه | AI5: منال جمعه | AJ5: منال جمعه | AK5: منال جمعه | AL5: احمد ابراهيم | AN5: منال جمعه | AO5: منال جمعه | AP5: منال جمعه | AQ5: منال جمعه | AR5: منال جمعه | AS5: احمد ابراهيم | AT5: منال جمعه | AU5: منال جمعه | AW5: منال جمعه | AX5: منال جمعه | AY5: منال جمعه | AZ5: منال جمعه | BA5: منال جمعه | BB5: منال جمعه | BC5: منال جمعه | BD5: احمد ابراهيم | BG5: =B5 -> 0 | BI5: 2 | BJ5: عطيه عبدالغفار | BK5: معلم اول أ | BL5: رياضيات | BM5: فصل | BN5: 20 | BP5: اليوم | BQ5: التاريخ | BR5: إجازة | BS5: التاريخ | BT5: إجازة | BU5: التاريخ | BV5: إجازة | BW5: التاريخ | BX5: اجازة | BY5: التاريخ | BZ5: التاريخ | DL5: mawad1 | DM5: fosol1
B6: 2/1 | M6: متعدد | N6: العاب | O6: حساب | P6: حساب | Q6: عربي | R6: عربي | S6: E | T6: دين | V6: متعدد | W6: متعدد | X6: عربي | Y6: عربي | Z6: متعدد | AA6: E | AB6: عربي | AC6: عربي | AE6: عربي | AF6: عربي | AG6: متعدد | AH6: متعدد | AI6: حساب | AJ6: حساب | AK6: E | AL6: العاب | AN6: حساب | AO6: حساب | AP6: متعدد | AQ6: متعدد | AR6: توكاتسو | AS6: عربي | AT6: عربي | AU6: دين | AW6: E | AX6: عربي | AY6: عربي | AZ6: متعدد | BA6: متعدد | BB6: متعدد | BC6: حساب | BD6: حساب | BG6: 2/1 | BI6: 3 | BJ6: صابر صالح | BK6: معلم اول | BL6: عربي ودين | BM6: عربي ودين | BN6: 22 | BP6: الاحد | BQ6: ـــــ | BR6: ــــــــ | BS6: 11/7 | BU6: 11/14 | BW6: 11/21 | BY6: 11/28 | DL6: اتصالات | DN6: 2 / 1 | DO6: 2 / 2 | DP6: 2 / 3 | DQ6: 2 / 4 | DR6: 2 / 5 | DS6: 2 / 6 | DT6: 2 / 7 | DU6: 2 / 8 | DV6: 2 / 9 | DW6: 2 / 10 | DX6: 2 / 11 | DY6: 2 / 12 | DZ6: 2 / 13 | EA6: 2 / 14 | EB6: 2 / 15 | EC6: 2 / 16 | ED6: 2 / 17 | EE6: 2 / 18 | EF6: 2 / 19 | EG6: 2 / 20 | EH6: 2 / 21 | EI6: 2 / 22 | EJ6: 3 / 1 | EK6: 3 / 2 | EL6: 3 / 3 | EM6: 3 / 4 | EN6: 3 / 5 | EO6: 3 / 6 | EP6: 3 / 7 | EQ6: 3 / 8 | ER6: 3 / 9 | ES6: 3 / 10 | ET6: 3 / 11 | EU6: 3 / 12 | EV6: 3 / 13 | EW6: 3 / 14 | EX6: 3 / 15 | EY6: 3 / 16 | EZ6: 3 / 17 | FA6: 3 / 18 | FB6: 3 / 19 | FC6: 3 / 20 | FD6: 3 / 21 | FE6: 3 / 22 | FF6: 3 / 23 | FG6: 3 / 24 | FH6: 3 / 25 | FI6: 3 / 26 | FJ6: 3 / 27 | FK6: 3 / 28
M7: نورا كامل | N7: نورا كامل | O7: نورا كامل | P7: نورا كامل | Q7: نورا كامل | R7: نورا كامل | S7: احمد ابراهيم | T7: نورا كامل | V7: نورا كامل | W7: نورا كامل | X7: نورا كامل | Y7: نورا كامل | Z7: نورا كامل | AA7: احمد ابراهيم | AB7: نورا كامل | AC7: نورا كامل | AE7: نورا كامل | AF7: نورا كامل | AG7: نورا كامل | AH7: نورا كامل | AI7: نورا كامل | AJ7: نورا كامل | AK7: احمد ابراهيم | AL7: نورا كامل | AN7: نورا كامل | AO7: نورا كامل | AP7: نورا كامل | AQ7: نورا كامل | AR7: نورا كامل | AS7: نورا كامل | AT7: نورا كامل | AU7: نورا كامل | AW7: احمد ابراهيم | AX7: نورا كامل | AY7: نورا كامل | AZ7: نورا كامل | BA7: نورا كامل | BB7: نورا كامل | BC7: نورا كامل | BD7: نورا كامل | BG7: 0 | BI7: 4 | BJ7: نورا كامل | BK7: معلم اول | BL7: فصل | BM7: فصل | BN7: 22 | BP7: الإثنين | BQ7: 11/1 | BS7: 11/8 | BU7: 11/15 | BW7: 11/22 | BY7: 11/29 | DL7: اجهزة
B8: 3/1 | M8: متعدد | N8: متعدد | O8: عربي | P8: عربي | Q8: متعدد | R8: حساب | S8: حساب | T8: E | V8: متعدد | W8: العاب | X8: حساب | Y8: حساب | Z8: عربي | AA8: عربي | AB8: E | AC8: متعدد | AE8: توكاتسو | AF8: حساب | AG8: حساب | AH8: متعدد | AI8: عربي | AJ8: عربي | AK8: متعدد | AL8: دين | AN8: عربي | AO8: عربي | AP8: متعدد | AQ8: متعدد | AR8: E | AS8: عربي | AT8: عربي | AU8: متعدد | AW8: عربي | AX8: عربي | AY8: حساب | AZ8: حساب | BA8: E | BB8: متعدد | BC8: دين | BD8: العاب | BG8: 3/1 | BI8: 5 | BJ8: فاطمه كامل | BK8: معلم اول | BL8: فصل | BM8: فصل | BN8: 22 | BP8: الثلاثاء | BQ8: 11/2 | BS8: 11/9 | BU8: 11/16 | BW8: 11/23 | BY8: 11/30 | DL8: اساسيات م
M9: فاطمه كامل | N9: فاطمه كامل | O9: فاطمه كامل | P9: فاطمه كامل | Q9: فاطمه كامل | R9: فاطمه كامل | S9: فاطمه كامل | T9: احمد ابراهيم | V9: فاطمه كامل | W9: فاطمه كامل | X9: فاطمه كامل | Y9: فاطمه كامل | Z9: فاطمه كامل | AA9: فاطمه كامل | AB9: احمد ابراهيم | AC9: فاطمه كامل | AE9: فاطمه كامل | AF9: فاطمه كامل | AG9: فاطمه كامل | AH9: فاطمه كامل | AI9: فاطمه كامل | AJ9: فاطمه كامل | AK9: فاطمه كامل | AL9: فاطمه كامل | AN9: فاطمه كامل | AO9: فاطمه كامل | AP9: فاطمه كامل | AQ9: فاطمه كامل | AR9: احمد ابراهيم | AS9: فاطمه كامل | AT9: فاطمه كامل | AU9: فاطمه كامل | AW9: فاطمه كامل | AX9: فاطمه كامل | AY9: فاطمه كامل | AZ9: فاطمه كامل | BA9: احمد ابراهيم | BB9: فاطمه كامل | BC9: فاطمه كامل | BD9: فاطمه كامل | BG9: 0 | BI9: 6 | BJ9: زكيه سيد | BK9: معلم اول | BL9: عربي ودين | BM9: عربي ودين | BN9: 22 | BP9: الأربعاء | BQ9: 11/3 | BS9: 11/10 | BU9: 11/17 | BW9: 11/24 | DL9: الآلات كهربية
B10: 4/1 | M10: عربي | N10: عربي | O10: حساب | P10: حساب | Q10: متعدد | R10: E | S10: دين | T10: متعدد | V10: حساب | W10: حساب | X10: متعدد | Y10: متعدد | Z10: دين | AA10: عربي | AB10: عربي | AC10: متعدد | AE10: عربي | AF10: عربي | AG10: متعدد | AH10: العاب | AI10: E | AJ10: متعدد | AK10: حساب | AL10: حساب | AN10: عربي | AO10: عربي | AP10: حساب | AQ10: حساب | AR10: عربي | AS10: عربي | AT10: E | AU10: متعدد | AW10: متعدد | AX10: متعدد | AY10: توكاتسو | AZ10: العاب | BA10: عربي | BB10: عربي | BC10: E | BD10: متعدد | BG10: 4/1 | BI10: 7 | BJ10: منال جمعه | BK10: معلم اول | BL10: فصل | BM10: فصل | BN10: 22 | BP10: الخميس | BQ10: 11/4 | BS10: 11/11 | BU10: 11/18 | BW10: 11/25 | DL10: الكترونيات
M11: احمد سليمان | N11: احمد سليمان | O11: احمد سليمان | P11: احمد سليمان | Q11: احمد سليمان | R11: احمد ابراهيم | S11: احمد سليمان | T11: احمد سليمان | V11: احمد سليمان | W11: احمد سليمان | X11: احمد سليمان | Y11: احمد سليمان | Z11: احمد سليمان | AA11: احمد سليمان | AB11: احمد سليمان | AC11: احمد سليمان | AE11: احمد سليمان | AF11: احمد سليمان | AG11: احمد سليمان | AH11: احمد سليمان | AI11: احمد ابراهيم | AJ11: احمد سليمان | AK11: احمد سليمان | AL11: احمد سليمان | AN11: احمد سليمان | AO11: احمد سليمان | AP11: احمد سليمان | AQ11: احمد سليمان | AR11: احمد سليمان | AS11: احمد سليمان | AT11: احمد ابراهيم | AU11: احمد سليمان | AW11: احمد سليمان | AX11: احمد سليمان | AY11: احمد سليمان | AZ11: احمد سليمان | BA11: احمد سليمان | BB11: احمد سليمان | BC11: احمد ابراهيم | BD11: احمد سليمان | BG11: 0 | BI11: 8 | BJ11: ابوبكر عزت | BK11: معلم اول | BL11: فصل | BM11: فصل | BN11: 22 | DL11: أمن صناعى
B12: 5/1 | M12: عربي | N12: عربي | O12: E | P12: متعدد | Q12: توكاتسو | R12: متعدد | S12: حساب | T12: حساب | V12: حساب | W12: حساب | X12: متعدد | Y12: متعدد | Z12: E | AA12: عربي | AB12: عربي | AC12: متعدد | AE12: E | AF12: دين | AG12: حساب | AH12: حساب | AI12: عربي | AJ12: عربي | AK12: متعدد | AL12: متعدد | AN12: متعدد | AO12: العاب | AP12: E | AQ12: دين | AR12: متعدد | AS12: عربي | AT12: عربي | AU12: متعدد | AW12: حساب | AX12: حساب | AY12: العاب | AZ12: عربي | BA12: عربي | BB12: عربي | BC12: عربي | BD12: متعدد | BG12: 5/1 | BI12: 9 | BJ12: مصطفى عبدالحميد | BK12: معلم اول | BL12: فصل | BM12: فصل | BN12: 22 | DL12: أنجليزي
M13: اسماء جمال | N13: اسماء جمال | O13: احمد ابراهيم | P13: اسماء جمال | Q13: اسماء جمال | R13: اسماء جمال | S13: اسماء جمال | T13: اسماء جمال | V13: اسماء جمال | W13: اسماء جمال | X13: اسماء جمال | Y13: اسماء جمال | Z13: احمد ابراهيم | AA13: اسماء جمال | AB13: اسماء جمال | AC13: اسماء جمال | AE13: احمد ابراهيم | AF13: اسماء جمال | AG13: اسماء جمال | AH13: اسماء جمال | AI13: اسماء جمال | AJ13: اسماء جمال | AK13: اسماء جمال | AL13: اسماء جمال | AN13: اسماء جمال | AO13: اسماء جمال | AP13: احمد ابراهيم | AQ13: اسماء جمال | AR13: اسماء جمال | AS13: اسماء جمال | AT13: اسماء جمال | AU13: اسماء جمال | AW13: اسماء جمال | AX13: اسماء جمال | AY13: اسماء جمال | AZ13: اسماء جمال | BA13: اسماء جمال | BB13: اسماء جمال | BC13: اسماء جمال | BD13: اسماء جمال | BG13: 0 | BI13: 10 | BJ13: سعيد عبدالباسط | BK13: معلم اول | BL13: فصل | BM13: فصل | BN13: 22 | DL13: أنشطة فنية
B14: 1/2 | M14: E | N14: متعدد | O14: متعدد | P14: متعدد | Q14: دين | R14: عربي | S14: عربي | T14: توكاتسو | V14: متعدد | W14: حساب | X14: حساب | Y14: عربي | Z14: عربي | AA14: عربي | AB14: عربي | AC14: E | AE14: متعدد | AF14: E | AG14: العاب | AH14: حساب | AI14: حساب | AJ14: متعدد | AK14: عربي | AL14: عربي | AN14: متعدد | AO14: حساب | AP14: حساب | AQ14: العاب | AR14: متعدد | AS14: عربي | AT14: عربي | AU14: متعدد | AW14: متعدد | AX14: E | AY14: عربي | AZ14: عربي | BA14: متعدد | BB14: دين | BC14: حساب | BD14: حساب | BG14: 1/2 | BI14: 11 | BJ14: محمد صبحي | BK14: معلم | BL14: عربي ودين | BM14: فصل | BN14: 24 | DL14: تحكم الكترونى
M15: احمد ابراهيم | N15: محمد صبحي | O15: محمد صبحي | P15: محمد صبحي | Q15: محمد صبحي | R15: محمد صبحي | S15: محمد صبحي | T15: محمد صبحي | V15: محمد صبحي | W15: محمد صبحي | X15: محمد صبحي | Y15: محمد صبحي | Z15: محمد صبحي | AA15: محمد صبحي | AB15: محمد صبحي | AC15: احمد ابراهيم | AE15: محمد صبحي | AF15: احمد ابراهيم | AG15: محمد صبحي | AH15: محمد صبحي | AI15: محمد صبحي | AJ15: محمد صبحي | AK15: محمد صبحي | AL15: محمد صبحي | AN15: محمد صبحي | AO15: محمد صبحي | AP15: محمد صبحي | AQ15: محمد صبحي | AR15: محمد صبحي | AS15: محمد صبحي | AT15: محمد صبحي | AU15: محمد صبحي | AW15: محمد صبحي | AX15: احمد ابراهيم | AY15: محمد صبحي | AZ15: محمد صبحي | BA15: محمد صبحي | BB15: محمد صبحي | BC15: محمد صبحي | BD15: محمد صبحي | BG15: 0 | BI15: 12 | BJ15: رضا ناجى | BK15: معلم اول | BL15: فصل | BM15: فصل | BN15: 24 | DL15: تحكم منطقى
B16: 2/2 | M16: حساب | N16: حساب | O16: متعدد | P16: عربي | Q16: عربي | R16: متعدد | S16: عربي | T16: عربي | V16: العاب | W16: E | X16: توكاتسو | Y16: عربي | Z16: عربي | AA16: متعدد | AB16: متعدد | AC16: متعدد | AE16: حساب | AF16: حساب | AG16: E | AH16: عربي | AI16: عربي | AJ16: متعدد | AK16: متعدد | AL16: متعدد | AN16: حساب | AO16: حساب | AP16: دين | AQ16: متعدد | AR16: متعدد | AS16: عربي | AT16: عربي | AU16: E | AW16: عربي | AX16: عربي | AY16: حساب | AZ16: حساب | BA16: متعدد | BB16: E | BC16: العاب | BD16: دين | BG16: 2/2 | BI16: 13 | BJ16: احمد سليمان | BK16: معلم اول | BL16: فصل | BM16: فصل | BN16: 22 | DL16: تخطيط
M17: محمود عبدالهادى | N17: محمود عبدالهادى | O17: محمود عبدالهادى | P17: محمود عبدالهادى | Q17: محمود عبدالهادى | R17: محمود عبدالهادى | S17: محمود عبدالهادى | T17: محمود عبدالهادى | V17: محمود عبدالهادى | W17: احمد ابراهيم | X17: محمود عبدالهادى | Y17: محمود عبدالهادى | Z17: محمود عبدالهادى | AA17: محمود عبدالهادى | AB17: محمود عبدالهادى | AC17: محمود عبدالهادى | AE17: محمود عبدالهادى | AF17: محمود عبدالهادى | AG17: احمد ابراهيم | AH17: محمود عبدالهادى | AI17: محمود عبدالهادى | AJ17: محمود عبدالهادى | AK17: محمود عبدالهادى | AL17: محمود عبدالهادى | AN17: محمود عبدالهادى | AO17: محمود عبدالهادى | AP17: محمود عبدالهادى | AQ17: محمود عبدالهادى | AR17: محمود عبدالهادى | AS17: محمود عبدالهادى | AT17: محمود عبدالهادى | AU17: احمد ابراهيم | AW17: محمود عبدالهادى | AX17: محمود عبدالهادى | AY17: محمود عبدالهادى | AZ17: محمود عبدالهادى | BA17: محمود عبدالهادى | BB17: احمد ابراهيم | BC17: محمود عبدالهادى | BD17: محمود عبدالهادى | BG17: 0 | BI17: 14 | BJ17: ايمان عبدالناصر | BK17: معلم | BL17: E | BM17: E | BN17: 22 | DL17: تربية دينية
B18: 3/2 | M18: متعدد | N18: عربي | O18: عربي | P18: متعدد | Q18: E | R18: حساب | S18: حساب | T18: متعدد | V18: متعدد | W18: دين | X18: E | Y18: متعدد | Z18: حساب | AA18: حساب | AB18: عربي | AC18: عربي | AE18: العاب | AF18: عربي | AG18: عربي | AH18: عربي | AI18: عربي | AJ18: E | AK18: متعدد | AL18: متعدد | AN18: E | AO18: حساب | AP18: حساب | AQ18: متعدد | AR18: عربي | AS18: عربي | AT18: متعدد | AU18: العاب | AW18: توكاتسو | AX18: عربي | AY18: عربي | AZ18: متعدد | BA18: متعدد | BB18: دين | BC18: حساب | BD18: حساب | BG18: 3/2 | BI18: 15 | BJ18: مصطفى جمعه | BK18: معلم اول | BL18: عربي ودين | BM18: عربي ودين | BN18: 22 | DL18: تربية رياضية
M19: سعيد عبدالباسط | N19: سعيد عبدالباسط | O19: سعيد عبدالباسط | P19: سعيد عبدالباسط | Q19: احمد ابراهيم | R19: سعيد عبدالباسط | S19: سعيد عبدالباسط | T19: سعيد عبدالباسط | V19: سعيد عبدالباسط | W19: سعيد عبدالباسط | X19: احمد ابراهيم | Y19: سعيد عبدالباسط | Z19: سعيد عبدالباسط | AA19: سعيد عبدالباسط | AB19: سعيد عبدالباسط | AC19: سعيد عبدالباسط | AE19: سعيد عبدالباسط | AF19: سعيد عبدالباسط | AG19: سعيد عبدالباسط | AH19: سعيد عبدالباسط | AI19: سعيد عبدالباسط | AJ19: احمد ابراهيم | AK19: سعيد عبدالباسط | AL19: سعيد عبدالباسط | AN19: احمد ابراهيم | AO19: سعيد عبدالباسط | AP19: سعيد عبدالباسط | AQ19: سعيد عبدالباسط | AR19: سعيد عبدالباسط | AS19: سعيد عبدالباسط | AT19: سعيد عبدالباسط | AU19: سعيد عبدالباسط | AW19: سعيد عبدالباسط | AX19: سعيد عبدالباسط | AY19: سعيد عبدالباسط | AZ19: سعيد عبدالباسط | BA19: سعيد عبدالباسط | BB19: سعيد عبدالباسط | BC19: سعيد عبدالباسط | BD19: سعيد عبدالباسط | BG19: 0 | BI19: 16 | BJ19: محمود عبدالهادى | BK19: معلم اول | BL19: فصل | BM19: فصل | BN19: 22 | DL19: تركيبات كهربية
B20: 4/2 | M20: متعدد | N20: E | O20: حساب | P20: حساب | Q20: عربي | R20: عربي | S20: متعدد | T20: متعدد | V20: عربي | W20: عربي | X20: حساب | Y20: حساب | Z20: توكاتسو | AA20: متعدد | AB20: عربي | AC20: عربي | AE20: العاب | AF20: متعدد | AG20: متعدد | AH20: E | AI20: عربي | AJ20: عربي | AK20: حساب | AL20: حساب | AN20: دين | AO20: حساب | AP20: حساب | AQ20: E | AR20: عربي | AS20: عربي | AT20: متعدد | AU20: متعدد | AW20: دين | AX20: عربي | AY20: عربي | AZ20: E | BA20: متعدد | BB20: متعدد | BC20: متعدد | BD20: العاب | BG20: 4/2 | BI20: 17 | BJ20: اسماء جمال | BK20: معلم | BL20: علوم | BM20: علوم | BN20: 22 | DL20: تك التشطيبات
M21: اشجان احمد | N21: احمد ابراهيم | O21: اشجان احمد | P21: اشجان احمد | Q21: اشجان احمد | R21: اشجان احمد | S21: اشجان احمد | T21: اشجان احمد | V21: اشجان احمد | W21: اشجان احمد | X21: اشجان احمد | Y21: اشجان احمد | Z21: اشجان احمد | AA21: اشجان احمد | AB21: اشجان احمد | AC21: اشجان احمد | AE21: اشجان احمد | AF21: اشجان احمد | AG21: اشجان احمد | AH21: احمد ابراهيم | AI21: اشجان احمد | AJ21: اشجان احمد | AK21: اشجان احمد | AL21: اشجان احمد | AN21: اشجان احمد | AO21: اشجان احمد | AP21: اشجان احمد | AQ21: احمد ابراهيم | AR21: اشجان احمد | AS21: اشجان احمد | AT21: اشجان احمد | AU21: اشجان احمد | AW21: اشجان احمد | AX21: اشجان احمد | AY21: اشجان احمد | AZ21: احمد ابراهيم | BA21: اشجان احمد | BB21: اشجان احمد | BC21: اشجان احمد | BD21: اشجان احمد | BG21: 0 | BI21: 18 | BJ21: احمد ابراهيم | BK21: معلم اول | BL21: دراسات | BM21: دراسات | BN21: 24 | DL21: تك التشكيل
B22: 5/2 | M22: حساب | N22: حساب | O22: عربي | P22: عربي | Q22: عربي | R22: عربي | S22: العاب | T22: متعدد | V22: متعدد | W22: العاب | X22: متعدد | Y22: متعدد | Z22: E | AA22: دين | AB22: عربي | AC22: عربي | AE22: E | AF22: عربي | AG22: عربي | AH22: متعدد | AI22: حساب | AJ22: حساب | AK22: متعدد | AL22: متعدد | AN22: دين | AO22: E | AP22: متعدد | AQ22: متعدد | AR22: عربي | AS22: عربي | AT22: حساب | AU22: حساب | AW22: عربي | AX22: عربي | AY22: توكاتسو | AZ22: متعدد | BA22: E | BB22: متعدد | BC22: حساب | BD22: حساب | BG22: 5/2 | BI22: 19 | BJ22: اشجان احمد | BK22: معلم اول | BL22: عربي ودين | BM22: عربي ودين | BN22: 22 | DL22: تك الخراطة
M23: زكيه سيد | N23: زكيه سيد | O23: زكيه سيد | P23: زكيه سيد | Q23: زكيه سيد | R23: زكيه سيد | S23: زكيه سيد | T23: زكيه سيد | V23: زكيه سيد | W23: زكيه سيد | X23: زكيه سيد | Y23: زكيه سيد | Z23: ايمان عبدالناصر | AA23: زكيه سيد | AB23: زكيه سيد | AC23: زكيه سيد | AE23: ايمان عبدالناصر | AF23: زكيه سيد | AG23: زكيه سيد | AH23: زكيه سيد | AI23: زكيه سيد | AJ23: زكيه سيد | AK23: زكيه سيد | AL23: زكيه سيد | AN23: زكيه سيد | AO23: ايمان عبدالناصر | AP23: زكيه سيد | AQ23: زكيه سيد | AR23: زكيه سيد | AS23: زكيه سيد | AT23: زكيه سيد | AU23: زكيه سيد | AW23: زكيه سيد | AX23: زكيه سيد | AY23: زكيه سيد | AZ23: زكيه سيد | BA23: ايمان عبدالناصر | BB23: زكيه سيد | BC23: زكيه سيد | BD23: زكيه سيد | BG23: 0 | BI23: 20 | BJ23: ماجده عبدالله | BK23: خبير | BL23: عربي ودين | BM23: عربي ودين | BN23: 22 | DL23: تك الفرايز
B24: 6/2 | M24: عربي | N24: عربي | O24: العاب | P24: متعدد | Q24: دين | R24: متعدد | S24: E | T24: متعدد | V24: عربي | W24: عربي | X24: حساب | Y24: حساب | Z24: متعدد | AA24: العاب | AB24: متعدد | AC24: متعدد | AE24: متعدد | AF24: E | AG24: حساب | AH24: حساب | AI24: متعدد | AJ24: عربي | AK24: عربي | AL24: متعدد | AN24: عربي | AO24: عربي | AP24: حساب | AQ24: حساب | AR24: E | AS24: عربي | AT24: عربي | AU24: متعدد | AW24: عربي | AX24: عربي | AY24: حساب | AZ24: حساب | BA24: متعدد | BB24: دين | BC24: توكاتسو | BD24: E | BG24: 6/2 | BI24: 21 | BJ24: دعاء | BK24: تطوع | BL24: تطوع | BM24: تطوع | BN24: 18 | DL24: تك القشط
M25: مصطفى جمعه | N25: مصطفى جمعه | O25: مصطفى جمعه | P25: مصطفى جمعه | Q25: مصطفى جمعه | R25: مصطفى جمعه | S25: ايمان عبدالناصر | T25: مصطفى جمعه | V25: مصطفى جمعه | W25: مصطفى جمعه | X25: مصطفى جمعه | Y25: مصطفى جمعه | Z25: مصطفى جمعه | AA25: مصطفى جمعه | AB25: مصطفى جمعه | AC25: مصطفى جمعه | AE25: مصطفى جمعه | AF25: ايمان عبدالناصر | AG25: مصطفى جمعه | AH25: مصطفى جمعه | AI25: مصطفى جمعه | AJ25: مصطفى جمعه | AK25: مصطفى جمعه | AL25: مصطفى جمعه | AN25: مصطفى جمعه | AO25: مصطفى جمعه | AP25: مصطفى جمعه | AQ25: مصطفى جمعه | AR25: ايمان عبدالناصر | AS25: مصطفى جمعه | AT25: مصطفى جمعه | AU25: مصطفى جمعه | AW25: مصطفى جمعه | AX25: مصطفى جمعه | AY25: مصطفى جمعه | AZ25: مصطفى جمعه | BA25: مصطفى جمعه | BB25: مصطفى جمعه | BC25: مصطفى جمعه | BD25: ايمان عبدالناصر | BG25: 0 | BI25: 22 | BJ25: كوثر سعيد | BL25: تكنولوجيا | BM25: تكنولوجيا | BN25: 12 | DL25: تك اللحام
B26: 1/3 | M26: العاب | N26: متعدد | O26: توكاتسو | P26: عربي | Q26: عربي | R26: حساب | S26: حساب | T26: E | V26: حساب | W26: حساب | X26: عربي | Y26: عربي | Z26: متعدد | AA26: E | AB26: متعدد | AC26: متعدد | AE26: دين | AF26: متعدد | AG26: العاب | AH26: متعدد | AI26: عربي | AJ26: عربي | AK26: E | AL26: متعدد | AN26: حساب | AO26: حساب | AP26: متعدد | AQ26: متعدد | AR26: عربي | AS26: عربي | AT26: عربي | AU26: عربي | AW26: حساب | AX26: حساب | AY26: متعدد | AZ26: E | BA26: عربي | BB26: عربي | BC26: دين | BD26: متعدد | BG26: 1/3 | BI26: 23 | BJ26: صلاح شعبان:صبرى سعيد | BK26: خبير / معلم اول | BL26: مجال ومكتبة | DL26: تك بناء
M27: ماجده عبدالله | N27: ماجده عبدالله | O27: ماجده عبدالله | P27: ماجده عبدالله | Q27: ماجده عبدالله | R27: ماجده عبدالله | S27: ماجده عبدالله | T27: ايمان عبدالناصر | V27: ماجده عبدالله | W27: ماجده عبدالله | X27: ماجده عبدالله | Y27: ماجده عبدالله | Z27: ماجده عبدالله | AA27: ايمان عبدالناصر | AB27: ماجده عبدالله | AC27: ماجده عبدالله | AE27: ماجده عبدالله | AF27: ماجده عبدالله | AG27: ماجده عبدالله | AH27: ماجده عبدالله | AI27: ماجده عبدالله | AJ27: ماجده عبدالله | AK27: ايمان عبدالناصر | AL27: ماجده عبدالله | AN27: ماجده عبدالله | AO27: ماجده عبدالله | AP27: ماجده عبدالله | AQ27: ماجده عبدالله | AR27: ماجده عبدالله | AS27: ماجده عبدالله | AT27: ماجده عبدالله | AU27: ماجده عبدالله | AW27: ماجده عبدالله | AX27: ماجده عبدالله | AY27: ماجده عبدالله | AZ27: ايمان عبدالناصر | BA27: ماجده عبدالله | BB27: ماجده عبدالله | BC27: ماجده عبدالله | BD27: ماجده عبدالله | BG27: 0 | BI27: 24 | DL27: تك تبريد
B28: 2/3 | M28: متعدد | N28: متعدد | O28: عربي | P28: عربي | Q28: E | R28: دين | S28: حساب | T28: حساب | V28: حساب | W28: حساب | X28: E | Y28: متعدد | Z28: العاب | AA28: متعدد | AB28: عربي | AC28: عربي | AE28: متعدد | AF28: متعدد | AG28: عربي | AH28: عربي | AI28: متعدد | AJ28: حساب | AK28: حساب | AL28: دين | AN28: E | AO28: متعدد | AP28: متعدد | AQ28: عربي | AR28: عربي | AS28: العاب | AT28: متعدد | AU28: توكاتسو | AW28: E | AX28: عربي | AY28: عربي | AZ28: متعدد | BA28: حساب | BB28: حساب | BC28: عربي | BD28: عربي | BG28: 2/3 | BI28: 25 | DL28: تك عامة
M29: محمد ناجى | N29: محمد ناجى | O29: محمد ناجى | P29: محمد ناجى | Q29: ايمان عبدالناصر | R29: محمد ناجى | S29: محمد ناجى | T29: محمد ناجى | V29: محمد ناجى | W29: محمد ناجى | X29: ايمان عبدالناصر | Y29: محمد ناجى | Z29: محمد ناجى | AA29: محمد ناجى | AB29: محمد ناجى | AC29: محمد ناجى | AE29: محمد ناجى | AF29: محمد ناجى | AG29: محمد ناجى | AH29: محمد ناجى | AI29: محمد ناجى | AJ29: محمد ناجى | AK29: محمد ناجى | AL29: محمد ناجى | AN29: ايمان عبدالناصر | AO29: محمد ناجى | AP29: محمد ناجى | AQ29: محمد ناجى | AR29: محمد ناجى | AS29: محمد ناجى | AT29: محمد ناجى | AU29: محمد ناجى | AW29: ايمان عبدالناصر | AX29: محمد ناجى | AY29: محمد ناجى | AZ29: محمد ناجى | BA29: محمد ناجى | BB29: محمد ناجى | BC29: محمد ناجى | BD29: محمد ناجى | BG29: 0 | BI29: 26 | DL29: تك كهرباء
B30: 3/3 | M30: متعدد | N30: العاب | O30: حساب | P30: حساب | Q30: عربي | R30: عربي | S30: متعدد | T30: دين | V30: متعدد | W30: عربي | X30: عربي | Y30: عربي | Z30: عربي | AA30: حساب | AB30: حساب | AC30: E | AE30: متعدد | AF30: متعدد | AG30: عربي | AH30: عربي | AI30: العاب | AJ30: E | AK30: توكاتسو | AL30: متعدد | AN30: دين | AO30: متعدد | AP30: متعدد | AQ30: E | AR30: حساب | AS30: حساب | AT30: عربي | AU30: عربي | AW30: متعدد | AX30: متعدد | AY30: حساب | AZ30: حساب | BA30: عربي | BB30: عربي | BC30: E | BD30: متعدد | BG30: 3/3 | BI30: 27 | DL30: حاسب ألي
M31: عطيه عبدالغفار | N31: عطيه عبدالغفار | O31: عطيه عبدالغفار | P31: عطيه عبدالغفار | Q31: عطيه عبدالغفار | R31: عطيه عبدالغفار | S31: عطيه عبدالغفار | T31: عطيه عبدالغفار | V31: عطيه عبدالغفار | W31: عطيه عبدالغفار | X31: عطيه عبدالغفار | Y31: عطيه عبدالغفار | Z31: عطيه عبدالغفار | AA31: عطيه عبدالغفار | AB31: عطيه عبدالغفار | AC31: ايمان عبدالناصر | AE31: عطيه عبدالغفار | AF31: عطيه عبدالغفار | AG31: عطيه عبدالغفار | AH31: عطيه عبدالغفار | AI31: عطيه عبدالغفار | AJ31: ايمان عبدالناصر | AK31: عطيه عبدالغفار | AL31: عطيه عبدالغفار | AN31: عطيه عبدالغفار | AO31: عطيه عبدالغفار | AP31: عطيه عبدالغفار | AQ31: ايمان عبدالناصر | AR31: عطيه عبدالغفار | AS31: عطيه عبدالغفار | AT31: عطيه عبدالغفار | AU31: عطيه عبدالغفار | AW31: عطيه عبدالغفار | AX31: عطيه عبدالغفار | AY31: عطيه عبدالغفار | AZ31: عطيه عبدالغفار | BA31: عطيه عبدالغفار | BB31: عطيه عبدالغفار | BC31: ايمان عبدالناصر | BD31: عطيه عبدالغفار | BG31: 0 | BI31: 28 | DL31: حساب أنشاءات
B32: 4/3 | M32: عربي | N32: عربي | O32: E | P32: متعدد | Q32: متعدد | R32: متعدد | S32: دين | T32: العاب | V32: حساب | W32: حساب | X32: متعدد | Y32: عربي | Z32: عربي | AA32: دين | AB32: E | AC32: متعدد | AE32: متعدد | AF32: متعدد | AG32: متعدد | AH32: E | AI32: حساب | AJ32: حساب | AK32: عربي | AL32: عربي | AN32: عربي | AO32: عربي | AP32: عربي | AQ32: عربي | AR32: حساب | AS32: حساب | AT32: متعدد | AU32: E | AW32: حساب | AX32: حساب | AY32: عربي | AZ32: عربي | BA32: العاب | BB32: توكاتسو | BC32: متعدد | BD32: متعدد | BG32: 4/3 | BI32: 29 | DL32: خامات
M33: مصطفى عبدالحميد | N33: مصطفى عبدالحميد | O33: ايمان عبدالناصر | P33: مصطفى عبدالحميد | Q33: مصطفى عبدالحميد | R33: مصطفى عبدالحميد | S33: مصطفى عبدالحميد | T33: مصطفى عبدالحميد | V33: مصطفى عبدالحميد | W33: مصطفى عبدالحميد | X33: مصطفى عبدالحميد | Y33: مصطفى عبدالحميد | Z33: مصطفى عبدالحميد | AA33: مصطفى عبدالحميد | AB33: ايمان عبدالناصر | AC33: مصطفى عبدالحميد | AE33: مصطفى عبدالحميد | AF33: مصطفى عبدالحميد | AG33: مصطفى عبدالحميد | AH33: ايمان عبدالناصر | AI33: مصطفى عبدالحميد | AJ33: مصطفى عبدالحميد | AK33: مصطفى عبدالحميد | AL33: مصطفى عبدالحميد | AN33: مصطفى عبدالحميد | AO33: مصطفى عبدالحميد | AP33: مصطفى عبدالحميد | AQ33: مصطفى عبدالحميد | AR33: مصطفى عبدالحميد | AS33: مصطفى عبدالحميد | AT33: مصطفى عبدالحميد | AU33: ايمان عبدالناصر | AW33: مصطفى عبدالحميد | AX33: مصطفى عبدالحميد | AY33: مصطفى عبدالحميد | AZ33: مصطفى عبدالحميد | BA33: مصطفى عبدالحميد | BB33: مصطفى عبدالحميد | BC33: مصطفى عبدالحميد | BD33: مصطفى عبدالحميد | BG33: 0 | BI33: 30 | DL33: خامات كهربية
B34: 5/3 | M34: E | N34: متعدد | O34: دين | P34: متعدد | Q34: متعدد | R34: العاب | S34: عربي | T34: عربي | V34: E | W34: متعدد | X34: عربي | Y34: عربي | Z34: عربي | AA34: عربي | AB34: حساب | AC34: حساب | AE34: حساب | AF34: حساب | AG34: عربي | AH34: عربي | AI34: متعدد | AJ34: متعدد | AK34: متعدد | AL34: العاب | AN34: توكاتسو | AO34: دين | AP34: E | AQ34: حساب | AR34: حساب | AS34: متعدد | AT34: عربي | AU34: عربي | AW34: متعدد | AX34: متعدد | AY34: E | AZ34: حساب | BA34: حساب | BB34: متعدد | BC34: عربي | BD34: عربي | BG34: 5/3 | BI34: 31 | DL34: دراسات
M35: ايمان عبدالناصر | N35: ابوبكر عزت | O35: ابوبكر عزت | P35: ابوبكر عزت | Q35: ابوبكر عزت | R35: ابوبكر عزت | S35: ابوبكر عزت | T35: ابوبكر عزت | V35: ايمان عبدالناصر | W35: ابوبكر عزت | X35: ابوبكر عزت | Y35: ابوبكر عزت | Z35: ابوبكر عزت | AA35: ابوبكر عزت | AB35: ابوبكر عزت | AC35: ابوبكر عزت | AE35: ابوبكر عزت | AF35: ابوبكر عزت | AG35: ابوبكر عزت | AH35: ابوبكر عزت | AI35: ابوبكر عزت | AJ35: ابوبكر عزت | AK35: ابوبكر عزت | AL35: ابوبكر عزت | AN35: ابوبكر عزت | AO35: ابوبكر عزت | AP35: ايمان عبدالناصر | AQ35: ابوبكر عزت | AR35: ابوبكر عزت | AS35: ابوبكر عزت | AT35: ابوبكر عزت | AU35: ابوبكر عزت | AW35: ابوبكر عزت | AX35: ابوبكر عزت | AY35: ايمان عبدالناصر | AZ35: ابوبكر عزت | BA35: ابوبكر عزت | BB35: ابوبكر عزت | BC35: ابوبكر عزت | BD35: ابوبكر عزت | BG35: 0 | BI35: 32 | DL35: دوائر الكترونية
B36: 6/3 | M36: العاب | N36: E | O36: توكاتسو | P36: متعدد | Q36: متعدد | R36: متعدد | S36: عربي | T36: عربي | V36: حساب | W36: حساب | X36: متعدد | Y36: E | Z36: متعدد | AA36: العاب | AB36: عربي | AC36: عربي | AE36: عربي | AF36: عربي | AG36: E | AH36: حساب | AI36: حساب | AJ36: متعدد | AK36: دين | AL36: متعدد | AN36: متعدد | AO36: دين | AP36: متعدد | AQ36: حساب | AR36: حساب | AS36: متعدد | AT36: عربي | AU36: عربي | AW36: متعدد | AX36: عربي | AY36: عربي | AZ36: حساب | BA36: حساب | BB36: E | BC36: عربي | BD36: عربي | BG36: 6/3 | BI36: 33 | DL36: رسم فنى
M37: رضا ناجى | N37: ايمان عبدالناصر | O37: رضا ناجى | P37: رضا ناجى | Q37: رضا ناجى | R37: رضا ناجى | S37: رضا ناجى | T37: رضا ناجى | V37: رضا ناجى | W37: رضا ناجى | X37: رضا ناجى | Y37: ايمان عبدالناصر | Z37: رضا ناجى | AA37: رضا ناجى | AB37: رضا ناجى | AC37: رضا ناجى | AE37: رضا ناجى | AF37: رضا ناجى | AG37: ايمان عبدالناصر | AH37: رضا ناجى | AI37: رضا ناجى | AJ37: رضا ناجى | AK37: رضا ناجى | AL37: رضا ناجى | AN37: رضا ناجى | AO37: رضا ناجى | AP37: رضا ناجى | AQ37: رضا ناجى | AR37: رضا ناجى | AS37: رضا ناجى | AT37: رضا ناجى | AU37: رضا ناجى | AW37: رضا ناجى | AX37: رضا ناجى | AY37: رضا ناجى | AZ37: رضا ناجى | BA37: رضا ناجى | BB37: ايمان عبدالناصر | BC37: رضا ناجى | BD37: رضا ناجى | BG37: 0 | BI37: 34 | DL37: رياضيات
B38: 7/3 | M38: عربي | N38: عربي | O38: متعدد | P38: E | Q38: متعدد | R38: عربي | S38: عربي | T38: متعدد | V38: العاب | W38: E | X38: متعدد | Y38: دين | Z38: عربي | AA38: عربي | AB38: حساب | AC38: حساب | AE38: توكاتسو | AF38: متعدد | AG38: حساب | AH38: حساب | AI38: متعدد | AJ38: عربي | AK38: عربي | AL38: E | AN38: دين | AO38: حساب | AP38: حساب | AQ38: متعدد | AR38: متعدد | AS38: E | AT38: عربي | AU38: عربي | AW38: عربي | AX38: عربي | AY38: متعدد | AZ38: متعدد | BA38: متعدد | BB38: العاب | BC38: حساب | BD38: حساب | BG38: 7/3 | BI38: 35 | DL38: زخارف
M39: صابر صالح | N39: صابر صالح | O39: صابر صالح | P39: ايمان عبدالناصر | Q39: صابر صالح | R39: صابر صالح | S39: صابر صالح | T39: صابر صالح | V39: صابر صالح | W39: ايمان عبدالناصر | X39: صابر صالح | Y39: صابر صالح | Z39: صابر صالح | AA39: صابر صالح | AB39: صابر صالح | AC39: صابر صالح | AE39: صابر صالح | AF39: صابر صالح | AG39: صابر صالح | AH39: صابر صالح | AI39: صابر صالح | AJ39: صابر صالح | AK39: صابر صالح | AL39: ايمان عبدالناصر | AN39: صابر صالح | AO39: صابر صالح | AP39: صابر صالح | AQ39: صابر صالح | AR39: صابر صالح | AS39: ايمان عبدالناصر | AT39: صابر صالح | AU39: صابر صالح | AW39: صابر صالح | AX39: صابر صالح | AY39: صابر صالح | AZ39: صابر صالح | BA39: صابر صالح | BB39: صابر صالح | BC39: صابر صالح | BD39: صابر صالح | BG39: 0 | BI39: 36 | DL39: شاسية
B40: 1/4 | M40: حساب | N40: علوم | O40: دراسات | P40: عربي | Q40: E | R40: رسم | S40: عربي | T40: دين | V40: علوم | W40: عربي | X40: مهارات | Y40: تكنولوجيا | Z40: E | AA40: حساب | AB40: عربي | AC40: توكاتسو | AE40: عربي | AF40: عربي | AG40: رسم | AH40: E | AI40: موسيقى | AJ40: حساب | AK40: علوم | AL40: العاب | AN40: تكنولوجيا | AO40: دراسات | AP40: عربي | AQ40: علوم | AR40: حساب | AS40: عربي | AT40: حساب | AU40: قيم | AW40: دراسات | AX40: مهارات | AY40: عربي | AZ40: عربي | BA40: دين | BB40: العاب | BC40: حساب | BD40: E | BG40: 1/4 | BI40: 37 | DL40: صيانة واصلاح
M41: محمود عبدالهادى | N41: اسماء جمال | O41: احمد ابراهيم | P41: مصطفى جمعه | Q41: ايمان عبدالناصر | R41: مصطفى جمعه | S41: مصطفى جمعه | T41: مصطفى جمعه | V41: اسماء جمال | W41: مصطفى جمعه | X41: صلاح شعبان:صبرى سعيد | Y41: كوثر سعيد | Z41: ايمان عبدالناصر | AA41: محمود عبدالهادى | AB41: مصطفى جمعه | AC41: نورا كامل | AE41: مصطفى جمعه | AF41: مصطفى جمعه | AG41: مصطفى جمعه | AH41: ايمان عبدالناصر | AI41: مصطفى جمعه | AJ41: محمود عبدالهادى | AK41: اسماء جمال | AL41: ابوبكر عزت | AN41: كوثر سعيد | AO41: احمد ابراهيم | AP41: مصطفى جمعه | AQ41: اسماء جمال | AR41: محمود عبدالهادى | AS41: مصطفى جمعه | AT41: محمود عبدالهادى | AU41: مصطفى جمعه | AW41: احمد ابراهيم | AX41: صلاح شعبان:صبرى سعيد | AY41: مصطفى جمعه | AZ41: مصطفى جمعه | BA41: مصطفى جمعه | BB41: ابوبكر عزت | BC41: محمود عبدالهادى | BD41: ايمان عبدالناصر | BG41: 0 | BI41: 38 | DL41: علم المواد
B42: 2/4 | M42: علوم | N42: عربي | O42: عربي | P42: حساب | Q42: دين | R42: رسم | S42: حساب | T42: دراسات | V42: عربي | W42: علوم | X42: E | Y42: مهارات | Z42: عربي | AA42: تكنولوجيا | AB42: حساب | AC42: موسيقى | AE42: دراسات | AF42: علوم | AG42: E | AH42: عربي | AI42: حساب | AJ42: عربي | AK42: دين | AL42: رسم | AN42: توكاتسو | AO42: عربي | AP42: تكنولوجيا | AQ42: قيم | AR42: العاب | AS42: حساب | AT42: عربي | AU42: E | AW42: عربي | AX42: العاب | AY42: حساب | AZ42: دراسات | BA42: E | BB42: مهارات | BC42: عربي | BD42: علوم | BG42: 2/4 | BI42: 39 | DL42: عمــــلي
M43: اسماء جمال | N43: مصطفى جمعه | O43: مصطفى جمعه | P43: محمود عبدالهادى | Q43: مصطفى جمعه | R43: محمود عبدالهادى | S43: محمود عبدالهادى | T43: احمد ابراهيم | V43: مصطفى جمعه | W43: اسماء جمال | X43: ايمان عبدالناصر | Y43: صلاح شعبان:صبرى سعيد | Z43: مصطفى جمعه | AA43: كوثر سعيد | AB43: محمود عبدالهادى | AC43: مصطفى جمعه | AE43: احمد ابراهيم | AF43: اسماء جمال | AG43: ايمان عبدالناصر | AH43: مصطفى جمعه | AI43: محمود عبدالهادى | AJ43: مصطفى جمعه | AK43: مصطفى جمعه | AL43: محمود عبدالهادى | AN43: محمد صبحي | AO43: مصطفى جمعه | AP43: كوثر سعيد | AQ43: مصطفى جمعه | AR43: مصطفى جمعه | AS43: محمود عبدالهادى | AT43: مصطفى جمعه | AU43: ايمان عبدالناصر | AW43: مصطفى جمعه | AX43: مصطفى جمعه | AY43: محمود عبدالهادى | AZ43: احمد ابراهيم | BA43: ايمان عبدالناصر | BB43: صلاح شعبان:صبرى سعيد | BC43: مصطفى جمعه | BD43: اسماء جمال | BG43: 0 | BI43: 40 | DL43: عمليات
B44: 3/4 | M44: دراسات | N44: العاب | O44: حساب | P44: E | Q44: عربي | R44: علوم | S44: عربي | T44: رسم | V44: تكنولوجيا | W44: E | X44: دين | Y44: حساب | Z44: عربي | AA44: مهارات | AB44: عربي | AC44: علوم | AE44: E | AF44: عربي | AG44: عربي | AH44: قيم | AI44: موسيقى | AJ44: العاب | AK44: حساب | AL44: رسم | AN44: E | AO44: تكنولوجيا | AP44: حساب | AQ44: عربي | AR44: دين | AS44: عربي | AT44: علوم | AU44: دراسات | AW44: مهارات | AX44: حساب | AY44: دراسات | AZ44: علوم | BA44: حساب | BB44: عربي | BC44: عربي | BD44: توكاتسو | BG44: 3/4 | BI44: 41 | DL44: فلزات
M45: احمد ابراهيم | N45: رضا ناجى | O45: محمود عبدالهادى | P45: ايمان عبدالناصر | Q45: اشجان احمد | R45: اسماء جمال | S45: اشجان احمد | T45: اشجان احمد | V45: كوثر سعيد | W45: ايمان عبدالناصر | X45: اشجان احمد | Y45: محمود عبدالهادى | Z45: اشجان احمد | AA45: صلاح شعبان:صبرى سعيد | AB45: اشجان احمد | AC45: اسماء جمال | AE45: ايمان عبدالناصر | AF45: اشجان احمد | AG45: اشجان احمد | AH45: اشجان احمد | AI45: محمد صبحي | AJ45: رضا ناجى | AK45: محمود عبدالهادى | AL45: اشجان احمد | AN45: ايمان عبدالناصر | AO45: كوثر سعيد | AP45: محمود عبدالهادى | AQ45: اشجان احمد | AR45: اشجان احمد | AS45: اشجان احمد | AT45: اسماء جمال | AU45: احمد ابراهيم | AW45: صلاح شعبان:صبرى سعيد | AX45: محمود عبدالهادى | AY45: احمد ابراهيم | AZ45: اسماء جمال | BA45: محمود عبدالهادى | BB45: اشجان احمد | BC45: اشجان احمد | BD45: محمد صبحي | BG45: 0 | DL45: فلسفة
B46: 4/4 | M46: رسم | N46: حساب | O46: عربي | P46: علوم | Q46: دراسات | R46: عربي | S46: E | T46: قيم | V46: عربي | W46: مهارات | X46: علوم | Y46: عربي | Z46: حساب | AA46: موسيقى | AB46: E | AC46: تكنولوجيا | AE46: حساب | AF46: E | AG46: حساب | AH46: العاب | AI46: دين | AJ46: عربي | AK46: عربي | AL46: دراسات | AN46: حساب | AO46: عربي | AP46: عربي | AQ46: دراسات | AR46: تكنولوجيا | AS46: علوم | AT46: E | AU46: رسم | AW46: علوم | AX46: العاب | AY46: عربي | AZ46: عربي | BA46: دين | BB46: حساب | BC46: مهارات | BD46: توكاتسو | BG46: 4/4 | DL46: فيزياء
M47: منال جمعه | N47: محمود عبدالهادى | O47: اشجان احمد | P47: اسماء جمال | Q47: احمد ابراهيم | R47: اشجان احمد | S47: ايمان عبدالناصر | T47: محمود عبدالهادى | V47: اشجان احمد | W47: صلاح شعبان:صبرى سعيد | X47: اسماء جمال | Y47: اشجان احمد | Z47: محمود عبدالهادى | AA47: اشجان احمد | AB47: ايمان عبدالناصر | AC47: كوثر سعيد | AE47: محمود عبدالهادى | AF47: ايمان عبدالناصر | AG47: محمود عبدالهادى | AH47: ابوبكر عزت | AI47: اشجان احمد | AJ47: اشجان احمد | AK47: اشجان احمد | AL47: احمد ابراهيم | AN47: محمود عبدالهادى | AO47: اشجان احمد | AP47: اشجان احمد | AQ47: احمد ابراهيم | AR47: كوثر سعيد | AS47: اسماء جمال | AT47: ايمان عبدالناصر | AU47: منال جمعه | AW47: اسماء جمال | AX47: ابوبكر عزت | AY47: اشجان احمد | AZ47: اشجان احمد | BA47: اشجان احمد | BB47: محمود عبدالهادى | BC47: صلاح شعبان:صبرى سعيد | BD47: محمود عبدالهادى | BG47: 0 | DL47: قياسات كهربية
B48: 5/4 | M48: عربي | N48: عربي | O48: دين | P48: توكاتسو | Q48: رسم | R48: E | S48: حساب | T48: علوم | V48: مهارات | W48: عربي | X48: عربي | Y48: E | Z48: دين | AA48: حساب | AB48: تكنولوجيا | AC48: دراسات | AE48: علوم | AF48: عربي | AG48: عربي | AH48: دراسات | AI48: حساب | AJ48: العاب | AK48: حساب | AL48: E | AN48: حساب | AO48: عربي | AP48: عربي | AQ48: تكنولوجيا | AR48: E | AS48: رسم | AT48: موسيقى | AU48: علوم | AW48: قيم | AX48: دراسات | AY48: عربي | AZ48: العاب | BA48: علوم | BB48: حساب | BC48: عربي | BD48: مهارات | BG48: 5/4 | DL48: كهرباء
M49: زكيه سيد | N49: زكيه سيد | O49: زكيه سيد | P49: فاطمه كامل | Q49: عطيه عبدالغفار | R49: ايمان عبدالناصر | S49: عطيه عبدالغفار | T49: اسماء جمال | V49: صلاح شعبان:صبرى سعيد | W49: زكيه سيد | X49: زكيه سيد | Y49: ايمان عبدالناصر | Z49: زكيه سيد | AA49: عطيه عبدالغفار | AB49: كوثر سعيد | AC49: احمد ابراهيم | AE49: اسماء جمال | AF49: زكيه سيد | AG49: زكيه سيد | AH49: احمد ابراهيم | AI49: عطيه عبدالغفار | AJ49: ايمان عبدالناصر | AK49: عطيه عبدالغفار | AL49: ايمان عبدالناصر | AN49: عطيه عبدالغفار | AO49: زكيه سيد | AP49: زكيه سيد | AQ49: كوثر سعيد | AR49: ايمان عبدالناصر | AS49: عطيه عبدالغفار | AT49: زكيه سيد | AU49: اسماء جمال | AW49: زكيه سيد | AX49: احمد ابراهيم | AY49: زكيه سيد | AZ49: ايمان عبدالناصر | BA49: اسماء جمال | BB49: عطيه عبدالغفار | BC49: زكيه سيد | BD49: صلاح شعبان:صبرى سعيد | BG49: 0 | DL49: كيمياء
B50: 6/4 | M50: حساب | N50: دراسات | O50: E | P50: دين | Q50: عربي | R50: موسيقى | S50: عربي | T50: العاب | V50: عربي | W50: حساب | X50: دراسات | Y50: علوم | Z50: تكنولوجيا | AA50: E | AB50: عربي | AC50: مهارات | AE50: عربي | AF50: حساب | AG50: حساب | AH50: عربي | AI50: E | AJ50: رسم | AK50: قيم | AL50: علوم | AN50: علوم | AO50: رسم | AP50: حساب | AQ50: دين | AR50: عربي | AS50: عربي | AT50: تكنولوجيا | AU50: العاب | AW50: توكاتسو | AX50: حساب | AY50: E | AZ50: مهارات | BA50: عربي | BB50: عربي | BC50: علوم | BD50: دراسات | BG50: =B50 -> 6/4 | DL50: لغة عربية
M51: عطيه عبدالغفار | N51: احمد ابراهيم | O51: ايمان عبدالناصر | P51: زكيه سيد | Q51: زكيه سيد | R51: احمد ابراهيم | S51: زكيه سيد | T51: زكيه سيد | V51: زكيه سيد | W51: عطيه عبدالغفار | X51: احمد ابراهيم | Y51: اسماء جمال | Z51: كوثر سعيد | AA51: ايمان عبدالناصر | AB51: زكيه سيد | AC51: صلاح شعبان:صبرى سعيد | AE51: زكيه سيد | AF51: عطيه عبدالغفار | AG51: عطيه عبدالغفار | AH51: زكيه سيد | AI51: ايمان عبدالناصر | AJ51: اسماء جمال | AK51: زكيه سيد | AL51: اسماء جمال | AN51: اسماء جمال | AO51: اسماء جمال | AP51: عطيه عبدالغفار | AQ51: زكيه سيد | AR51: زكيه سيد | AS51: زكيه سيد | AT51: كوثر سعيد | AU51: زكيه سيد | AW51: محمود عبدالهادى | AX51: عطيه عبدالغفار | AY51: ايمان عبدالناصر | AZ51: صلاح شعبان:صبرى سعيد | BA51: زكيه سيد | BB51: زكيه سيد | BC51: اسماء جمال | BD51: احمد ابراهيم | BG51: 0 | DL51: ماكينات C.N.C
B52: 1/5 | M52: علوم | N52: عربي | O52: حساب | P52: عربي | Q52: نشاط1 | R52: دين | S52: E | T52: العاب | U52: ريادة | V52: عربي | W52: عربي | X52: عربي | Y52: حساب | Z52: علوم | AA52: نشاط 2 | AB52: دراسات | AC52: حاسب | AE52: عربي | AF52: دين | AG52: عربي | AH52: E | AI52: حاسب | AJ52: حساب | AK52: دراسات | AL52: نشاط1 | AN52: رسم | AO52: حساب | AP52: عربي | AQ52: E | AR52: دراسات | AS52: عربي | AT52: عربي | AU52: علوم | AW52: حساب | AX52: عربي | AY52: حساب | AZ52: رسم | BA52: العاب | BB52: عربي | BC52: دين | BD52: نشاط 2 | BG52: =B52 -> 1/5 | DL52: مبادئ كهرباء
M53: احمد سليمان | N53: محمد صبحي | O53: منال جمعه | P53: محمد صبحي | Q53: منال جمعه | R53: محمد صبحي | S53: دعاء | T53: محمد صبحي | U53: محمد صبحي | V53: محمد صبحي | W53: محمد صبحي | X53: محمد صبحي | Y53: منال جمعه | Z53: احمد سليمان | AA53: زكيه سيد | AB53: ابوبكر عزت | AC53: زكيه سيد | AE53: محمد صبحي | AF53: محمد صبحي | AG53: محمد صبحي | AH53: دعاء | AI53: زكيه سيد | AJ53: منال جمعه | AK53: ابوبكر عزت | AL53: منال جمعه | AN53: زكيه سيد | AO53: منال جمعه | AP53: محمد صبحي | AQ53: دعاء | AR53: ابوبكر عزت | AS53: محمد صبحي | AT53: محمد صبحي | AU53: احمد سليمان | AW53: منال جمعه | AX53: محمد صبحي | AY53: منال جمعه | AZ53: زكيه سيد | BA53: محمد صبحي | BB53: محمد صبحي | BC53: محمد صبحي | BD53: زكيه سيد | BG53: 0 | DL53: محركات
B54: 2/5 | M54: عربي | N54: العاب | O54: عربي | P54: حساب | Q54: عربي | R54: حساب | S54: دراسات | T54: حاسب | U54: ريادة | V54: نشاط 2 | W54: رسم | X54: حساب | Y54: عربي | Z54: عربي | AA54: دين | AB54: عربي | AC54: E | AE54: حساب | AF54: علوم | AG54: E | AH54: عربي | AI54: العاب | AJ54: دراسات | AK54: عربي | AL54: دين | AN54: نشاط1 | AO54: دين | AP54: حساب | AQ54: عربي | AR54: علوم | AS54: دراسات | AT54: E | AU54: حاسب | AW54: عربي | AX54: نشاط 2 | AY54: عربي | AZ54: عربي | BA54: نشاط1 | BB54: حساب | BC54: علوم | BD54: رسم | BG54: =B54 -> 2/5 | DL54: مساحة
M55: محمد صبحي | N55: منال جمعه | O55: محمد صبحي | P55: منال جمعه | Q55: محمد صبحي | R55: منال جمعه | S55: ابوبكر عزت | T55: محمد ناجى | U55: منال جمعه | V55: ايمان عبدالناصر | W55: رضا ناجى | X55: منال جمعه | Y55: محمد صبحي | Z55: محمد صبحي | AA55: محمد صبحي | AB55: محمد صبحي | AC55: دعاء | AE55: منال جمعه | AF55: احمد سليمان | AG55: دعاء | AH55: محمد صبحي | AI55: منال جمعه | AJ55: ابوبكر عزت | AK55: محمد صبحي | AL55: محمد صبحي | AN55: منال جمعه | AO55: محمد صبحي | AP55: منال جمعه | AQ55: محمد صبحي | AR55: احمد سليمان | AS55: ابوبكر عزت | AT55: دعاء | AU55: محمد ناجى | AW55: محمد صبحي | AX55: ايمان عبدالناصر | AY55: محمد صبحي | AZ55: محمد صبحي | BA55: منال جمعه | BB55: منال جمعه | BC55: احمد سليمان | BD55: رضا ناجى | BG55: 0 | DL55: معدات
B56: 3/5 | M56: عربي | N56: نشاط1 | O56: علوم | P56: عربي | Q56: نشاط 2 | R56: دراسات | S56: حساب | T56: دين | U56: ريادة | V56: عربي | W56: العاب | X56: دين | Y56: دراسات | Z56: حاسب | AA56: عربي | AB56: حساب | AC56: رسم | AE56: دراسات | AF56: عربي | AG56: رسم | AH56: عربي | AI56: E | AJ56: علوم | AK56: حساب | AL56: دين | AN56: عربي | AO56: عربي | AP56: E | AQ56: حساب | AR56: حساب | AS56: علوم | AT56: عربي | AU56: نشاط 2 | AW56: عربي | AX56: حساب | AY56: عربي | AZ56: حاسب | BA56: E | BB56: عربي | BC56: العاب | BD56: نشاط1 | BG56: =B56 -> 3/5 | DL56: ميكانيكا
M57: رضا ناجى | N57: اشجان احمد | O57: احمد سليمان | P57: رضا ناجى | Q57: محمود عبدالهادى | R57: ابوبكر عزت | S57: منال جمعه | T57: رضا ناجى | U57: رضا ناجى | V57: رضا ناجى | W57: منال جمعه | X57: رضا ناجى | Y57: ابوبكر عزت | Z57: سعيد عبدالباسط | AA57: رضا ناجى | AB57: منال جمعه | AC57: منال جمعه | AE57: ابوبكر عزت | AF57: رضا ناجى | AG57: منال جمعه | AH57: رضا ناجى | AI57: دعاء | AJ57: احمد سليمان | AK57: منال جمعه | AL57: رضا ناجى | AN57: رضا ناجى | AO57: رضا ناجى | AP57: دعاء | AQ57: منال جمعه | AR57: منال جمعه | AS57: احمد سليمان | AT57: رضا ناجى | AU57: محمود عبدالهادى | AW57: رضا ناجى | AX57: منال جمعه | AY57: رضا ناجى | AZ57: سعيد عبدالباسط | BA57: دعاء | BB57: رضا ناجى | BC57: منال جمعه | BD57: اشجان احمد | BG57: 0 | DL57: نظم
B58: 4/5 | M58: نشاط1 | N58: علوم | O58: عربي | P58: E | Q58: دين | R58: حساب | S58: عربي | T58: العاب | U58: ريادة | V58: نشاط 2 | W58: دراسات | X58: حاسب | Y58: عربي | Z58: عربي | AA58: E | AB58: حساب | AC58: رسم | AE58: علوم | AF58: حساب | AG58: عربي | AH58: حاسب | AI58: عربي | AJ58: E | AK58: عربي | AL58: رسم | AN58: نشاط 2 | AO58: حساب | AP58: دراسات | AQ58: عربي | AR58: عربي | AS58: عربي | AT58: حساب | AU58: دين | AW58: حساب | AX58: دين | AY58: دراسات | AZ58: العاب | BA58: عربي | BB58: نشاط1 | BC58: عربي | BD58: علوم | BG58: =B58 -> 4/5 | DL58: هيدروليك
M59: ايمان عبدالناصر | N59: احمد سليمان | O59: رضا ناجى | P59: دعاء | Q59: رضا ناجى | R59: سعيد عبدالباسط | S59: رضا ناجى | T59: منال جمعه | U59: فاطمه كامل | V59: احمد ابراهيم | W59: ابوبكر عزت | X59: محمود عبدالهادى | Y59: رضا ناجى | Z59: رضا ناجى | AA59: دعاء | AB59: سعيد عبدالباسط | AC59: سعيد عبدالباسط | AE59: احمد سليمان | AF59: سعيد عبدالباسط | AG59: رضا ناجى | AH59: محمود عبدالهادى | AI59: رضا ناجى | AJ59: دعاء | AK59: رضا ناجى | AL59: سعيد عبدالباسط | AN59: احمد ابراهيم | AO59: سعيد عبدالباسط | AP59: ابوبكر عزت | AQ59: رضا ناجى | AR59: رضا ناجى | AS59: رضا ناجى | AT59: سعيد عبدالباسط | AU59: رضا ناجى | AW59: سعيد عبدالباسط | AX59: رضا ناجى | AY59: ابوبكر عزت | AZ59: منال جمعه | BA59: رضا ناجى | BB59: ايمان عبدالناصر | BC59: رضا ناجى | BD59: احمد سليمان | BG59: 0
B60: 5/5 | M60: عربي | N60: دراسات | O60: حساب | P60: حاسب | Q60: عربي | R60: دين | S60: عربي | T60: E | U60: ريادة | V60: حساب | W60: عربي | X60: عربي | Y60: حساب | Z60: دراسات | AA60: علوم | AB60: نشاط 2 | AC60: دين | AE60: حساب | AF60: رسم | AG60: عربي | AH60: عربي | AI60: نشاط1 | AJ60: نشاط 2 | AK60: عربي | AL60: دين | AN60: عربي | AO60: العاب | AP60: عربي | AQ60: عربي | AR60: E | AS60: حساب | AT60: علوم | AU60: حاسب | AW60: العاب | AX60: علوم | AY60: E | AZ60: دراسات | BA60: عربي | BB60: نشاط1 | BC60: حساب | BD60: رسم | BG60: =B60 -> 5/5
M61: فاطمه كامل | N61: ابوبكر عزت | O61: سعيد عبدالباسط | P61: ابوبكر عزت | Q61: فاطمه كامل | R61: فاطمه كامل | S61: فاطمه كامل | T61: دعاء | U61: ابوبكر عزت | V61: سعيد عبدالباسط | W61: فاطمه كامل | X61: فاطمه كامل | Y61: سعيد عبدالباسط | Z61: ابوبكر عزت | AA61: احمد سليمان | AB61: احمد ابراهيم | AC61: فاطمه كامل | AE61: سعيد عبدالباسط | AF61: منال جمعه | AG61: فاطمه كامل | AH61: فاطمه كامل | AI61: نورا كامل | AJ61: احمد ابراهيم | AK61: فاطمه كامل | AL61: فاطمه كامل | AN61: فاطمه كامل | AO61: احمد سليمان | AP61: فاطمه كامل | AQ61: فاطمه كامل | AR61: دعاء | AS61: سعيد عبدالباسط | AT61: احمد سليمان | AU61: ابوبكر عزت | AW61: احمد سليمان | AX61: احمد سليمان | AY61: دعاء | AZ61: ابوبكر عزت | BA61: فاطمه كامل | BB61: نورا كامل | BC61: سعيد عبدالباسط | BD61: منال جمعه | BG61: 0
B62: 6/5 | M62: حساب | N62: عربي | O62: عربي | P62: علوم | Q62: نشاط1 | R62: E | S62: حساب | T62: حاسب | U62: ريادة | V62: عربي | W62: حساب | X62: E | Y62: علوم | Z62: نشاط 2 | AA62: رسم | AB62: عربي | AC62: دراسات | AE62: دين | AF62: عربي | AG62: دراسات | AH62: العاب | AI62: عربي | AJ62: عربي | AK62: حساب | AL62: E | AN62: علوم | AO62: نشاط 2 | AP62: العاب | AQ62: حساب | AR62: عربي | AS62: رسم | AT62: عربي | AU62: دين | AW62: نشاط1 | AX62: حاسب | AY62: حساب | AZ62: عربي | BA62: دراسات | BB62: عربي | BC62: عربي | BD62: دين | BG62: =B62 -> 6/5
M63: سعيد عبدالباسط | N63: فاطمه كامل | O63: فاطمه كامل | P63: احمد سليمان | Q63: ابوبكر عزت | R63: دعاء | S63: سعيد عبدالباسط | T63: سعيد عبدالباسط | U63: سعيد عبدالباسط | V63: فاطمه كامل | W63: سعيد عبدالباسط | X63: دعاء | Y63: احمد سليمان | Z63: فاطمه كامل | AA63: منال جمعه | AB63: فاطمه كامل | AC63: ابوبكر عزت | AE63: فاطمه كامل | AF63: فاطمه كامل | AG63: ابوبكر عزت | AH63: محمد ناجى | AI63: فاطمه كامل | AJ63: فاطمه كامل | AK63: سعيد عبدالباسط | AL63: دعاء | AN63: احمد سليمان | AO63: فاطمه كامل | AP63: محمد ناجى | AQ63: سعيد عبدالباسط | AR63: فاطمه كامل | AS63: منال جمعه | AT63: فاطمه كامل | AU63: فاطمه كامل | AW63: ابوبكر عزت | AX63: سعيد عبدالباسط | AY63: سعيد عبدالباسط | AZ63: فاطمه كامل | BA63: ابوبكر عزت | BB63: فاطمه كامل | BC63: فاطمه كامل | BD63: فاطمه كامل | BG63: 0
B64: 1/6 | M64: دين | N64: عربي | O64: علوم | P64: عربي | Q64: عربي | R64: نشاط 2 | S64: حساب | T64: E | U64: ريادة | V64: عربي | W64: نشاط1 | X64: حاسب | Y64: العاب | Z64: دين | AA64: دراسات | AB64: حساب | AC64: رسم | AE64: عربي | AF64: عربي | AG64: دراسات | AH64: عربي | AI64: العاب | AJ64: حساب | AK64: E | AL64: نشاط 2 | AN64: عربي | AO64: عربي | AP64: علوم | AQ64: حساب | AR64: دراسات | AS64: رسم | AT64: نشاط1 | AU64: حاسب | AW64: E | AX64: عربي | AY64: حساب | AZ64: حساب | BA64: عربي | BB64: علوم | BC64: عربي | BD64: دين | BG64: 1/6
M65: نورا كامل | N65: نورا كامل | O65: اسماء جمال | P65: نورا كامل | Q65: نورا كامل | R65: احمد سليمان | S65: محمد ناجى | T65: ايمان عبدالناصر | U65: محمد ناجى | V65: نورا كامل | W65: اشجان احمد | X65: كوثر سعيد | Y65: احمد ابراهيم | Z65: نورا كامل | AA65: احمد ابراهيم | AB65: محمد ناجى | AC65: صابر صالح | AE65: نورا كامل | AF65: نورا كامل | AG65: احمد ابراهيم | AH65: نورا كامل | AI65: احمد ابراهيم | AJ65: محمد ناجى | AK65: ايمان عبدالناصر | AL65: احمد سليمان | AN65: نورا كامل | AO65: نورا كامل | AP65: اسماء جمال | AQ65: محمد ناجى | AR65: احمد ابراهيم | AS65: صابر صالح | AT65: اشجان احمد | AU65: كوثر سعيد | AW65: ايمان عبدالناصر | AX65: نورا كامل | AY65: محمد ناجى | AZ65: محمد ناجى | BA65: نورا كامل | BB65: اسماء جمال | BC65: نورا كامل | BD65: نورا كامل | BG65: 0
B66: 2/6 | M66: نشاط 2 | N66: E | O66: حساب | P66: نشاط1 | Q66: علوم | R66: عربي | S66: دراسات | T66: دين | U66: ريادة | V66: العاب | W66: دراسات | X66: نشاط 2 | Y66: عربي | Z66: حساب | AA66: عربي | AB66: عربي | AC66: E | AE66: العاب | AF66: حساب | AG66: عربي | AH66: حاسب | AI66: علوم | AJ66: عربي | AK66: عربي | AL66: دين | AN66: حساب | AO66: حساب | AP66: عربي | AQ66: حاسب | AR66: رسم | AS66: E | AT66: عربي | AU66: دين | AW66: عربي | AX66: علوم | AY66: عربي | AZ66: عربي | BA66: حساب | BB66: نشاط1 | BC66: دراسات | BD66: رسم | BG66: 2/6
M67: مصطفى جمعه | N67: ايمان عبدالناصر | O67: محمد ناجى | P67: احمد ابراهيم | Q67: اسماء جمال | R67: نورا كامل | S67: احمد ابراهيم | T67: نورا كامل | U67: نورا كامل | V67: محمد ناجى | W67: احمد ابراهيم | X67: مصطفى جمعه | Y67: نورا كامل | Z67: محمد ناجى | AA67: نورا كامل | AB67: نورا كامل | AC67: ايمان عبدالناصر | AE67: محمد ناجى | AF67: محمد ناجى | AG67: نورا كامل | AH67: عطيه عبدالغفار | AI67: اسماء جمال | AJ67: نورا كامل | AK67: نورا كامل | AL67: نورا كامل | AN67: محمد ناجى | AO67: محمد ناجى | AP67: نورا كامل | AQ67: عطيه عبدالغفار | AR67: سعيد عبدالباسط | AS67: ايمان عبدالناصر | AT67: نورا كامل | AU67: نورا كامل | AW67: نورا كامل | AX67: اسماء جمال | AY67: نورا كامل | AZ67: نورا كامل | BA67: محمد ناجى | BB67: احمد ابراهيم | BC67: احمد ابراهيم | BD67: سعيد عبدالباسط | BG67: 0
B68: 3/6 | M68: العاب | N68: عربي | O68: E | P68: عربي | Q68: حساب | R68: حساب | S68: علوم | T68: دين | U68: ريادة | V68: عربي | W68: علوم | X68: عربي | Y68: عربي | Z68: دراسات | AA68: حساب | AB68: نشاط 2 | AC68: حاسب | AE68: E | AF68: دراسات | AG68: عربي | AH68: عربي | AI68: عربي | AJ68: رسم | AK68: حساب | AL68: العاب | AN68: دين | AO68: نشاط1 | AP68: عربي | AQ68: علوم | AR68: حساب | AS68: دراسات | AT68: عربي | AU68: E | AW68: عربي | AX68: عربي | AY68: نشاط 2 | AZ68: نشاط1 | BA68: رسم | BB68: حساب | BC68: دين | BD68: حاسب | BG68: 3/6
M69: محمد ناجى | N69: صابر صالح | O69: دعاء | P69: صابر صالح | Q69: محمد ناجى | R69: محمد ناجى | S69: احمد سليمان | T69: صابر صالح | U69: صابر صالح | V69: صابر صالح | W69: احمد سليمان | X69: صابر صالح | Y69: صابر صالح | Z69: احمد ابراهيم | AA69: محمد ناجى | AB69: اسماء جمال | AC69: محمد ناجى | AE69: دعاء | AF69: احمد ابراهيم | AG69: صابر صالح | AH69: صابر صالح | AI69: صابر صالح | AJ69: سعيد عبدالباسط | AK69: محمد ناجى | AL69: محمد ناجى | AN69: صابر صالح | AO69: محمود عبدالهادى | AP69: صابر صالح | AQ69: احمد سليمان | AR69: محمد ناجى | AS69: احمد ابراهيم | AT69: صابر صالح | AU69: دعاء | AW69: صابر صالح | AX69: صابر صالح | AY69: اسماء جمال | AZ69: محمود عبدالهادى | BA69: سعيد عبدالباسط | BB69: محمد ناجى | BC69: صابر صالح | BD69: محمد ناجى | BG69: 0
B70: 4/6 | M70: عربي | N70: العاب | O70: عربي | P70: حساب | Q70: علوم | R70: عربي | S70: نشاط 2 | T70: دراسات | U70: ريادة | V70: علوم | W70: عربي | X70: حساب | Y70: حساب | Z70: دين | AA70: عربي | AB70: عربي | AC70: نشاط1 | AE70: عربي | AF70: E | AG70: حساب | AH70: حاسب | AI70: رسم | AJ70: عربي | AK70: عربي | AL70: دين | AN70: E | AO70: دراسات | AP70: رسم | AQ70: عربي | AR70: نشاط 2 | AS70: حساب | AT70: العاب | AU70: حاسب | AW70: نشاط1 | AX70: حساب | AY70: عربي | AZ70: دين | BA70: عربي | BB70: علوم | BC70: دراسات | BD70: E | BG70: 4/6
M71: صابر صالح | N71: محمد ناجى | O71: صابر صالح | P71: محمد ناجى | Q71: احمد سليمان | R71: صابر صالح | S71: اسماء جمال | T71: ابوبكر عزت | U71: زكيه سيد | V71: احمد سليمان | W71: صابر صالح | X71: محمد ناجى | Y71: محمد ناجى | Z71: صابر صالح | AA71: صابر صالح | AB71: صابر صالح | AC71: عطيه عبدالغفار | AE71: صابر صالح | AF71: دعاء | AG71: محمد ناجى | AH71: سعيد عبدالباسط | AI71: سعيد عبدالباسط | AJ71: صابر صالح | AK71: صابر صالح | AL71: صابر صالح | AN71: دعاء | AO71: ابوبكر عزت | AP71: سعيد عبدالباسط | AQ71: صابر صالح | AR71: اسماء جمال | AS71: محمد ناجى | AT71: محمد ناجى | AU71: سعيد عبدالباسط | AW71: عطيه عبدالغفار | AX71: محمد ناجى | AY71: صابر صالح | AZ71: صابر صالح | BA71: صابر صالح | BB71: احمد سليمان | BC71: ابوبكر عزت | BD71: دعاء | BG71: 0
B72: 5/6 | M72: دين | N72: عربي | O72: دراسات | P72: حاسب | Q72: عربي | R72: حساب | S72: عربي | T72: العاب | U72: ريادة | V72: عربي | W72: دين | X72: حساب | Y72: حاسب | Z72: حساب | AA72: رسم | AB72: عربي | AC72: علوم | AE72: حساب | AF72: عربي | AG72: عربي | AH72: نشاط 2 | AI72: علوم | AJ72: رسم | AK72: E | AL72: العاب | AN72: دراسات | AO72: عربي | AP72: عربي | AQ72: دين | AR72: عربي | AS72: E | AT72: حساب | AU72: نشاط1 | AW72: عربي | AX72: نشاط1 | AY72: نشاط 2 | AZ72: علوم | BA72: عربي | BB72: E | BC72: حساب | BD72: دراسات | BG72: 5/6
M73: مصطفى عبدالحميد | N73: مصطفى عبدالحميد | O73: ابوبكر عزت | P73: عطيه عبدالغفار | Q73: مصطفى عبدالحميد | R73: عطيه عبدالغفار | S73: مصطفى عبدالحميد | T73: عطيه عبدالغفار | U73: مصطفى عبدالحميد | V73: مصطفى عبدالحميد | W73: مصطفى عبدالحميد | X73: عطيه عبدالغفار | Y73: عطيه عبدالغفار | Z73: عطيه عبدالغفار | AA73: مصطفى عبدالحميد | AB73: مصطفى عبدالحميد | AC73: احمد سليمان | AE73: عطيه عبدالغفار | AF73: مصطفى عبدالحميد | AG73: مصطفى عبدالحميد | AH73: احمد سليمان | AI73: احمد سليمان | AJ73: مصطفى عبدالحميد | AK73: دعاء | AL73: عطيه عبدالغفار | AN73: ابوبكر عزت | AO73: مصطفى عبدالحميد | AP73: مصطفى عبدالحميد | AQ73: مصطفى عبدالحميد | AR73: مصطفى عبدالحميد | AS73: دعاء | AT73: عطيه عبدالغفار | AU73: اشجان احمد | AW73: مصطفى عبدالحميد | AX73: اشجان احمد | AY73: احمد سليمان | AZ73: احمد سليمان | BA73: مصطفى عبدالحميد | BB73: دعاء | BC73: عطيه عبدالغفار | BD73: ابوبكر عزت | BG73: 0
B74: 6/6 | M74: دراسات | N74: حساب | O74: دين | P74: العاب | Q74: E | R74: عربي | S74: نشاط 2 | T74: علوم | U74: ريادة | V74: حساب | W74: E | X74: عربي | Y74: حاسب | Z74: عربي | AA74: دراسات | AB74: نشاط1 | AC74: العاب | AE74: نشاط1 | AF74: نشاط 2 | AG74: علوم | AH74: عربي | AI74: عربي | AJ74: حساب | AK74: عربي | AL74: دين | AN74: عربي | AO74: حساب | AP74: علوم | AQ74: دراسات | AR74: حساب | AS74: عربي | AT74: عربي | AU74: رسم | AW74: E | AX74: عربي | AY74: دين | AZ74: عربي | BA74: حساب | BB74: حاسب | BC74: عربي | BD74: رسم | BG74: 6/6
M75: ابوبكر عزت | N75: عطيه عبدالغفار | O75: مصطفى عبدالحميد | P75: اشجان احمد | Q75: دعاء | R75: مصطفى عبدالحميد | S75: صابر صالح | T75: احمد سليمان | U75: عطيه عبدالغفار | V75: عطيه عبدالغفار | W75: دعاء | X75: مصطفى عبدالحميد | Y75: مصطفى عبدالحميد | Z75: مصطفى عبدالحميد | AA75: ابوبكر عزت | AB75: رضا ناجى | AC75: اشجان احمد | AE75: رضا ناجى | AF75: صابر صالح | AG75: احمد سليمان | AH75: مصطفى عبدالحميد | AI75: مصطفى عبدالحميد | AJ75: عطيه عبدالغفار | AK75: مصطفى عبدالحميد | AL75: مصطفى عبدالحميد | AN75: مصطفى عبدالحميد | AO75: عطيه عبدالغفار | AP75: احمد سليمان | AQ75: ابوبكر عزت | AR75: عطيه عبدالغفار | AS75: مصطفى عبدالحميد | AT75: مصطفى عبدالحميد | AU75: عطيه عبدالغفار | AW75: دعاء | AX75: مصطفى عبدالحميد | AY75: مصطفى عبدالحميد | AZ75: مصطفى عبدالحميد | BA75: عطيه عبدالغفار | BB75: مصطفى عبدالحميد | BC75: مصطفى عبدالحميد | BD75: عطيه عبدالغفار | BG75: 0

Sheet فصول
A1: =كشاف!BG4 -> 1/1 | E1: جدول فصل | F1: =A1 -> 1/1 | G1: =A2 -> 0 | O1: جدول فصل | P1: =A17 -> 4/2 | Q1: =A18 -> 0 | Y1: جدول فصل | Z1: =A33 -> 6/3 | AA1: =A34 -> 0 | AI1: جدول فصل | AJ1: =A45 -> 5/4 | AK1: =J34 -> احمد ابراهيم
A2: =كشاف!BG5 -> 0 | B2: اليوم | C2: 1 | D2: 2 | E2: 3 | F2: 4 | G2: 5 | H2: 6 | I2: 7 | J2: 8 | L2: اليوم | M2: 1 | N2: 2 | O2: 3 | P2: 4 | Q2: 5 | R2: 6 | S2: 7 | T2: 8 | V2: اليوم | W2: 1 | X2: 2 | Y2: 3 | Z2: 4 | AA2: 5 | AB2: 6 | AC2: 7 | AD2: 8 | AF2: اليوم | AG2: 1 | AH2: 2 | AI2: 3 | AJ2: 4 | AK2: 5 | AL2: 6 | AM2: 7 | AN2: 8
A3: =كشاف!BG6 -> 2/1 | B3: السبت | C3: =كشاف!D4 -> 0 | D3: =كشاف!E4 -> 0 | E3: =كشاف!F4 -> 0 | F3: =كشاف!G4 -> 0 | G3: =كشاف!H4 -> 0 | H3: =كشاف!I4 -> 0 | I3: =كشاف!J4 -> 0 | J3: =كشاف!K4 -> 0 | L3: السبت | M3: =كشاف!D20 -> 0 | N3: =كشاف!E20 -> 0 | O3: =كشاف!F20 -> 0 | P3: =كشاف!G20 -> 0 | Q3: =كشاف!H20 -> 0 | R3: =كشاف!I20 -> 0 | S3: =كشاف!J20 -> 0 | T3: =كشاف!K20 -> 0 | V3: السبت | W3: =كشاف!D36 -> 0 | X3: =كشاف!E36 -> 0 | Y3: =كشاف!F36 -> 0 | Z3: =كشاف!G36 -> 0 | AA3: =كشاف!H36 -> 0 | AB3: =كشاف!I36 -> 0 | AC3: =كشاف!J36 -> 0 | AD3: =كشاف!K36 -> 0 | AF3: السبت | AG3: =كشاف!N36 -> E | AH3: =كشاف!O36 -> توكاتسو | AI3: =كشاف!P36 -> متعدد | AJ3: =كشاف!Q36 -> متعدد | AK3: =كشاف!R36 -> متعدد | AL3: =كشاف!S36 -> عربي | AM3: =كشاف!T36 -> عربي | AN3: =كشاف!V36 -> حساب
A4: =كشاف!BG7 -> 0 | C4: =كشاف!D5 -> 0 | D4: =كشاف!E5 -> 0 | E4: =كشاف!F5 -> 0 | F4: =كشاف!G5 -> 0 | G4: =كشاف!H5 -> 0 | H4: =كشاف!I5 -> 0 | I4: =كشاف!J5 -> 0 | J4: =كشاف!K5 -> 0 | M4: =كشاف!D21 -> 0 | N4: =كشاف!E21 -> 0 | O4: =كشاف!F21 -> 0 | P4: =كشاف!G21 -> 0 | Q4: =كشاف!H21 -> 0 | R4: =كشاف!I21 -> 0 | S4: =كشاف!J21 -> 0 | T4: =كشاف!K21 -> 0 | W4: =كشاف!D37 -> 0 | X4: =كشاف!E37 -> 0 | Y4: =كشاف!F37 -> 0 | Z4: =كشاف!G37 -> 0 | AA4: =كشاف!H37 -> 0 | AB4: =كشاف!I37 -> 0 | AC4: =كشاف!J37 -> 0 | AD4: =كشاف!K37 -> 0 | AG4: =كشاف!N37 -> ايمان عبدالناصر | AH4: =كشاف!O37 -> رضا ناجى | AI4: =كشاف!P37 -> رضا ناجى | AJ4: =كشاف!Q37 -> رضا ناجى | AK4: =كشاف!R37 -> رضا ناجى | AL4: =كشاف!S37 -> رضا ناجى | AM4: =كشاف!T37 -> رضا ناجى | AN4: =كشاف!V37 -> رضا ناجى
A5: =كشاف!BG8 -> 3/1 | B5: الأحد | C5: =كشاف!$M4 -> حساب | D5: =كشاف!$N4 -> حساب | E5: =كشاف!O4 -> عربي | F5: =كشاف!P4 -> عربي | G5: =كشاف!Q4 -> متعدد | H5: =كشاف!R4 -> متعدد | I5: =كشاف!S4 -> عربي | J5: =كشاف!T4 -> عربي | L5: الأحد | M5: =كشاف!M10 -> عربي | N5: =كشاف!N10 -> عربي | O5: =كشاف!O10 -> حساب | P5: =كشاف!P10 -> حساب | Q5: =كشاف!Q10 -> متعدد | R5: =كشاف!R10 -> E | S5: =كشاف!S10 -> دين | T5: =كشاف!T10 -> متعدد | V5: الأحد | W5: =كشاف!M26 -> العاب | X5: =كشاف!N26 -> متعدد | Y5: =كشاف!O26 -> توكاتسو | Z5: =كشاف!P26 -> عربي | AA5: =كشاف!Q26 -> عربي | AB5: =كشاف!R26 -> حساب | AC5: =كشاف!S26 -> حساب | AD5: =كشاف!T26 -> E | AF5: الأحد | AG5: =كشاف!W26 -> حساب | AH5: =كشاف!X26 -> عربي | AI5: =كشاف!Y26 -> عربي | AJ5: =كشاف!Z26 -> متعدد | AK5: =كشاف!AA26 -> E | AL5: =كشاف!AB26 -> متعدد | AM5: =كشاف!AC26 -> متعدد | AN5: =كشاف!AE26 -> دين
A6: =كشاف!BG9 -> 0 | C6: =كشاف!$M5 -> منال جمعه | D6: =كشاف!$N5 -> منال جمعه | E6: =كشاف!O5 -> منال جمعه | F6: =كشاف!P5 -> منال جمعه | G6: =كشاف!Q5 -> منال جمعه | H6: =كشاف!R5 -> منال جمعه | I6: =كشاف!S5 -> منال جمعه | J6: =كشاف!T5 -> منال جمعه | M6: =كشاف!M11 -> احمد سليمان | N6: =كشاف!N11 -> احمد سليمان | O6: =كشاف!O11 -> احمد سليمان | P6: =كشاف!P11 -> احمد سليمان | Q6: =كشاف!Q11 -> احمد سليمان | R6: =كشاف!R11 -> احمد ابراهيم | S6: =كشاف!S11 -> احمد سليمان | T6: =كشاف!T11 -> احمد سليمان | W6: =كشاف!M37 -> رضا ناجى | X6: =كشاف!N37 -> ايمان عبدالناصر | Y6: =كشاف!O37 -> رضا ناجى | Z6: =كشاف!P37 -> رضا ناجى | AA6: =كشاف!Q37 -> رضا ناجى | AB6: =كشاف!R37 -> رضا ناجى | AC6: =كشاف!S37 -> رضا ناجى | AD6: =كشاف!T37 -> رضا ناجى | AG6: =كشاف!W37 -> رضا ناجى | AH6: =كشاف!X37 -> رضا ناجى | AI6: =كشاف!Y37 -> ايمان عبدالناصر | AJ6: =كشاف!Z37 -> رضا ناجى | AK6: =كشاف!AA37 -> رضا ناجى | AL6: =كشاف!AB37 -> رضا ناجى | AM6: =كشاف!AC37 -> رضا ناجى | AN6: =كشاف!AE37 -> رضا ناجى
A7: =كشاف!BG10 -> 4/1 | B7: الإثنين | C7: =كشاف!V4 -> E | D7: =كشاف!N6 -> العاب | E7: =كشاف!O6 -> حساب | F7: =كشاف!P6 -> حساب | G7: =كشاف!Q6 -> عربي | H7: =كشاف!R6 -> عربي | I7: =كشاف!S6 -> E | J7: =كشاف!T6 -> دين | L7: الإثنين | M7: =كشاف!V10 -> حساب | N7: =كشاف!W10 -> حساب | O7: =كشاف!X10 -> متعدد | P7: =كشاف!Y10 -> متعدد | Q7: =كشاف!Z10 -> دين | R7: =كشاف!AA10 -> عربي | S7: =كشاف!AB10 -> عربي | T7: =كشاف!AC10 -> متعدد | V7: الإثنين | W7: =كشاف!V26 -> حساب | X7: =كشاف!W26 -> حساب | Y7: =كشاف!X26 -> عربي | Z7: =كشاف!Y26 -> عربي | AA7: =كشاف!Z26 -> متعدد | AB7: =كشاف!AA26 -> E | AC7: =كشاف!AB26 -> متعدد | AD7: =كشاف!AC26 -> متعدد | AF7: الإثنين | AG7: =كشاف!AF26 -> متعدد | AH7: =كشاف!AG26 -> العاب | AI7: =كشاف!AH26 -> متعدد | AJ7: =كشاف!AI26 -> عربي | AK7: =كشاف!AJ26 -> عربي | AL7: =كشاف!AK26 -> E | AM7: =كشاف!AL26 -> متعدد | AN7: =كشاف!AN26 -> حساب
A8: =كشاف!BG11 -> 0 | C8: =كشاف!V5 -> احمد ابراهيم | D8: =كشاف!N7 -> نورا كامل | E8: =كشاف!O7 -> نورا كامل | F8: =كشاف!P7 -> نورا كامل | G8: =كشاف!Q7 -> نورا كامل | H8: =كشاف!R7 -> نورا كامل | I8: =كشاف!S7 -> احمد ابراهيم | J8: =كشاف!T7 -> نورا كامل | M8: =كشاف!V11 -> احمد سليمان | N8: =كشاف!W11 -> احمد سليمان | O8: =كشاف!X11 -> احمد سليمان | P8: =كشاف!Y11 -> احمد سليمان | Q8: =كشاف!Z11 -> احمد سليمان | R8: =كشاف!AA11 -> احمد سليمان | S8: =كشاف!AB11 -> احمد سليمان | T8: =كشاف!AC11 -> احمد سليمان | W8: =كشاف!V37 -> رضا ناجى | X8: =كشاف!W37 -> رضا ناجى | Y8: =كشاف!X37 -> رضا ناجى | Z8: =كشاف!Y37 -> ايمان عبدالناصر | AA8: =كشاف!Z37 -> رضا ناجى | AB8: =كشاف!AA37 -> رضا ناجى | AC8: =كشاف!AB37 -> رضا ناجى | AD8: =كشاف!AC37 -> رضا ناجى | AG8: =كشاف!AF37 -> رضا ناجى | AH8: =كشاف!AG37 -> ايمان عبدالناصر | AI8: =كشاف!AH37 -> رضا ناجى | AJ8: =كشاف!AI37 -> رضا ناجى | AK8: =كشاف!AJ37 -> رضا ناجى | AL8: =كشاف!AK37 -> رضا ناجى | AM8: =كشاف!AL37 -> رضا ناجى | AN8: =كشاف!AN37 -> رضا ناجى
A9: =كشاف!BG12 -> 5/1 | B9: الثلاثاء | C9: =كشاف!M8 -> متعدد | D9: =كشاف!N8 -> متعدد | E9: =كشاف!O8 -> عربي | F9: =كشاف!P8 -> عربي | G9: =كشاف!Q8 -> متعدد | H9: =كشاف!R8 -> حساب | I9: =كشاف!S8 -> حساب | J9: =كشاف!T8 -> E | L9: الثلاثاء | M9: =كشاف!AE10 -> عربي | N9: =كشاف!AF10 -> عربي | O9: =كشاف!AG10 -> متعدد | P9: =كشاف!AH10 -> العاب | Q9: =كشاف!AI10 -> E | R9: =كشاف!AJ10 -> متعدد | S9: =كشاف!AK10 -> حساب | T9: =كشاف!AL20 -> حساب | V9: الثلاثاء | W9: =كشاف!AE26 -> دين | X9: =كشاف!AF26 -> متعدد | Y9: =كشاف!AG26 -> العاب | Z9: =كشاف!AH26 -> متعدد | AA9: =كشاف!AI26 -> عربي | AB9: =كشاف!AJ26 -> عربي | AC9: =كشاف!AK26 -> E | AD9: =كشاف!AL36 -> متعدد | AF9: الثلاثاء | AG9: =كشاف!AO26 -> حساب | AH9: =كشاف!AP26 -> متعدد | AI9: =كشاف!AQ26 -> متعدد | AJ9: =كشاف!AR26 -> عربي | AK9: =كشاف!AS26 -> عربي | AL9: =كشاف!AT26 -> عربي | AM9: =كشاف!AU26 -> عربي | AN9: =كشاف!AW36 -> متعدد
A10: =كشاف!BG13 -> 0 | C10: =كشاف!M9 -> فاطمه كامل | D10: =كشاف!N9 -> فاطمه كامل | E10: =كشاف!O9 -> فاطمه كامل | F10: =كشاف!P9 -> فاطمه كامل | G10: =كشاف!Q9 -> فاطمه كامل | H10: =كشاف!R9 -> فاطمه كامل | I10: =كشاف!S9 -> فاطمه كامل | J10: =كشاف!T9 -> احمد ابراهيم | M10: =كشاف!AE11 -> احمد سليمان | N10: =كشاف!AF11 -> احمد سليمان | O10: =كشاف!AG11 -> احمد سليمان | P10: =كشاف!AH11 -> احمد سليمان | Q10: =كشاف!AI11 -> احمد ابراهيم | R10: =كشاف!AJ11 -> احمد سليمان | S10: =كشاف!AK11 -> احمد سليمان | T10: =كشاف!AL21 -> اشجان احمد | W10: =كشاف!AE37 -> رضا ناجى | X10: =كشاف!AF37 -> رضا ناجى | Y10: =كشاف!AG37 -> ايمان عبدالناصر | Z10: =كشاف!AH37 -> رضا ناجى | AA10: =كشاف!AI37 -> رضا ناجى | AB10: =كشاف!AJ37 -> رضا ناجى | AC10: =كشاف!AK37 -> رضا ناجى | AD10: =كشاف!AL37 -> رضا ناجى | AG10: =كشاف!AO37 -> رضا ناجى | AH10: =كشاف!AP37 -> رضا ناجى | AI10: =كشاف!AQ37 -> رضا ناجى | AJ10: =كشاف!AR37 -> رضا ناجى | AK10: =كشاف!AS37 -> رضا ناجى | AL10: =كشاف!AT37 -> رضا ناجى | AM10: =كشاف!AU37 -> رضا ناجى | AN10: =كشاف!AW37 -> رضا ناجى
A11: =كشاف!BG14 -> 1/2 | B11: الأربعاء | C11: =كشاف!M10 -> عربي | D11: =كشاف!N10 -> عربي | E11: =كشاف!O10 -> حساب | F11: =كشاف!P10 -> حساب | G11: =كشاف!Q10 -> متعدد | H11: =كشاف!R10 -> E | I11: =كشاف!AT4 -> دين | J11: =كشاف!AU4 -> متعدد | L11: الأربعاء | M11: =كشاف!AN20 -> دين | N11: =كشاف!AO20 -> حساب | O11: =كشاف!AP20 -> حساب | P11: =كشاف!AQ20 -> E | Q11: =كشاف!AR20 -> عربي | R11: =كشاف!AS20 -> عربي | S11: =كشاف!AT20 -> متعدد | T11: =كشاف!AU20 -> متعدد | V11: الأربعاء | W11: =كشاف!AN36 -> متعدد | X11: =كشاف!AO36 -> دين | Y11: =كشاف!AP36 -> متعدد | Z11: =كشاف!AQ36 -> حساب | AA11: =كشاف!AR36 -> حساب | AB11: =كشاف!AS36 -> متعدد | AC11: =كشاف!AT36 -> عربي | AD11: =كشاف!AU36 -> عربي | AF11: الأربعاء | AG11: =كشاف!AX36 -> عربي | AH11: =كشاف!AY36 -> عربي | AI11: =كشاف!AZ36 -> حساب | AJ11: =كشاف!BA36 -> حساب | AK11: =كشاف!BB36 -> E | AL11: =كشاف!BC36 -> عربي | AM11: =كشاف!BD36 -> عربي | AN11: =كشاف!BE36 -> 0
A12: =كشاف!BG15 -> 0 | C12: =كشاف!M11 -> احمد سليمان | D12: =كشاف!N11 -> احمد سليمان | E12: =كشاف!O11 -> احمد سليمان | F12: =كشاف!P11 -> احمد سليمان | G12: =كشاف!Q11 -> احمد سليمان | H12: =كشاف!R11 -> احمد ابراهيم | I12: =كشاف!AT5 -> منال جمعه | J12: =كشاف!AU5 -> منال جمعه | M12: =كشاف!AN21 -> اشجان احمد | N12: =كشاف!AO21 -> اشجان احمد | O12: =كشاف!AP21 -> اشجان احمد | P12: =كشاف!AQ21 -> احمد ابراهيم | Q12: =كشاف!AR21 -> اشجان احمد | R12: =كشاف!AS21 -> اشجان احمد | S12: =كشاف!AT21 -> اشجان احمد | T12: =كشاف!AU21 -> اشجان احمد | W12: =كشاف!AN37 -> رضا ناجى | X12: =كشاف!AO37 -> رضا ناجى | Y12: =كشاف!AP37 -> رضا ناجى | Z12: =كشاف!AQ37 -> رضا ناجى | AA12: =كشاف!AR37 -> رضا ناجى | AB12: =كشاف!AS37 -> رضا ناجى | AC12: =كشاف!AT37 -> رضا ناجى | AD12: =كشاف!AU37 -> رضا ناجى | AG12: =كشاف!AX37 -> رضا ناجى | AH12: =كشاف!AY37 -> رضا ناجى | AI12: =كشاف!AZ37 -> رضا ناجى | AJ12: =كشاف!BA37 -> رضا ناجى | AK12: =كشاف!BB37 -> ايمان عبدالناصر | AL12: =كشاف!BC37 -> رضا ناجى | AM12: =كشاف!BD37 -> رضا ناجى | AN12: =كشاف!BE37 -> 0
A13: =كشاف!BG16 -> 2/2 | B13: الخميس | C13: =كشاف!AW4 -> متعدد | D13: =كشاف!AX4 -> العاب | E13: =كشاف!AY4 -> حساب | F13: =كشاف!AZ4 -> حساب | G13: =كشاف!BA4 -> عربي | L13: الخميس | M13: =كشاف!AW20 -> دين | N13: =كشاف!AX20 -> عربي | O13: =كشاف!AY20 -> عربي | P13: =كشاف!AZ20 -> E | Q13: =كشاف!BA20 -> متعدد | R13: =كشاف!AS22 -> عربي | S13: =كشاف!AT22 -> حساب | T13: =كشاف!AU22 -> حساب | V13: الخميس | W13: =كشاف!AW36 -> متعدد | X13: =كشاف!AX36 -> عربي | Y13: =كشاف!AY36 -> عربي | Z13: =كشاف!AZ36 -> حساب | AA13: =كشاف!BA36 -> حساب | AF13: الخميس | AG13: =كشاف!BF36 -> 0 | AH13: =كشاف!BG36 -> 6/3 | AI13: =كشاف!BH36 -> 0 | AJ13: =كشاف!BI36 -> 33 | AK13: =كشاف!BJ36 -> 0
A14: =كشاف!BG17 -> 0 | C14: =كشاف!AW5 -> منال جمعه | D14: =كشاف!AX5 -> منال جمعه | E14: =كشاف!AY5 -> منال جمعه | F14: =كشاف!AZ5 -> منال جمعه | G14: =كشاف!BA5 -> منال جمعه | M14: =كشاف!AW21 -> اشجان احمد | N14: =كشاف!AX21 -> اشجان احمد | O14: =كشاف!AY21 -> اشجان احمد | P14: =كشاف!AZ21 -> احمد ابراهيم | Q14: =كشاف!BA21 -> اشجان احمد | R14: =كشاف!AS23 -> زكيه سيد | S14: =كشاف!AT23 -> زكيه سيد | T14: =كشاف!AU23 -> زكيه سيد | W14: =كشاف!AW37 -> رضا ناجى | X14: =كشاف!AX37 -> رضا ناجى | Y14: =كشاف!AY37 -> رضا ناجى | Z14: =كشاف!AZ37 -> رضا ناجى | AA14: =كشاف!BA37 -> رضا ناجى | AG14: =كشاف!BF37 -> 0 | AH14: =كشاف!BG37 -> 0 | AI14: =كشاف!BH37 -> 0 | AJ14: =كشاف!BI37 -> 34 | AK14: =كشاف!BJ37 -> 0
A15: =كشاف!BG18 -> 3/2 | E15: جدول فصل | F15: =A3 -> 2/1 | G15: =A4 -> 0 | O15: جدول فصل | P15: =A19 -> 5/2 | Q15: =A20 -> 0 | Y15: جدول فصل | Z15: =A35 -> 7/3 | AA15: =A36 -> 0 | AI15: جدول فصل | AJ15: =A59 -> 6/5 | AK15: =J36 -> احمد سليمان
A16: =كشاف!BG19 -> 0 | B16: اليوم | C16: 1 | D16: 2 | E16: 3 | F16: 4 | G16: 5 | H16: 6 | I16: 7 | J16: 8 | L16: اليوم | M16: 1 | N16: 2 | O16: 3 | P16: 4 | Q16: 5 | R16: 6 | S16: 7 | T16: 8 | V16: اليوم | W16: 1 | X16: 2 | Y16: 3 | Z16: 4 | AA16: 5 | AB16: 6 | AC16: 7 | AD16: 8 | AF16: اليوم | AG16: 1 | AH16: 2 | AI16: 3 | AJ16: 4 | AK16: 5 | AL16: 6 | AM16: 7 | AN16: 8
A17: =كشاف!BG20 -> 4/2 | B17: السبت | C17: =كشاف!D6 -> 0 | D17: =كشاف!E6 -> 0 | E17: =كشاف!F6 -> 0 | F17: =كشاف!G6 -> 0 | G17: =كشاف!H6 -> 0 | H17: =كشاف!I6 -> 0 | I17: =كشاف!J6 -> 0 | J17: =كشاف!K6 -> 0 | L17: السبت | M17: =كشاف!D22 -> 0 | N17: =كشاف!E22 -> 0 | O17: =كشاف!F22 -> 0 | P17: =كشاف!G22 -> 0 | Q17: =كشاف!H22 -> 0 | R17: =كشاف!I22 -> 0 | S17: =كشاف!J22 -> 0 | T17: =كشاف!K22 -> 0 | V17: السبت | W17: =كشاف!D38 -> 0 | X17: =كشاف!E38 -> 0 | Y17: =كشاف!F38 -> 0 | Z17: =كشاف!G38 -> 0 | AA17: =كشاف!H38 -> 0 | AB17: =كشاف!I38 -> 0 | AC17: =كشاف!J38 -> 0 | AD17: =كشاف!K38 -> 0 | AF17: السبت | AG17: =كشاف!N38 -> عربي | AH17: =كشاف!O38 -> متعدد | AI17: =كشاف!P38 -> E | AJ17: =كشاف!Q38 -> متعدد | AK17: =كشاف!R38 -> عربي | AL17: =كشاف!S38 -> عربي | AM17: =كشاف!T38 -> متعدد | AN17: =كشاف!V38 -> العاب
A18: =كشاف!BG21 -> 0 | C18: =كشاف!D7 -> 0 | D18: =كشاف!E7 -> 0 | E18: =كشاف!F7 -> 0 | F18: =كشاف!G7 -> 0 | G18: =كشاف!H7 -> 0 | H18: =كشاف!I7 -> 0 | I18: =كشاف!J7 -> 0 | J18: =كشاف!K7 -> 0 | M18: =كشاف!D23 -> 0 | N18: =كشاف!E23 -> 0 | O18: =كشاف!F23 -> 0 | P18: =كشاف!G23 -> 0 | Q18: =كشاف!H23 -> 0 | R18: =كشاف!I23 -> 0 | S18: =كشاف!J23 -> 0 | T18: =كشاف!K23 -> 0 | W18: =كشاف!D39 -> 0 | X18: =كشاف!E39 -> 0 | Y18: =كشاف!F39 -> 0 | Z18: =كشاف!G39 -> 0 | AA18: =كشاف!H39 -> 0 | AB18: =كشاف!I39 -> 0 | AC18: =كشاف!J39 -> 0 | AD18: =كشاف!K39 -> 0 | AG18: =كشاف!N39 -> صابر صالح | AH18: =كشاف!O39 -> صابر صالح | AI18: =كشاف!P39 -> ايمان عبدالناصر | AJ18: =كشاف!Q39 -> صابر صالح | AK18: =كشاف!R39 -> صابر صالح | AL18: =كشاف!S39 -> صابر صالح | AM18: =كشاف!T39 -> صابر صالح | AN18: =كشاف!V39 -> صابر صالح
A19: =كشاف!BG22 -> 5/2 | B19: الأحد | C19: =كشاف!M6 -> متعدد | D19: =كشاف!N6 -> العاب | E19: =كشاف!O6 -> حساب | F19: =كشاف!P6 -> حساب | G19: =كشاف!Q6 -> عربي | H19: =كشاف!R6 -> عربي | I19: =كشاف!S6 -> E | J19: =كشاف!T6 -> دين | L19: الأحد | M19: =كشاف!M12 -> عربي | N19: =كشاف!N12 -> عربي | O19: =كشاف!O12 -> E | P19: =كشاف!P12 -> متعدد | Q19: =كشاف!Q12 -> توكاتسو | R19: =كشاف!R12 -> متعدد | S19: =كشاف!S12 -> حساب | T19: =كشاف!T12 -> حساب | V19: الأحد | W19: =كشاف!M38 -> عربي | X19: =كشاف!N38 -> عربي | Y19: =كشاف!O38 -> متعدد | Z19: =كشاف!P38 -> E | AA19: =كشاف!Q38 -> متعدد | AB19: =كشاف!R38 -> عربي | AC19: =كشاف!S38 -> عربي | AD19: =كشاف!T38 -> متعدد | AF19: الأحد | AG19: =كشاف!W38 -> E | AH19: =كشاف!X38 -> متعدد | AI19: =كشاف!Y38 -> دين | AJ19: =كشاف!Z38 -> عربي | AK19: =كشاف!AA38 -> عربي | AL19: =كشاف!AB38 -> حساب | AM19: =كشاف!AC38 -> حساب | AN19: =كشاف!AE38 -> توكاتسو
A20: =كشاف!BG23 -> 0 | C20: =كشاف!M7 -> نورا كامل | D20: =كشاف!N7 -> نورا كامل | E20: =كشاف!O7 -> نورا كامل | F20: =كشاف!P7 -> نورا كامل | G20: =كشاف!Q7 -> نورا كامل | H20: =كشاف!R7 -> نورا كامل | I20: =كشاف!S7 -> احمد ابراهيم | J20: =كشاف!T7 -> نورا كامل | M20: =كشاف!M13 -> اسماء جمال | N20: =كشاف!N13 -> اسماء جمال | O20: =كشاف!O13 -> احمد ابراهيم | P20: =كشاف!P13 -> اسماء جمال | Q20: =كشاف!Q13 -> اسماء جمال | R20: =كشاف!R13 -> اسماء جمال | S20: =كشاف!S13 -> اسماء جمال | T20: =كشاف!T13 -> اسماء جمال | W20: =كشاف!M39 -> صابر صالح | X20: =كشاف!N39 -> صابر صالح | Y20: =كشاف!O39 -> صابر صالح | Z20: =كشاف!P39 -> ايمان عبدالناصر | AA20: =كشاف!Q39 -> صابر صالح | AB20: =كشاف!R39 -> صابر صالح | AC20: =كشاف!S39 -> صابر صالح | AD20: =كشاف!T39 -> صابر صالح | AG20: =كشاف!W39 -> ايمان عبدالناصر | AH20: =كشاف!X39 -> صابر صالح | AI20: =كشاف!Y39 -> صابر صالح | AJ20: =كشاف!Z39 -> صابر صالح | AK20: =كشاف!AA39 -> صابر صالح | AL20: =كشاف!AB39 -> صابر صالح | AM20: =كشاف!AC39 -> صابر صالح | AN20: =كشاف!AE39 -> صابر صالح
A21: =كشاف!BG24 -> 6/2 | B21: الإثنين | C21: =كشاف!M8 -> متعدد | D21: =كشاف!N8 -> متعدد | E21: =كشاف!O8 -> عربي | F21: =كشاف!P8 -> عربي | G21: =كشاف!Q8 -> متعدد | H21: =كشاف!R8 -> حساب | I21: =كشاف!S8 -> حساب | J21: =كشاف!T8 -> E | L21: الإثنين | M21: =كشاف!V12 -> حساب | N21: =كشاف!W12 -> حساب | O21: =كشاف!X12 -> متعدد | P21: =كشاف!Y12 -> متعدد | Q21: =كشاف!Z12 -> E | R21: =كشاف!AA12 -> عربي | S21: =كشاف!AB12 -> عربي | T21: =كشاف!AC12 -> متعدد | V21: الإثنين | W21: =كشاف!V38 -> العاب | X21: =كشاف!W38 -> E | Y21: =كشاف!X38 -> متعدد | Z21: =كشاف!Y38 -> دين | AA21: =كشاف!Z38 -> عربي | AB21: =كشاف!AA38 -> عربي | AC21: =كشاف!AB38 -> حساب | AD21: =كشاف!AC38 -> حساب | AF21: الإثنين | AG21: =كشاف!AF38 -> متعدد | AH21: =كشاف!AG38 -> حساب | AI21: =كشاف!AH38 -> حساب | AJ21: =كشاف!AI38 -> متعدد | AK21: =كشاف!AJ38 -> عربي | AL21: =كشاف!AK38 -> عربي | AM21: =كشاف!AL38 -> E | AN21: =كشاف!AN38 -> دين
A22: =كشاف!BG25 -> 0 | C22: =كشاف!M9 -> فاطمه كامل | D22: =كشاف!N9 -> فاطمه كامل | E22: =كشاف!O9 -> فاطمه كامل | F22: =كشاف!P9 -> فاطمه كامل | G22: =كشاف!Q9 -> فاطمه كامل | H22: =كشاف!R9 -> فاطمه كامل | I22: =كشاف!S9 -> فاطمه كامل | J22: =كشاف!T9 -> احمد ابراهيم | M22: =كشاف!V13 -> اسماء جمال | N22: =كشاف!W13 -> اسماء جمال | O22: =كشاف!X13 -> اسماء جمال | P22: =كشاف!Y13 -> اسماء جمال | Q22: =كشاف!Z13 -> احمد ابراهيم | R22: =كشاف!AA13 -> اسماء جمال | S22: =كشاف!AB13 -> اسماء جمال | T22: =كشاف!AC13 -> اسماء جمال | W22: =كشاف!V39 -> صابر صالح | X22: =كشاف!W39 -> ايمان عبدالناصر | Y22: =كشاف!X39 -> صابر صالح | Z22: =كشاف!Y39 -> صابر صالح | AA22: =كشاف!Z39 -> صابر صالح | AB22: =كشاف!AA39 -> صابر صالح | AC22: =كشاف!AB39 -> صابر صالح | AD22: =كشاف!AC39 -> صابر صالح | AG22: =كشاف!AF39 -> صابر صالح | AH22: =كشاف!AG39 -> صابر صالح | AI22: =كشاف!AH39 -> صابر صالح | AJ22: =كشاف!AI39 -> صابر صالح | AK22: =كشاف!AJ39 -> صابر صالح | AL22: =كشاف!AK39 -> صابر صالح | AM22: =كشاف!AL39 -> ايمان عبدالناصر | AN22: =كشاف!AN39 -> صابر صالح
A23: =كشاف!BG26 -> 1/3 | B23: الثلاثاء | C23: =كشاف!M10 -> عربي | D23: =كشاف!N10 -> عربي | E23: =كشاف!O10 -> حساب | F23: =كشاف!P10 -> حساب | G23: =كشاف!Q10 -> متعدد | H23: =كشاف!R10 -> E | I23: =كشاف!S10 -> دين | J23: =كشاف!T10 -> متعدد | L23: الثلاثاء | M23: =كشاف!AE12 -> E | N23: =كشاف!AF12 -> دين | O23: =كشاف!AG12 -> حساب | P23: =كشاف!AH12 -> حساب | Q23: =كشاف!AI12 -> عربي | R23: =كشاف!AJ12 -> عربي | S23: =كشاف!AK12 -> متعدد | T23: =كشاف!AL22 -> متعدد | V23: الثلاثاء | W23: =كشاف!AE38 -> توكاتسو | X23: =كشاف!AF38 -> متعدد | Y23: =كشاف!AG38 -> حساب | Z23: =كشاف!AH38 -> حساب | AA23: =كشاف!AI38 -> متعدد | AB23: =كشاف!AJ38 -> عربي | AC23: =كشاف!AK38 -> عربي | AD23: =كشاف!AL38 -> E | AF23: الثلاثاء | AG23: =كشاف!AO38 -> حساب | AH23: =كشاف!AP38 -> حساب | AI23: =كشاف!AQ38 -> متعدد | AJ23: =كشاف!AR38 -> متعدد | AK23: =كشاف!AS38 -> E | AL23: =كشاف!AT38 -> عربي | AM23: =كشاف!AU38 -> عربي | AN23: =كشاف!AW38 -> عربي
A24: =كشاف!BG27 -> 0 | C24: =كشاف!M11 -> احمد سليمان | D24: =كشاف!N11 -> احمد سليمان | E24: =كشاف!O11 -> احمد سليمان | F24: =كشاف!P11 -> احمد سليمان | G24: =كشاف!Q11 -> احمد سليمان | H24: =كشاف!R11 -> احمد ابراهيم | I24: =كشاف!S11 -> احمد سليمان | J24: =كشاف!T11 -> احمد سليمان | M24: =كشاف!AE13 -> احمد ابراهيم | N24: =كشاف!AF13 -> اسماء جمال | O24: =كشاف!AG13 -> اسماء جمال | P24: =كشاف!AH13 -> اسماء جمال | Q24: =كشاف!AI13 -> اسماء جمال | R24: =كشاف!AJ13 -> اسماء جمال | S24: =كشاف!AK13 -> اسماء جمال | T24: =كشاف!AL23 -> زكيه سيد | W24: =كشاف!AE39 -> صابر صالح | X24: =كشاف!AF39 -> صابر صالح | Y24: =كشاف!AG39 -> صابر صالح | Z24: =كشاف!AH39 -> صابر صالح | AA24: =كشاف!AI39 -> صابر صالح | AB24: =كشاف!AJ39 -> صابر صالح | AC24: =كشاف!AK39 -> صابر صالح | AD24: =كشاف!AL39 -> ايمان عبدالناصر | AG24: =كشاف!AO39 -> صابر صالح | AH24: =كشاف!AP39 -> صابر صالح | AI24: =كشاف!AQ39 -> صابر صالح | AJ24: =كشاف!AR39 -> صابر صالح | AK24: =كشاف!AS39 -> ايمان عبدالناصر | AL24: =كشاف!AT39 -> صابر صالح | AM24: =كشاف!AU39 -> صابر صالح | AN24: =كشاف!AW39 -> صابر صالح
A25: =كشاف!BG28 -> 2/3 | B25: الأربعاء | C25: =كشاف!AN6 -> حساب | D25: =كشاف!AO6 -> حساب | E25: =كشاف!AP6 -> متعدد | F25: =كشاف!AQ6 -> متعدد | G25: =كشاف!AR6 -> توكاتسو | H25: =كشاف!AS6 -> عربي | I25: =كشاف!AT6 -> عربي | J25: =كشاف!AU6 -> دين | L25: الأربعاء | M25: =كشاف!AN22 -> دين | N25: =كشاف!AO22 -> E | O25: =كشاف!AP22 -> متعدد | P25: =كشاف!AQ22 -> متعدد | Q25: =كشاف!AR22 -> عربي | R25: =كشاف!AS22 -> عربي | S25: =كشاف!AT22 -> حساب | T25: =كشاف!AU22 -> حساب | V25: الأربعاء | W25: =كشاف!AN38 -> دين | X25: =كشاف!AO38 -> حساب | Y25: =كشاف!AP38 -> حساب | Z25: =كشاف!AQ38 -> متعدد | AA25: =كشاف!AR38 -> متعدد | AB25: =كشاف!AS38 -> E | AC25: =كشاف!AT38 -> عربي | AD25: =كشاف!AU38 -> عربي | AF25: الأربعاء | AG25: =كشاف!AX38 -> عربي | AH25: =كشاف!AY38 -> متعدد | AI25: =كشاف!AZ38 -> متعدد | AJ25: =كشاف!BA38 -> متعدد | AK25: =كشاف!BB38 -> العاب | AL25: =كشاف!BC38 -> حساب | AM25: =كشاف!BD38 -> حساب | AN25: =كشاف!BE38 -> 0
A26: =كشاف!BG29 -> 0 | C26: =كشاف!AN7 -> نورا كامل | D26: =كشاف!AO7 -> نورا كامل | E26: =كشاف!AP7 -> نورا كامل | F26: =كشاف!AQ7 -> نورا كامل | G26: =كشاف!AR7 -> نورا كامل | H26: =كشاف!AS7 -> نورا كامل | I26: =كشاف!AT7 -> نورا كامل | J26: =كشاف!AU7 -> نورا كامل | M26: =كشاف!AN23 -> زكيه سيد | N26: =كشاف!AO23 -> ايمان عبدالناصر | O26: =كشاف!AP23 -> زكيه سيد | P26: =كشاف!AQ23 -> زكيه سيد | Q26: =كشاف!AR23 -> زكيه سيد | R26: =كشاف!AS23 -> زكيه سيد | S26: =كشاف!AT23 -> زكيه سيد | T26: =كشاف!AU23 -> زكيه سيد | W26: =كشاف!AN39 -> صابر صالح | X26: =كشاف!AO39 -> صابر صالح | Y26: =كشاف!AP39 -> صابر صالح | Z26: =كشاف!AQ39 -> صابر صالح | AA26: =كشاف!AR39 -> صابر صالح | AB26: =كشاف!AS39 -> ايمان عبدالناصر | AC26: =كشاف!AT39 -> صابر صالح | AD26: =كشاف!AU39 -> صابر صالح | AG26: =كشاف!AX39 -> صابر صالح | AH26: =كشاف!AY39 -> صابر صالح | AI26: =كشاف!AZ39 -> صابر صالح | AJ26: =كشاف!BA39 -> صابر صالح | AK26: =كشاف!BB39 -> صابر صالح | AL26: =كشاف!BC39 -> صابر صالح | AM26: =كشاف!BD39 -> صابر صالح | AN26: =كشاف!BE39 -> 0
A27: =كشاف!BG30 -> 3/3 | B27: الخميس | C27: =كشاف!AW6 -> E | D27: =كشاف!AX6 -> عربي | E27: =كشاف!AY6 -> عربي | F27: =كشاف!AZ6 -> متعدد | G27: =كشاف!BA6 -> متعدد | L27: الخميس | M27: =كشاف!AW22 -> عربي | N27: =كشاف!AX22 -> عربي | O27: =كشاف!AY22 -> توكاتسو | P27: =كشاف!AZ22 -> متعدد | Q27: =كشاف!BA22 -> E | R27: =كشاف!AS24 -> عربي | S27: =كشاف!AT24 -> عربي | T27: =كشاف!AU24 -> متعدد | V27: الخميس | W27: =كشاف!AW38 -> عربي | X27: =كشاف!AX38 -> عربي | Y27: =كشاف!AY38 -> متعدد | Z27: =كشاف!AZ38 -> متعدد | AA27: =كشاف!BA38 -> متعدد | AF27: الخميس | AG27: =كشاف!BF38 -> 0 | AH27: =كشاف!BG38 -> 7/3 | AI27: =كشاف!BH38 -> 0 | AJ27: =كشاف!BI38 -> 35 | AK27: =كشاف!BJ38 -> 0
A28: =كشاف!BG31 -> 0 | C28: =كشاف!AW7 -> احمد ابراهيم | D28: =كشاف!AX7 -> نورا كامل | E28: =كشاف!AY7 -> نورا كامل | F28: =كشاف!AZ7 -> نورا كامل | G28: =كشاف!BA7 -> نورا كامل | M28: =كشاف!AW23 -> زكيه سيد | N28: =كشاف!AX23 -> زكيه سيد | O28: =كشاف!AY23 -> زكيه سيد | P28: =كشاف!AZ23 -> زكيه سيد | Q28: =كشاف!BA23 -> ايمان عبدالناصر | R28: =كشاف!AS25 -> مصطفى جمعه | S28: =كشاف!AT25 -> مصطفى جمعه | T28: =كشاف!AU25 -> مصطفى جمعه | W28: =كشاف!AW39 -> صابر صالح | X28: =كشاف!AX39 -> صابر صالح | Y28: =كشاف!AY39 -> صابر صالح | Z28: =كشاف!AZ39 -> صابر صالح | AA28: =كشاف!BA39 -> صابر صالح | AG28: =كشاف!BF39 -> 0 | AH28: =كشاف!BG39 -> 0 | AI28: =كشاف!BH39 -> 0 | AJ28: =كشاف!BI39 -> 36 | AK28: =كشاف!BJ39 -> 0
A29: =كشاف!BG32 -> 4/3 | E29: جدول فصل | F29: =A5 -> 3/1 | G29: =A6 -> 0 | O29: جدول فصل | P29: =A21 -> 6/2 | Q29: =A22 -> 0 | Y29: جدول فصل | Z29: =A37 -> 1/4 | AA29: =A38 -> 0 | AI29: جدول فصل | AK29: =J38 -> اسماء جمال
A30: =كشاف!BG33 -> 0 | B30: اليوم | C30: 1 | D30: 2 | E30: 3 | F30: 4 | G30: 5 | H30: 6 | I30: 7 | J30: 8 | L30: اليوم | M30: 1 | N30: 2 | O30: 3 | P30: 4 | Q30: 5 | R30: 6 | S30: 7 | T30: 8 | V30: اليوم | W30: 1 | X30: 2 | Y30: 3 | Z30: 4 | AA30: 5 | AB30: 6 | AC30: 7 | AD30: 8 | AF30: اليوم | AG30: 1 | AH30: 2 | AI30: 3 | AJ30: 4 | AK30: 5 | AL30: 6 | AM30: 7 | AN30: 8
A31: =كشاف!BG34 -> 5/3 | B31: السبت | C31: =كشاف!D8 -> 0 | D31: =كشاف!E8 -> 0 | E31: =كشاف!F8 -> 0 | F31: =كشاف!G8 -> 0 | G31: =كشاف!H8 -> 0 | H31: =كشاف!I8 -> 0 | I31: =كشاف!J8 -> 0 | J31: =كشاف!K8 -> 0 | L31: السبت | M31: =كشاف!D24 -> 0 | N31: =كشاف!E24 -> 0 | O31: =كشاف!F24 -> 0 | P31: =كشاف!G24 -> 0 | Q31: =كشاف!H24 -> 0 | R31: =كشاف!I24 -> 0 | S31: =كشاف!J24 -> 0 | T31: =كشاف!K24 -> 0 | V31: السبت | W31: =كشاف!D40 -> 0 | X31: =كشاف!E40 -> 0 | Y31: =كشاف!F40 -> 0 | Z31: =كشاف!G40 -> 0 | AA31: =كشاف!H40 -> 0 | AB31: =كشاف!I40 -> 0 | AC31: =كشاف!J40 -> 0 | AD31: =كشاف!K40 -> 0 | AF31: السبت | AG31: =كشاف!N40 -> علوم | AH31: =كشاف!O40 -> دراسات | AI31: =كشاف!P40 -> عربي | AJ31: =كشاف!Q40 -> E | AK31: =كشاف!R40 -> رسم | AL31: =كشاف!S40 -> عربي | AM31: =كشاف!T40 -> دين | AN31: =كشاف!V40 -> علوم
A32: =كشاف!BG35 -> 0 | C32: =كشاف!D9 -> 0 | D32: =كشاف!E9 -> 0 | E32: =كشاف!F9 -> 0 | F32: =كشاف!G9 -> 0 | G32: =كشاف!H9 -> 0 | H32: =كشاف!I9 -> 0 | I32: =كشاف!J9 -> 0 | J32: =كشاف!K9 -> 0 | M32: =كشاف!D25 -> 0 | N32: =كشاف!E25 -> 0 | O32: =كشاف!F25 -> 0 | P32: =كشاف!G25 -> 0 | Q32: =كشاف!H25 -> 0 | R32: =كشاف!I25 -> 0 | S32: =كشاف!J25 -> 0 | T32: =كشاف!K25 -> 0 | W32: =كشاف!D41 -> 0 | X32: =كشاف!E41 -> 0 | Y32: =كشاف!F41 -> 0 | Z32: =كشاف!G41 -> 0 | AA32: =كشاف!H41 -> 0 | AB32: =كشاف!I41 -> 0 | AC32: =كشاف!J41 -> 0 | AD32: =كشاف!K41 -> 0 | AG32: =كشاف!N41 -> اسماء جمال | AH32: =كشاف!O41 -> احمد ابراهيم | AI32: =كشاف!P41 -> مصطفى جمعه | AJ32: =كشاف!Q41 -> ايمان عبدالناصر | AK32: =كشاف!R41 -> مصطفى جمعه | AL32: =كشاف!S41 -> مصطفى جمعه | AM32: =كشاف!T41 -> مصطفى جمعه | AN32: =كشاف!V41 -> اسماء جمال
A33: =كشاف!BG36 -> 6/3 | B33: الأحد | C33: =كشاف!M8 -> متعدد | D33: =كشاف!N8 -> متعدد | E33: =كشاف!O8 -> عربي | F33: =كشاف!P8 -> عربي | G33: =كشاف!Q8 -> متعدد | H33: =كشاف!R8 -> حساب | I33: =كشاف!S8 -> حساب | J33: =كشاف!T8 -> E | L33: الأحد | M33: =كشاف!M14 -> E | N33: =كشاف!N14 -> متعدد | O33: =كشاف!O14 -> متعدد | P33: =كشاف!P14 -> متعدد | Q33: =كشاف!Q14 -> دين | R33: =كشاف!R14 -> عربي | S33: =كشاف!S14 -> عربي | T33: =كشاف!T14 -> توكاتسو | V33: الأحد | W33: =كشاف!M40 -> حساب | X33: =كشاف!N40 -> علوم | Y33: =كشاف!O40 -> دراسات | Z33: =كشاف!P40 -> عربي | AA33: =كشاف!Q40 -> E | AB33: =كشاف!R40 -> رسم | AC33: =كشاف!S40 -> عربي | AD33: =كشاف!T40 -> دين | AF33: الأحد | AG33: =كشاف!W40 -> عربي | AH33: =كشاف!X40 -> مهارات | AI33: =كشاف!Y40 -> تكنولوجيا | AJ33: =كشاف!Z40 -> E | AK33: =كشاف!AA40 -> حساب | AL33: =كشاف!AB40 -> عربي | AM33: =كشاف!AC40 -> توكاتسو | AN33: =كشاف!AE40 -> عربي
A34: =كشاف!BG37 -> 0 | C34: =كشاف!M9 -> فاطمه كامل | D34: =كشاف!N9 -> فاطمه كامل | E34: =كشاف!O9 -> فاطمه كامل | F34: =كشاف!P9 -> فاطمه كامل | G34: =كشاف!Q9 -> فاطمه كامل | H34: =كشاف!R9 -> فاطمه كامل | I34: =كشاف!S9 -> فاطمه كامل | J34: =كشاف!T9 -> احمد ابراهيم | M34: =كشاف!M15 -> احمد ابراهيم | N34: =كشاف!N15 -> محمد صبحي | O34: =كشاف!O15 -> محمد صبحي | P34: =كشاف!P15 -> محمد صبحي | Q34: =كشاف!Q15 -> محمد صبحي | R34: =كشاف!R15 -> محمد صبحي | S34: =كشاف!S15 -> محمد صبحي | T34: =كشاف!T15 -> محمد صبحي | W34: =كشاف!M41 -> محمود عبدالهادى | X34: =كشاف!N41 -> اسماء جمال | Y34: =كشاف!O41 -> احمد ابراهيم | Z34: =كشاف!P41 -> مصطفى جمعه | AA34: =كشاف!Q41 -> ايمان عبدالناصر | AB34: =كشاف!R41 -> مصطفى جمعه | AC34: =كشاف!S41 -> مصطفى جمعه | AD34: =كشاف!T41 -> مصطفى جمعه | AG34: =كشاف!W41 -> مصطفى جمعه | AH34: =كشاف!X41 -> صلاح شعبان:صبرى سعيد | AI34: =كشاف!Y41 -> كوثر سعيد | AJ34: =كشاف!Z41 -> ايمان عبدالناصر | AK34: =كشاف!AA41 -> محمود عبدالهادى | AL34: =كشاف!AB41 -> مصطفى جمعه | AM34: =كشاف!AC41 -> نورا كامل | AN34: =كشاف!AE41 -> مصطفى جمعه
A35: =كشاف!BG38 -> 7/3 | B35: الإثنين | C35: =كشاف!M10 -> عربي | D35: =كشاف!N10 -> عربي | E35: =كشاف!O10 -> حساب | F35: =كشاف!P10 -> حساب | G35: =كشاف!Q10 -> متعدد | H35: =كشاف!R10 -> E | I35: =كشاف!S10 -> دين | J35: =كشاف!T10 -> متعدد | L35: الإثنين | M35: =كشاف!V14 -> متعدد | N35: =كشاف!W14 -> حساب | O35: =كشاف!X14 -> حساب | P35: =كشاف!Y14 -> عربي | Q35: =كشاف!Z14 -> عربي | R35: =كشاف!AA14 -> عربي | S35: =كشاف!AB14 -> عربي | T35: =كشاف!AC14 -> E | V35: الإثنين | W35: =كشاف!V40 -> علوم | X35: =كشاف!W40 -> عربي | Y35: =كشاف!X40 -> مهارات | Z35: =كشاف!Y40 -> تكنولوجيا | AA35: =كشاف!Z40 -> E | AB35: =كشاف!AA40 -> حساب | AC35: =كشاف!AB40 -> عربي | AD35: =كشاف!AC40 -> توكاتسو | AF35: الإثنين | AG35: =كشاف!AF40 -> عربي | AH35: =كشاف!AG40 -> رسم | AI35: =كشاف!AH40 -> E | AJ35: =كشاف!AI40 -> موسيقى | AK35: =كشاف!AJ40 -> حساب | AL35: =كشاف!AK40 -> علوم | AM35: =كشاف!AL40 -> العاب | AN35: =كشاف!AN40 -> تكنولوجيا
A36: =كشاف!BG39 -> 0 | C36: =كشاف!M11 -> احمد سليمان | D36: =كشاف!N11 -> احمد سليمان | E36: =كشاف!O11 -> احمد سليمان | F36: =كشاف!P11 -> احمد سليمان | G36: =كشاف!Q11 -> احمد سليمان | H36: =كشاف!R11 -> احمد ابراهيم | I36: =كشاف!S11 -> احمد سليمان | J36: =كشاف!T11 -> احمد سليمان | M36: =كشاف!V15 -> محمد صبحي | N36: =كشاف!W15 -> محمد صبحي | O36: =كشاف!X15 -> محمد صبحي | P36: =كشاف!Y15 -> محمد صبحي | Q36: =كشاف!Z15 -> محمد صبحي | R36: =كشاف!AA15 -> محمد صبحي | S36: =كشاف!AB15 -> محمد صبحي | T36: =كشاف!AC15 -> احمد ابراهيم | W36: =كشاف!V41 -> اسماء جمال | X36: =كشاف!W41 -> مصطفى جمعه | Y36: =كشاف!X41 -> صلاح شعبان:صبرى سعيد | Z36: =كشاف!Y41 -> كوثر سعيد | AA36: =كشاف!Z41 -> ايمان عبدالناصر | AB36: =كشاف!AA41 -> محمود عبدالهادى | AC36: =كشاف!AB41 -> مصطفى جمعه | AD36: =كشاف!AC41 -> نورا كامل | AG36: =كشاف!AF41 -> مصطفى جمعه | AH36: =كشاف!AG41 -> مصطفى جمعه | AI36: =كشاف!AH41 -> ايمان عبدالناصر | AJ36: =كشاف!AI41 -> مصطفى جمعه | AK36: =كشاف!AJ41 -> محمود عبدالهادى | AL36: =كشاف!AK41 -> اسماء جمال | AM36: =كشاف!AL41 -> ابوبكر عزت | AN36: =كشاف!AN41 -> كوثر سعيد
A37: =كشاف!BG40 -> 1/4 | B37: الثلاثاء | C37: =كشاف!M12 -> عربي | D37: =كشاف!N12 -> عربي | E37: =كشاف!O12 -> E | F37: =كشاف!P12 -> متعدد | G37: =كشاف!Q12 -> توكاتسو | H37: =كشاف!R12 -> متعدد | I37: =كشاف!S12 -> حساب | J37: =كشاف!T12 -> حساب | L37: الثلاثاء | M37: =كشاف!AE14 -> متعدد | N37: =كشاف!AF14 -> E | O37: =كشاف!AG14 -> العاب | P37: =كشاف!AH14 -> حساب | Q37: =كشاف!AI14 -> حساب | R37: =كشاف!AJ14 -> متعدد | S37: =كشاف!AK14 -> عربي | T37: =كشاف!AL24 -> متعدد | V37: الثلاثاء | W37: =كشاف!AE40 -> عربي | X37: =كشاف!AF40 -> عربي | Y37: =كشاف!AG40 -> رسم | Z37: =كشاف!AH40 -> E | AA37: =كشاف!AI40 -> موسيقى | AB37: =كشاف!AJ40 -> حساب | AC37: =كشاف!AK40 -> علوم | AD37: =كشاف!AL40 -> العاب | AF37: الثلاثاء | AG37: =كشاف!AO40 -> دراسات | AH37: =كشاف!AP40 -> عربي | AI37: =كشاف!AQ40 -> علوم | AJ37: =كشاف!AR40 -> حساب | AK37: =كشاف!AS40 -> عربي | AL37: =كشاف!AT40 -> حساب | AM37: =كشاف!AU40 -> قيم | AN37: =كشاف!AW40 -> دراسات
A38: =كشاف!BG41 -> 0 | C38: =كشاف!M13 -> اسماء جمال | D38: =كشاف!N13 -> اسماء جمال | E38: =كشاف!O13 -> احمد ابراهيم | F38: =كشاف!P13 -> اسماء جمال | G38: =كشاف!Q13 -> اسماء جمال | H38: =كشاف!R13 -> اسماء جمال | I38: =كشاف!S13 -> اسماء جمال | J38: =كشاف!T13 -> اسماء جمال | M38: =كشاف!AE15 -> محمد صبحي | N38: =كشاف!AF15 -> احمد ابراهيم | O38: =كشاف!AG15 -> محمد صبحي | P38: =كشاف!AH15 -> محمد صبحي | Q38: =كشاف!AI15 -> محمد صبحي | R38: =كشاف!AJ15 -> محمد صبحي | S38: =كشاف!AK15 -> محمد صبحي | T38: =كشاف!AL25 -> مصطفى جمعه | W38: =كشاف!AE41 -> مصطفى جمعه | X38: =كشاف!AF41 -> مصطفى جمعه | Y38: =كشاف!AG41 -> مصطفى جمعه | Z38: =كشاف!AH41 -> ايمان عبدالناصر | AA38: =كشاف!AI41 -> مصطفى جمعه | AB38: =كشاف!AJ41 -> محمود عبدالهادى | AC38: =كشاف!AK41 -> اسماء جمال | AD38: =كشاف!AL41 -> ابوبكر عزت | AG38: =كشاف!AO41 -> احمد ابراهيم | AH38: =كشاف!AP41 -> مصطفى جمعه | AI38: =كشاف!AQ41 -> اسماء جمال | AJ38: =كشاف!AR41 -> محمود عبدالهادى | AK38: =كشاف!AS41 -> مصطفى جمعه | AL38: =كشاف!AT41 -> محمود عبدالهادى | AM38: =كشاف!AU41 -> مصطفى جمعه | AN38: =كشاف!AW41 -> احمد ابراهيم
A39: =كشاف!BG42 -> 2/4 | B39: الأربعاء | C39: =كشاف!AN8 -> عربي | D39: =كشاف!AO8 -> عربي | E39: =كشاف!AP8 -> متعدد | F39: =كشاف!AQ8 -> متعدد | G39: =كشاف!AR8 -> E | H39: =كشاف!AS8 -> عربي | I39: =كشاف!AT8 -> عربي | J39: =كشاف!AU8 -> متعدد | L39: الأربعاء | M39: =كشاف!AN24 -> عربي | N39: =كشاف!AO24 -> عربي | O39: =كشاف!AP24 -> حساب | P39: =كشاف!AQ24 -> حساب | Q39: =كشاف!AR24 -> E | R39: =كشاف!AS24 -> عربي | S39: =كشاف!AT24 -> عربي | T39: =كشاف!AU24 -> متعدد | V39: الأربعاء | W39: =كشاف!AN40 -> تكنولوجيا | X39: =كشاف!AO40 -> دراسات | Y39: =كشاف!AP40 -> عربي | Z39: =كشاف!AQ40 -> علوم | AA39: =كشاف!AR40 -> حساب | AB39: =كشاف!AS40 -> عربي | AC39: =كشاف!AT40 -> حساب | AD39: =كشاف!AU40 -> قيم | AF39: الأربعاء | AG39: =كشاف!AX40 -> مهارات | AH39: =كشاف!AY40 -> عربي | AI39: =كشاف!AZ40 -> عربي | AJ39: =كشاف!BA40 -> دين | AK39: =كشاف!BB40 -> العاب | AL39: =كشاف!BC40 -> حساب | AM39: =كشاف!BD40 -> E | AN39: =كشاف!BE40 -> 0
A40: =كشاف!BG43 -> 0 | C40: =كشاف!AN9 -> فاطمه كامل | D40: =كشاف!AO9 -> فاطمه كامل | E40: =كشاف!AP9 -> فاطمه كامل | F40: =كشاف!AQ9 -> فاطمه كامل | G40: =كشاف!AR9 -> احمد ابراهيم | H40: =كشاف!AS9 -> فاطمه كامل | I40: =كشاف!AT9 -> فاطمه كامل | J40: =كشاف!AU9 -> فاطمه كامل | M40: =كشاف!AN25 -> مصطفى جمعه | N40: =كشاف!AO25 -> مصطفى جمعه | O40: =كشاف!AP25 -> مصطفى جمعه | P40: =كشاف!AQ25 -> مصطفى جمعه | Q40: =كشاف!AR25 -> ايمان عبدالناصر | R40: =كشاف!AS25 -> مصطفى جمعه | S40: =كشاف!AT25 -> مصطفى جمعه | T40: =كشاف!AU25 -> مصطفى جمعه | W40: =كشاف!AN41 -> كوثر سعيد | X40: =كشاف!AO41 -> احمد ابراهيم | Y40: =كشاف!AP41 -> مصطفى جمعه | Z40: =كشاف!AQ41 -> اسماء جمال | AA40: =كشاف!AR41 -> محمود عبدالهادى | AB40: =كشاف!AS41 -> مصطفى جمعه | AC40: =كشاف!AT41 -> محمود عبدالهادى | AD40: =كشاف!AU41 -> مصطفى جمعه | AG40: =كشاف!AX41 -> صلاح شعبان:صبرى سعيد | AH40: =كشاف!AY41 -> مصطفى جمعه | AI40: =كشاف!AZ41 -> مصطفى جمعه | AJ40: =كشاف!BA41 -> مصطفى جمعه | AK40: =كشاف!BB41 -> ابوبكر عزت | AL40: =كشاف!BC41 -> محمود عبدالهادى | AM40: =كشاف!BD41 -> ايمان عبدالناصر | AN40: =كشاف!BE41 -> 0
A41: =كشاف!BG44 -> 3/4 | B41: الخميس | C41: =كشاف!AW8 -> عربي | D41: =كشاف!AX8 -> عربي | E41: =كشاف!AY8 -> حساب | F41: =كشاف!AZ8 -> حساب | G41: =كشاف!BA8 -> E | L41: الخميس | M41: =كشاف!AW24 -> عربي | N41: =كشاف!AX24 -> عربي | O41: =كشاف!AY24 -> حساب | P41: =كشاف!AZ24 -> حساب | Q41: =كشاف!BA24 -> متعدد | V41: الخميس | W41: =كشاف!AW40 -> دراسات | X41: =كشاف!AX40 -> مهارات | Y41: =كشاف!AY40 -> عربي | Z41: =كشاف!AZ40 -> عربي | AA41: =كشاف!BA40 -> دين | AF41: الخميس | AG41: =كشاف!BF40 -> 0 | AH41: =كشاف!BG40 -> 1/4 | AI41: =كشاف!BH40 -> 0 | AJ41: =كشاف!BI40 -> 37 | AK41: =كشاف!BJ40 -> 0
A42: =كشاف!BG45 -> 0 | C42: =كشاف!AW9 -> فاطمه كامل | D42: =كشاف!AX9 -> فاطمه كامل | E42: =كشاف!AY9 -> فاطمه كامل | F42: =كشاف!AZ9 -> فاطمه كامل | G42: =كشاف!BA9 -> احمد ابراهيم | M42: =كشاف!AW25 -> مصطفى جمعه | N42: =كشاف!AX25 -> مصطفى جمعه | O42: =كشاف!AY25 -> مصطفى جمعه | P42: =كشاف!AZ25 -> مصطفى جمعه | Q42: =كشاف!BA25 -> مصطفى جمعه | W42: =كشاف!AW41 -> احمد ابراهيم | X42: =كشاف!AX41 -> صلاح شعبان:صبرى سعيد | Y42: =كشاف!AY41 -> مصطفى جمعه | Z42: =كشاف!AZ41 -> مصطفى جمعه | AA42: =كشاف!BA41 -> مصطفى جمعه | AG42: =كشاف!BF41 -> 0 | AH42: =كشاف!BG41 -> 0 | AI42: =كشاف!BH41 -> 0 | AJ42: =كشاف!BI41 -> 38 | AK42: =كشاف!BJ41 -> 0
A43: =كشاف!BG46 -> 4/4 | E43: جدول فصل | F43: =A7 -> 4/1 | G43: =A8 -> 0 | O43: جدول فصل | P43: =A23 -> 1/3 | Q43: =A24 -> 0 | Y43: جدول فصل | Z43: =A39 -> 2/4 | AA43: =A40 -> 0 | AI43: جدول فصل | AJ43: =J39 -> متعدد | AK43: =J40 -> فاطمه كامل
A44: =كشاف!BG47 -> 0 | B44: اليوم | C44: 1 | D44: 2 | E44: 3 | F44: 4 | G44: 5 | H44: 6 | I44: 7 | J44: 8 | L44: اليوم | M44: 1 | N44: 2 | O44: 3 | P44: 4 | Q44: 5 | R44: 6 | S44: 7 | T44: 8 | V44: اليوم | W44: 1 | X44: 2 | Y44: 3 | Z44: 4 | AA44: 5 | AB44: 6 | AC44: 7 | AD44: 8 | AF44: اليوم | AG44: 1 | AH44: 2 | AI44: 3 | AJ44: 4 | AK44: 5 | AL44: 6 | AM44: 7 | AN44: 8
A45: =كشاف!BG48 -> 5/4 | B45: السبت | C45: =كشاف!D10 -> 0 | D45: =كشاف!E10 -> 0 | E45: =كشاف!F10 -> 0 | F45: =كشاف!G10 -> 0 | G45: =كشاف!H10 -> 0 | H45: =كشاف!I10 -> 0 | I45: =كشاف!J10 -> 0 | J45: =كشاف!K10 -> 0 | L45: السبت | M45: =كشاف!D26 -> 0 | N45: =كشاف!E26 -> 0 | O45: =كشاف!F26 -> 0 | P45: =كشاف!G26 -> 0 | Q45: =كشاف!H26 -> 0 | R45: =كشاف!I26 -> 0 | S45: =كشاف!J26 -> 0 | T45: =كشاف!K26 -> 0 | V45: السبت | W45: =كشاف!D42 -> 0 | X45: =كشاف!E42 -> 0 | Y45: =كشاف!F42 -> 0 | Z45: =كشاف!G42 -> 0 | AA45: =كشاف!H42 -> 0 | AB45: =كشاف!I42 -> 0 | AC45: =كشاف!J42 -> 0 | AD45: =كشاف!K42 -> 0 | AF45: السبت | AG45: =كشاف!N42 -> عربي | AH45: =كشاف!O42 -> عربي | AI45: =كشاف!P42 -> حساب | AJ45: =كشاف!Q42 -> دين | AK45: =كشاف!R42 -> رسم | AL45: =كشاف!S42 -> حساب | AM45: =كشاف!T42 -> دراسات | AN45: =كشاف!V42 -> عربي
A46: =كشاف!BG49 -> 0 | C46: =كشاف!D11 -> 0 | D46: =كشاف!E11 -> 0 | E46: =كشاف!F11 -> 0 | F46: =كشاف!G11 -> 0 | G46: =كشاف!H11 -> 0 | H46: =كشاف!I11 -> 0 | I46: =كشاف!J11 -> 0 | J46: =كشاف!K11 -> 0 | M46: =كشاف!D27 -> 0 | N46: =كشاف!E27 -> 0 | O46: =كشاف!F27 -> 0 | P46: =كشاف!G27 -> 0 | Q46: =كشاف!H27 -> 0 | R46: =كشاف!I27 -> 0 | S46: =كشاف!J27 -> 0 | T46: =كشاف!K27 -> 0 | W46: =كشاف!D43 -> 0 | X46: =كشاف!E43 -> 0 | Y46: =كشاف!F43 -> 0 | Z46: =كشاف!G43 -> 0 | AA46: =كشاف!H43 -> 0 | AB46: =كشاف!I43 -> 0 | AC46: =كشاف!J43 -> 0 | AD46: =كشاف!K43 -> 0 | AG46: =كشاف!N43 -> مصطفى جمعه | AH46: =كشاف!O43 -> مصطفى جمعه | AI46: =كشاف!P43 -> محمود عبدالهادى | AJ46: =كشاف!Q43 -> مصطفى جمعه | AK46: =كشاف!R43 -> محمود عبدالهادى | AL46: =كشاف!S43 -> محمود عبدالهادى | AM46: =كشاف!T43 -> احمد ابراهيم | AN46: =كشاف!V43 -> مصطفى جمعه
A47: 6/4 | B47: الأحد | C47: =كشاف!M10 -> عربي | D47: =كشاف!N10 -> عربي | E47: =كشاف!O10 -> حساب | F47: =كشاف!P10 -> حساب | G47: =كشاف!Q10 -> متعدد | H47: =كشاف!R10 -> E | I47: =كشاف!S10 -> دين | J47: =كشاف!T10 -> متعدد | L47: الأحد | M47: =كشاف!M16 -> حساب | N47: =كشاف!N16 -> حساب | O47: =كشاف!O16 -> متعدد | P47: =كشاف!P16 -> عربي | Q47: =كشاف!Q16 -> عربي | R47: =كشاف!R16 -> متعدد | S47: =كشاف!S16 -> عربي | T47: =كشاف!T16 -> عربي | V47: الأحد | W47: =كشاف!M42 -> علوم | X47: =كشاف!N42 -> عربي | Y47: =كشاف!O42 -> عربي | Z47: =كشاف!P42 -> حساب | AA47: =كشاف!Q42 -> دين | AB47: =كشاف!R42 -> رسم | AC47: =كشاف!S42 -> حساب | AD47: =كشاف!T42 -> دراسات | AF47: الأحد | AG47: =كشاف!W42 -> علوم | AH47: =كشاف!X42 -> E | AI47: =كشاف!Y42 -> مهارات | AJ47: =كشاف!Z42 -> عربي | AK47: =كشاف!AA42 -> تكنولوجيا | AL47: =كشاف!AB42 -> حساب | AM47: =كشاف!AC42 -> موسيقى | AN47: =كشاف!AE42 -> دراسات
A48: =كشاف!BG51 -> 0 | C48: =كشاف!M11 -> احمد سليمان | D48: =كشاف!N11 -> احمد سليمان | E48: =كشاف!O11 -> احمد سليمان | F48: =كشاف!P11 -> احمد سليمان | G48: =كشاف!Q11 -> احمد سليمان | H48: =كشاف!R11 -> احمد ابراهيم | I48: =كشاف!S11 -> احمد سليمان | J48: =كشاف!T11 -> احمد سليمان | M48: =كشاف!M17 -> محمود عبدالهادى | N48: =كشاف!N17 -> محمود عبدالهادى | O48: =كشاف!O17 -> محمود عبدالهادى | P48: =كشاف!P17 -> محمود عبدالهادى | Q48: =كشاف!Q17 -> محمود عبدالهادى | R48: =كشاف!R17 -> محمود عبدالهادى | S48: =كشاف!S17 -> محمود عبدالهادى | T48: =كشاف!T17 -> محمود عبدالهادى | W48: =كشاف!M43 -> اسماء جمال | X48: =كشاف!N43 -> مصطفى جمعه | Y48: =كشاف!O43 -> مصطفى جمعه | Z48: =كشاف!P43 -> محمود عبدالهادى | AA48: =كشاف!Q43 -> مصطفى جمعه | AB48: =كشاف!R43 -> محمود عبدالهادى | AC48: =كشاف!S43 -> محمود عبدالهادى | AD48: =كشاف!T43 -> احمد ابراهيم | AG48: =كشاف!W43 -> اسماء جمال | AH48: =كشاف!X43 -> ايمان عبدالناصر | AI48: =كشاف!Y43 -> صلاح شعبان:صبرى سعيد | AJ48: =كشاف!Z43 -> مصطفى جمعه | AK48: =كشاف!AA43 -> كوثر سعيد | AL48: =كشاف!AB43 -> محمود عبدالهادى | AM48: =كشاف!AC43 -> مصطفى جمعه | AN48: =كشاف!AE43 -> احمد ابراهيم
A49: 1/5 | B49: الإثنين | C49: =كشاف!M12 -> عربي | D49: =كشاف!N12 -> عربي | E49: =كشاف!O12 -> E | F49: =كشاف!P12 -> متعدد | G49: =كشاف!Q12 -> توكاتسو | H49: =كشاف!R12 -> متعدد | I49: =كشاف!S12 -> حساب | J49: =كشاف!T12 -> حساب | L49: الإثنين | M49: =كشاف!V16 -> العاب | N49: =كشاف!W16 -> E | O49: =كشاف!X16 -> توكاتسو | P49: =كشاف!Y16 -> عربي | Q49: =كشاف!Z16 -> عربي | R49: =كشاف!AA16 -> متعدد | S49: =كشاف!AB16 -> متعدد | T49: =كشاف!AC16 -> متعدد | V49: الإثنين | W49: =كشاف!V42 -> عربي | X49: =كشاف!W42 -> علوم | Y49: =كشاف!X42 -> E | Z49: =كشاف!Y42 -> مهارات | AA49: =كشاف!Z42 -> عربي | AB49: =كشاف!AA42 -> تكنولوجيا | AC49: =كشاف!AB42 -> حساب | AD49: =كشاف!AC42 -> موسيقى | AF49: الإثنين | AG49: =كشاف!AF42 -> علوم | AH49: =كشاف!AG42 -> E | AI49: =كشاف!AH42 -> عربي | AJ49: =كشاف!AI42 -> حساب | AK49: =كشاف!AJ42 -> عربي | AL49: =كشاف!AK42 -> دين | AM49: =كشاف!AL42 -> رسم | AN49: =كشاف!AN42 -> توكاتسو
A50: =كشاف!BG53 -> 0 | C50: =كشاف!M13 -> اسماء جمال | D50: =كشاف!N13 -> اسماء جمال | E50: =كشاف!O13 -> احمد ابراهيم | F50: =كشاف!P13 -> اسماء جمال | G50: =كشاف!Q13 -> اسماء جمال | H50: =كشاف!R13 -> اسماء جمال | I50: =كشاف!S13 -> اسماء جمال | J50: =كشاف!T13 -> اسماء جمال | M50: =كشاف!V17 -> محمود عبدالهادى | N50: =كشاف!W17 -> احمد ابراهيم | O50: =كشاف!X17 -> محمود عبدالهادى | P50: =كشاف!Y17 -> محمود عبدالهادى | Q50: =كشاف!Z17 -> محمود عبدالهادى | R50: =كشاف!AA17 -> محمود عبدالهادى | S50: =كشاف!AB17 -> محمود عبدالهادى | T50: =كشاف!AC17 -> محمود عبدالهادى | W50: =كشاف!V43 -> مصطفى جمعه | X50: =كشاف!W43 -> اسماء جمال | Y50: =كشاف!X43 -> ايمان عبدالناصر | Z50: =كشاف!Y43 -> صلاح شعبان:صبرى سعيد | AA50: =كشاف!Z43 -> مصطفى جمعه | AB50: =كشاف!AA43 -> كوثر سعيد | AC50: =كشاف!AB43 -> محمود عبدالهادى | AD50: =كشاف!AC43 -> مصطفى جمعه | AG50: =كشاف!AF43 -> اسماء جمال | AH50: =كشاف!AG43 -> ايمان عبدالناصر | AI50: =كشاف!AH43 -> مصطفى جمعه | AJ50: =كشاف!AI43 -> محمود عبدالهادى | AK50: =كشاف!AJ43 -> مصطفى جمعه | AL50: =كشاف!AK43 -> مصطفى جمعه | AM50: =كشاف!AL43 -> محمود عبدالهادى | AN50: =كشاف!AN43 -> محمد صبحي
A51: 2/5 | B51: الثلاثاء | C51: =كشاف!M14 -> E | D51: =كشاف!N14 -> متعدد | E51: =كشاف!O14 -> متعدد | F51: =كشاف!P14 -> متعدد | G51: =كشاف!Q14 -> دين | H51: =كشاف!R14 -> عربي | I51: =كشاف!S14 -> عربي | J51: =كشاف!T14 -> توكاتسو | L51: الثلاثاء | M51: =كشاف!AE16 -> حساب | N51: =كشاف!AF16 -> حساب | O51: =كشاف!AG16 -> E | P51: =كشاف!AH16 -> عربي | Q51: =كشاف!AI16 -> عربي | R51: =كشاف!AJ16 -> متعدد | S51: =كشاف!AK16 -> متعدد | T51: =كشاف!AL26 -> متعدد | V51: الثلاثاء | W51: =كشاف!AE42 -> دراسات | X51: =كشاف!AF42 -> علوم | Y51: =كشاف!AG42 -> E | Z51: =كشاف!AH42 -> عربي | AA51: =كشاف!AI42 -> حساب | AB51: =كشاف!AJ42 -> عربي | AC51: =كشاف!AK42 -> دين | AD51: =كشاف!AL42 -> رسم | AF51: الثلاثاء | AG51: =كشاف!AO42 -> عربي | AH51: =كشاف!AP42 -> تكنولوجيا | AI51: =كشاف!AQ42 -> قيم | AJ51: =كشاف!AR42 -> العاب | AK51: =كشاف!AS42 -> حساب | AL51: =كشاف!AT42 -> عربي | AM51: =كشاف!AU42 -> E | AN51: =كشاف!AW42 -> عربي
A52: =كشاف!BG55 -> 0 | C52: =كشاف!M15 -> احمد ابراهيم | D52: =كشاف!N15 -> محمد صبحي | E52: =كشاف!O15 -> محمد صبحي | F52: =كشاف!P15 -> محمد صبحي | G52: =كشاف!Q15 -> محمد صبحي | H52: =كشاف!R15 -> محمد صبحي | I52: =كشاف!S15 -> محمد صبحي | J52: =كشاف!T15 -> محمد صبحي | M52: =كشاف!AE17 -> محمود عبدالهادى | N52: =كشاف!AF17 -> محمود عبدالهادى | O52: =كشاف!AG17 -> احمد ابراهيم | P52: =كشاف!AH17 -> محمود عبدالهادى | Q52: =كشاف!AI17 -> محمود عبدالهادى | R52: =كشاف!AJ17 -> محمود عبدالهادى | S52: =كشاف!AK17 -> محمود عبدالهادى | T52: =كشاف!AL27 -> ماجده عبدالله | W52: =كشاف!AE43 -> احمد ابراهيم | X52: =كشاف!AF43 -> اسماء جمال | Y52: =كشاف!AG43 -> ايمان عبدالناصر | Z52: =كشاف!AH43 -> مصطفى جمعه | AA52: =كشاف!AI43 -> محمود عبدالهادى | AB52: =كشاف!AJ43 -> مصطفى جمعه | AC52: =كشاف!AK43 -> مصطفى جمعه | AD52: =كشاف!AL43 -> محمود عبدالهادى | AG52: =كشاف!AO43 -> مصطفى جمعه | AH52: =كشاف!AP43 -> كوثر سعيد | AI52: =كشاف!AQ43 -> مصطفى جمعه | AJ52: =كشاف!AR43 -> مصطفى جمعه | AK52: =كشاف!AS43 -> محمود عبدالهادى | AL52: =كشاف!AT43 -> مصطفى جمعه | AM52: =كشاف!AU43 -> ايمان عبدالناصر | AN52: =كشاف!AW43 -> مصطفى جمعه
A53: =كشاف!BG56 -> 3/5 | B53: الأربعاء | C53: =كشاف!AN10 -> عربي | D53: =كشاف!AO10 -> عربي | E53: =كشاف!AP10 -> حساب | F53: =كشاف!AQ10 -> حساب | G53: =كشاف!AR10 -> عربي | H53: =كشاف!AS10 -> عربي | I53: =كشاف!AT10 -> E | J53: =كشاف!AU10 -> متعدد | L53: الأربعاء | M53: =كشاف!AN26 -> حساب | N53: =كشاف!AO26 -> حساب | O53: =كشاف!AP26 -> متعدد | P53: =كشاف!AQ26 -> متعدد | Q53: =كشاف!AR26 -> عربي | R53: =كشاف!AS26 -> عربي | S53: =كشاف!AT26 -> عربي | T53: =كشاف!AU26 -> عربي | V53: الأربعاء | W53: =كشاف!AN42 -> توكاتسو | X53: =كشاف!AO42 -> عربي | Y53: =كشاف!AP42 -> تكنولوجيا | Z53: =كشاف!AQ42 -> قيم | AA53: =كشاف!AR42 -> العاب | AB53: =كشاف!AS42 -> حساب | AC53: =كشاف!AT42 -> عربي | AD53: =كشاف!AU42 -> E | AF53: الأربعاء | AG53: =كشاف!AX42 -> العاب | AH53: =كشاف!AY42 -> حساب | AI53: =كشاف!AZ42 -> دراسات | AJ53: =كشاف!BA42 -> E | AK53: =كشاف!BB42 -> مهارات | AL53: =كشاف!BC42 -> عربي | AM53: =كشاف!BD42 -> علوم | AN53: =كشاف!BE42 -> 0
A54: =كشاف!BG57 -> 0 | C54: =كشاف!AN11 -> احمد سليمان | D54: =كشاف!AO11 -> احمد سليمان | E54: =كشاف!AP11 -> احمد سليمان | F54: =كشاف!AQ11 -> احمد سليمان | G54: =كشاف!AR11 -> احمد سليمان | H54: =كشاف!AS11 -> احمد سليمان | I54: =كشاف!AT11 -> احمد ابراهيم | J54: =كشاف!AU11 -> احمد سليمان | M54: =كشاف!AN27 -> ماجده عبدالله | N54: =كشاف!AO27 -> ماجده عبدالله | O54: =كشاف!AP27 -> ماجده عبدالله | P54: =كشاف!AQ27 -> ماجده عبدالله | Q54: =كشاف!AR27 -> ماجده عبدالله | R54: =كشاف!AS27 -> ماجده عبدالله | S54: =كشاف!AT27 -> ماجده عبدالله | T54: =كشاف!AU27 -> ماجده عبدالله | W54: =كشاف!AN43 -> محمد صبحي | X54: =كشاف!AO43 -> مصطفى جمعه | Y54: =كشاف!AP43 -> كوثر سعيد | Z54: =كشاف!AQ43 -> مصطفى جمعه | AA54: =كشاف!AR43 -> مصطفى جمعه | AB54: =كشاف!AS43 -> محمود عبدالهادى | AC54: =كشاف!AT43 -> مصطفى جمعه | AD54: =كشاف!AU43 -> ايمان عبدالناصر | AG54: =كشاف!AX43 -> مصطفى جمعه | AH54: =كشاف!AY43 -> محمود عبدالهادى | AI54: =كشاف!AZ43 -> احمد ابراهيم | AJ54: =كشاف!BA43 -> ايمان عبدالناصر | AK54: =كشاف!BB43 -> صلاح شعبان:صبرى سعيد | AL54: =كشاف!BC43 -> مصطفى جمعه | AM54: =كشاف!BD43 -> اسماء جمال | AN54: =كشاف!BE43 -> 0
A55: =كشاف!BG58 -> 4/5 | B55: الخميس | C55: =كشاف!AW10 -> متعدد | D55: =كشاف!AX10 -> متعدد | E55: =كشاف!AY10 -> توكاتسو | F55: =كشاف!AZ10 -> العاب | G55: =كشاف!BA10 -> عربي | L55: الخميس | M55: =كشاف!AW26 -> حساب | N55: =كشاف!AX26 -> حساب | O55: =كشاف!AY26 -> متعدد | P55: =كشاف!AZ26 -> E | Q55: =كشاف!BA26 -> عربي | V55: الخميس | W55: =كشاف!AW42 -> عربي | X55: =كشاف!AX42 -> العاب | Y55: =كشاف!AY42 -> حساب | Z55: =كشاف!AZ42 -> دراسات | AA55: =كشاف!BA42 -> E | AF55: الخميس | AG55: =كشاف!BF42 -> 0 | AH55: =كشاف!BG42 -> 2/4 | AI55: =كشاف!BH42 -> 0 | AJ55: =كشاف!BI42 -> 39 | AK55: =كشاف!BJ42 -> 0
A56: =كشاف!BG59 -> 0 | C56: =كشاف!AW11 -> احمد سليمان | D56: =كشاف!AX11 -> احمد سليمان | E56: =كشاف!AY11 -> احمد سليمان | F56: =كشاف!AZ11 -> احمد سليمان | G56: =كشاف!BA11 -> احمد سليمان | M56: =كشاف!AW27 -> ماجده عبدالله | N56: =كشاف!AX27 -> ماجده عبدالله | O56: =كشاف!AY27 -> ماجده عبدالله | P56: =كشاف!AZ27 -> ايمان عبدالناصر | Q56: =كشاف!BA27 -> ماجده عبدالله | W56: =كشاف!AW43 -> مصطفى جمعه | X56: =كشاف!AX43 -> مصطفى جمعه | Y56: =كشاف!AY43 -> محمود عبدالهادى | Z56: =كشاف!AZ43 -> احمد ابراهيم | AA56: =كشاف!BA43 -> ايمان عبدالناصر | AG56: =كشاف!BF43 -> 0 | AH56: =كشاف!BG43 -> 0 | AI56: =كشاف!BH43 -> 0 | AJ56: =كشاف!BI43 -> 40 | AK56: =كشاف!BJ43 -> 0
A57: =كشاف!BG60 -> 5/5 | E57: جدول فصل | F57: =A9 -> 5/1 | G57: =A10 -> 0 | O57: جدول فصل | P57: =A25 -> 2/3 | Q57: =A26 -> 0 | Y57: جدول فصل | Z57: =A41 -> 3/4 | AA57: =A42 -> 0 | AI57: جدول فصل | AJ57: =J41 -> 0 | AK57: =J42 -> 0
A58: =كشاف!BG61 -> 0 | B58: اليوم | C58: 1 | D58: 2 | E58: 3 | F58: 4 | G58: 5 | H58: 6 | I58: 7 | J58: 8 | L58: اليوم | M58: 1 | N58: 2 | O58: 3 | P58: 4 | Q58: 5 | R58: 6 | S58: 7 | T58: 8 | V58: اليوم | W58: 1 | X58: 2 | Y58: 3 | Z58: 4 | AA58: 5 | AB58: 6 | AC58: 7 | AD58: 8 | AF58: اليوم | AG58: 1 | AH58: 2 | AI58: 3 | AJ58: 4 | AK58: 5 | AL58: 6 | AM58: 7 | AN58: 8
A59: =كشاف!BG62 -> 6/5 | B59: السبت | C59: =كشاف!D12 -> 0 | D59: =كشاف!E12 -> 0 | E59: =كشاف!F12 -> 0 | F59: =كشاف!G12 -> 0 | G59: =كشاف!H12 -> 0 | H59: =كشاف!I12 -> 0 | I59: =كشاف!J12 -> 0 | J59: =كشاف!K12 -> 0 | L59: السبت | M59: =كشاف!D28 -> 0 | N59: =كشاف!E28 -> 0 | O59: =كشاف!F28 -> 0 | P59: =كشاف!G28 -> 0 | Q59: =كشاف!H28 -> 0 | R59: =كشاف!J28 -> 0 | S59: =كشاف!K28 -> 0 | T59: =كشاف!K28 -> 0 | V59: السبت | W59: =كشاف!D44 -> 0 | X59: =كشاف!E44 -> 0 | Y59: =كشاف!F44 -> 0 | Z59: =كشاف!G44 -> 0 | AA59: =كشاف!H44 -> 0 | AB59: =كشاف!I44 -> 0 | AC59: =كشاف!J44 -> 0 | AD59: =كشاف!K44 -> 0 | AF59: السبت | AG59: =كشاف!N44 -> العاب | AH59: =كشاف!O44 -> حساب | AI59: =كشاف!P44 -> E | AJ59: =كشاف!Q44 -> عربي | AK59: =كشاف!R44 -> علوم | AL59: =كشاف!S44 -> عربي | AM59: =كشاف!T44 -> رسم | AN59: =كشاف!V44 -> تكنولوجيا
A60: =كشاف!BG63 -> 0 | C60: =كشاف!D13 -> 0 | D60: =كشاف!E13 -> 0 | E60: =كشاف!F13 -> 0 | F60: =كشاف!G13 -> 0 | G60: =كشاف!H13 -> 0 | H60: =كشاف!I13 -> 0 | I60: =كشاف!J13 -> 0 | J60: =كشاف!K13 -> 0 | M60: =كشاف!D29 -> 0 | N60: =كشاف!E29 -> 0 | O60: =كشاف!F29 -> 0 | P60: =كشاف!G29 -> 0 | Q60: =كشاف!H29 -> 0 | R60: =كشاف!J29 -> 0 | S60: =كشاف!K29 -> 0 | T60: =كشاف!K29 -> 0 | W60: =كشاف!D45 -> 0 | X60: =كشاف!E45 -> 0 | Y60: =كشاف!F45 -> 0 | Z60: =كشاف!G45 -> 0 | AA60: =كشاف!H45 -> 0 | AB60: =كشاف!I45 -> 0 | AC60: =كشاف!J45 -> 0 | AD60: =كشاف!K45 -> 0 | AG60: =كشاف!N45 -> رضا ناجى | AH60: =كشاف!O45 -> محمود عبدالهادى | AI60: =كشاف!P45 -> ايمان عبدالناصر | AJ60: =كشاف!Q45 -> اشجان احمد | AK60: =كشاف!R45 -> اسماء جمال | AL60: =كشاف!S45 -> اشجان احمد | AM60: =كشاف!T45 -> اشجان احمد | AN60: =كشاف!V45 -> كوثر سعيد
A61: =كشاف!BG64 -> 1/6 | B61: الأحد | C61: =كشاف!M12 -> عربي | D61: =كشاف!N12 -> عربي | E61: =كشاف!O12 -> E | F61: =كشاف!P12 -> متعدد | G61: =كشاف!Q12 -> توكاتسو | H61: =كشاف!R12 -> متعدد | I61: =كشاف!S12 -> حساب | J61: =كشاف!T12 -> حساب | L61: الأحد | M61: =كشاف!M18 -> متعدد | N61: =كشاف!N18 -> عربي | O61: =كشاف!O18 -> عربي | P61: =كشاف!P18 -> متعدد | Q61: =كشاف!Q18 -> E | R61: =كشاف!R18 -> حساب | S61: =كشاف!S18 -> حساب | T61: =كشاف!T18 -> متعدد | V61: الأحد | W61: =كشاف!M44 -> دراسات | X61: =كشاف!N44 -> العاب | Y61: =كشاف!O44 -> حساب | Z61: =كشاف!P44 -> E | AA61: =كشاف!Q44 -> عربي | AB61: =كشاف!R44 -> علوم | AC61: =كشاف!S44 -> عربي | AD61: =كشاف!T44 -> رسم | AF61: الأحد | AG61: =كشاف!W44 -> E | AH61: =كشاف!X44 -> دين | AI61: =كشاف!Y44 -> حساب | AJ61: =كشاف!Z44 -> عربي | AK61: =كشاف!AA44 -> مهارات | AL61: =كشاف!AB44 -> عربي | AM61: =كشاف!AC44 -> علوم | AN61: =كشاف!AE44 -> E
A62: =كشاف!BG65 -> 0 | C62: =كشاف!M13 -> اسماء جمال | D62: =كشاف!N13 -> اسماء جمال | E62: =كشاف!O13 -> احمد ابراهيم | F62: =كشاف!P13 -> اسماء جمال | G62: =كشاف!Q13 -> اسماء جمال | H62: =كشاف!R13 -> اسماء جمال | I62: =كشاف!S13 -> اسماء جمال | J62: =كشاف!T13 -> اسماء جمال | M62: =كشاف!M19 -> سعيد عبدالباسط | N62: =كشاف!N19 -> سعيد عبدالباسط | O62: =كشاف!O19 -> سعيد عبدالباسط | P62: =كشاف!P19 -> سعيد عبدالباسط | Q62: =كشاف!Q19 -> احمد ابراهيم | R62: =كشاف!R19 -> سعيد عبدالباسط | S62: =كشاف!S19 -> سعيد عبدالباسط | T62: =كشاف!T19 -> سعيد عبدالباسط | W62: =كشاف!M45 -> احمد ابراهيم | X62: =كشاف!N45 -> رضا ناجى | Y62: =كشاف!O45 -> محمود عبدالهادى | Z62: =كشاف!P45 -> ايمان عبدالناصر | AA62: =كشاف!Q45 -> اشجان احمد | AB62: =كشاف!R45 -> اسماء جمال | AC62: =كشاف!S45 -> اشجان احمد | AD62: =كشاف!T45 -> اشجان احمد | AG62: =كشاف!W45 -> ايمان عبدالناصر | AH62: =كشاف!X45 -> اشجان احمد | AI62: =كشاف!Y45 -> محمود عبدالهادى | AJ62: =كشاف!Z45 -> اشجان احمد | AK62: =كشاف!AA45 -> صلاح شعبان:صبرى سعيد | AL62: =كشاف!AB45 -> اشجان احمد | AM62: =كشاف!AC45 -> اسماء جمال | AN62: =كشاف!AE45 -> ايمان عبدالناصر
A63: =كشاف!BG66 -> 2/6 | B63: الإثنين | C63: =كشاف!M14 -> E | D63: =كشاف!N14 -> متعدد | E63: =كشاف!O14 -> متعدد | F63: =كشاف!P14 -> متعدد | G63: =كشاف!Q14 -> دين | H63: =كشاف!R14 -> عربي | I63: =كشاف!S14 -> عربي | J63: =كشاف!T14 -> توكاتسو | L63: الإثنين | M63: =كشاف!V18 -> متعدد | N63: =كشاف!W18 -> دين | O63: =كشاف!X18 -> E | P63: =كشاف!Y18 -> متعدد | Q63: =كشاف!Z18 -> حساب | R63: =كشاف!AA18 -> حساب | S63: =كشاف!AB18 -> عربي | T63: =كشاف!AC18 -> عربي | V63: الإثنين | W63: =كشاف!V44 -> تكنولوجيا | X63: =كشاف!W44 -> E | Y63: =كشاف!X44 -> دين | Z63: =كشاف!Y44 -> حساب | AA63: =كشاف!Z44 -> عربي | AB63: =كشاف!AA44 -> مهارات | AC63: =كشاف!AB44 -> عربي | AD63: =كشاف!AC44 -> علوم | AF63: الإثنين | AG63: =كشاف!AF44 -> عربي | AH63: =كشاف!AG44 -> عربي | AI63: =كشاف!AH44 -> قيم | AJ63: =كشاف!AI44 -> موسيقى | AK63: =كشاف!AJ44 -> العاب | AL63: =كشاف!AK44 -> حساب | AM63: =كشاف!AL44 -> رسم | AN63: =كشاف!AN44 -> E
A64: =كشاف!BG67 -> 0 | C64: =كشاف!M15 -> احمد ابراهيم | D64: =كشاف!N15 -> محمد صبحي | E64: =كشاف!O15 -> محمد صبحي | F64: =كشاف!P15 -> محمد صبحي | G64: =كشاف!Q15 -> محمد صبحي | H64: =كشاف!R15 -> محمد صبحي | I64: =كشاف!S15 -> محمد صبحي | J64: =كشاف!T15 -> محمد صبحي | M64: =كشاف!V19 -> سعيد عبدالباسط | N64: =كشاف!W19 -> سعيد عبدالباسط | O64: =كشاف!X19 -> احمد ابراهيم | P64: =كشاف!Y19 -> سعيد عبدالباسط | Q64: =كشاف!Z19 -> سعيد عبدالباسط | R64: =كشاف!AA19 -> سعيد عبدالباسط | S64: =كشاف!AB19 -> سعيد عبدالباسط | T64: =كشاف!AC19 -> سعيد عبدالباسط | W64: =كشاف!V45 -> كوثر سعيد | X64: =كشاف!W45 -> ايمان عبدالناصر | Y64: =كشاف!X45 -> اشجان احمد | Z64: =كشاف!Y45 -> محمود عبدالهادى | AA64: =كشاف!Z45 -> اشجان احمد | AB64: =كشاف!AA45 -> صلاح شعبان:صبرى سعيد | AC64: =كشاف!AB45 -> اشجان احمد | AD64: =كشاف!AC45 -> اسماء جمال | AG64: =كشاف!AF45 -> اشجان احمد | AH64: =كشاف!AG45 -> اشجان احمد | AI64: =كشاف!AH45 -> اشجان احمد | AJ64: =كشاف!AI45 -> محمد صبحي | AK64: =كشاف!AJ45 -> رضا ناجى | AL64: =كشاف!AK45 -> محمود عبدالهادى | AM64: =كشاف!AL45 -> اشجان احمد | AN64: =كشاف!AN45 -> ايمان عبدالناصر
A65: =كشاف!BG68 -> 3/6 | B65: الثلاثاء | C65: =كشاف!M16 -> حساب | D65: =كشاف!N16 -> حساب | E65: =كشاف!O16 -> متعدد | F65: =كشاف!P16 -> عربي | G65: =كشاف!Q16 -> عربي | H65: =كشاف!R16 -> متعدد | I65: =كشاف!S16 -> عربي | J65: =كشاف!T16 -> عربي | L65: الثلاثاء | M65: =كشاف!AE18 -> العاب | N65: =كشاف!AF18 -> عربي | O65: =كشاف!AG18 -> عربي | P65: =كشاف!AH18 -> عربي | Q65: =كشاف!AI18 -> عربي | R65: =كشاف!AJ18 -> E | S65: =كشاف!AK18 -> متعدد | T65: =كشاف!AL28 -> دين | V65: الثلاثاء | W65: =كشاف!AE44 -> E | X65: =كشاف!AF44 -> عربي | Y65: =كشاف!AG44 -> عربي | Z65: =كشاف!AH44 -> قيم | AA65: =كشاف!AI44 -> موسيقى | AB65: =كشاف!AJ44 -> العاب | AC65: =كشاف!AK44 -> حساب | AD65: =كشاف!AL44 -> رسم | AF65: الثلاثاء | AG65: =كشاف!AO44 -> تكنولوجيا | AH65: =كشاف!AP44 -> حساب | AI65: =كشاف!AQ44 -> عربي | AJ65: =كشاف!AR44 -> دين | AK65: =كشاف!AS44 -> عربي | AL65: =كشاف!AT44 -> علوم | AM65: =كشاف!AU44 -> دراسات | AN65: =كشاف!AW44 -> مهارات
A66: =كشاف!BG69 -> 0 | C66: =كشاف!M17 -> محمود عبدالهادى | D66: =كشاف!N17 -> محمود عبدالهادى | E66: =كشاف!O17 -> محمود عبدالهادى | F66: =كشاف!P17 -> محمود عبدالهادى | G66: =كشاف!Q17 -> محمود عبدالهادى | H66: =كشاف!R17 -> محمود عبدالهادى | I66: =كشاف!S17 -> محمود عبدالهادى | J66: =كشاف!T17 -> محمود عبدالهادى | M66: =كشاف!AE19 -> سعيد عبدالباسط | N66: =كشاف!AF19 -> سعيد عبدالباسط | O66: =كشاف!AG19 -> سعيد عبدالباسط | P66: =كشاف!AH19 -> سعيد عبدالباسط | Q66: =كشاف!AI19 -> سعيد عبدالباسط | R66: =كشاف!AJ19 -> احمد ابراهيم | S66: =كشاف!AK19 -> سعيد عبدالباسط | T66: =كشاف!AL29 -> محمد ناجى | W66: =كشاف!AE45 -> ايمان عبدالناصر | X66: =كشاف!AF45 -> اشجان احمد | Y66: =كشاف!AG45 -> اشجان احمد | Z66: =كشاف!AH45 -> اشجان احمد | AA66: =كشاف!AI45 -> محمد صبحي | AB66: =كشاف!AJ45 -> رضا ناجى | AC66: =كشاف!AK45 -> محمود عبدالهادى | AD66: =كشاف!AL45 -> اشجان احمد | AG66: =كشاف!AO45 -> كوثر سعيد | AH66: =كشاف!AP45 -> محمود عبدالهادى | AI66: =كشاف!AQ45 -> اشجان احمد | AJ66: =كشاف!AR45 -> اشجان احمد | AK66: =كشاف!AS45 -> اشجان احمد | AL66: =كشاف!AT45 -> اسماء جمال | AM66: =كشاف!AU45 -> احمد ابراهيم | AN66: =كشاف!AW45 -> صلاح شعبان:صبرى سعيد
A67: =كشاف!BG70 -> 4/6 | B67: الأربعاء | C67: =كشاف!AN12 -> متعدد | D67: =كشاف!AO12 -> العاب | E67: =كشاف!AP12 -> E | F67: =كشاف!AQ12 -> دين | G67: =كشاف!AR12 -> متعدد | H67: =كشاف!AS12 -> عربي | I67: =كشاف!AT12 -> عربي | J67: =كشاف!AU12 -> متعدد | L67: الأربعاء | M67: =كشاف!AN28 -> E | N67: =كشاف!AO28 -> متعدد | O67: =كشاف!AP28 -> متعدد | P67: =كشاف!AQ28 -> عربي | Q67: =كشاف!AR28 -> عربي | R67: =كشاف!AS28 -> العاب | S67: =كشاف!AT28 -> متعدد | T67: =كشاف!AU28 -> توكاتسو | V67: الأربعاء | W67: =كشاف!AN44 -> E | X67: =كشاف!AO44 -> تكنولوجيا | Y67: =كشاف!AP44 -> حساب | Z67: =كشاف!AQ44 -> عربي | AA67: =كشاف!AR44 -> دين | AB67: =كشاف!AS44 -> عربي | AC67: =كشاف!AT44 -> علوم | AD67: =كشاف!AU44 -> دراسات | AF67: الأربعاء | AG67: =كشاف!AX44 -> حساب | AH67: =كشاف!AY44 -> دراسات | AI67: =كشاف!AZ44 -> علوم | AJ67: =كشاف!BA44 -> حساب | AK67: =كشاف!BB44 -> عربي | AL67: =كشاف!BC44 -> عربي | AM67: =كشاف!BD44 -> توكاتسو | AN67: =كشاف!BE44 -> 0
A68: =كشاف!BG71 -> 0 | C68: =كشاف!AN13 -> اسماء جمال | D68: =كشاف!AO13 -> اسماء جمال | E68: =كشاف!AP13 -> احمد ابراهيم | F68: =كشاف!AQ13 -> اسماء جمال | G68: =كشاف!AR13 -> اسماء جمال | H68: =كشاف!AS13 -> اسماء جمال | I68: =كشاف!AT13 -> اسماء جمال | J68: =كشاف!AU13 -> اسماء جمال | M68: =كشاف!AN29 -> ايمان عبدالناصر | N68: =كشاف!AO29 -> محمد ناجى | O68: =كشاف!AP29 -> محمد ناجى | P68: =كشاف!AQ29 -> محمد ناجى | Q68: =كشاف!AR29 -> محمد ناجى | R68: =كشاف!AS29 -> محمد ناجى | S68: =كشاف!AT29 -> محمد ناجى | T68: =كشاف!AU29 -> محمد ناجى | W68: =كشاف!AN45 -> ايمان عبدالناصر | X68: =كشاف!AO45 -> كوثر سعيد | Y68: =كشاف!AP45 -> محمود عبدالهادى | Z68: =كشاف!AQ45 -> اشجان احمد | AA68: =كشاف!AR45 -> اشجان احمد | AB68: =كشاف!AS45 -> اشجان احمد | AC68: =كشاف!AT45 -> اسماء جمال | AD68: =كشاف!AU45 -> احمد ابراهيم | AG68: =كشاف!AX45 -> محمود عبدالهادى | AH68: =كشاف!AY45 -> احمد ابراهيم | AI68: =كشاف!AZ45 -> اسماء جمال | AJ68: =كشاف!BA45 -> محمود عبدالهادى | AK68: =كشاف!BB45 -> اشجان احمد | AL68: =كشاف!BC45 -> اشجان احمد | AM68: =كشاف!BD45 -> محمد صبحي | AN68: =كشاف!BE45 -> 0
A69: =كشاف!BG72 -> 5/6 | B69: الخميس | C69: =كشاف!AW12 -> حساب | D69: =كشاف!AX12 -> حساب | E69: =كشاف!AY12 -> العاب | F69: =كشاف!AZ12 -> عربي | G69: =كشاف!BA12 -> عربي | L69: الخميس | M69: =كشاف!AW28 -> E | N69: =كشاف!AX28 -> عربي | O69: =كشاف!AY28 -> عربي | P69: =كشاف!AZ28 -> متعدد | Q69: =كشاف!BA28 -> حساب | V69: الخميس | W69: =كشاف!AW44 -> مهارات | X69: =كشاف!AX44 -> حساب | Y69: =كشاف!AY44 -> دراسات | Z69: =كشاف!AZ44 -> علوم | AA69: =كشاف!BA44 -> حساب | AF69: الخميس | AG69: =كشاف!BF44 -> 0 | AH69: =كشاف!BG44 -> 3/4 | AI69: =كشاف!BH44 -> 0 | AJ69: =كشاف!BI44 -> 41 | AK69: =كشاف!BJ44 -> 0
A70: =كشاف!BG73 -> 0 | C70: =كشاف!AW13 -> اسماء جمال | D70: =كشاف!AX13 -> اسماء جمال | E70: =كشاف!AY13 -> اسماء جمال | F70: =كشاف!AZ13 -> اسماء جمال | G70: =كشاف!BA13 -> اسماء جمال | M70: =كشاف!AW29 -> ايمان عبدالناصر | N70: =كشاف!AX29 -> محمد ناجى | O70: =كشاف!AY29 -> محمد ناجى | P70: =كشاف!AZ29 -> محمد ناجى | Q70: =كشاف!BA29 -> محمد ناجى | W70: =كشاف!AW45 -> صلاح شعبان:صبرى سعيد | X70: =كشاف!AX45 -> محمود عبدالهادى | Y70: =كشاف!AY45 -> احمد ابراهيم | Z70: =كشاف!AZ45 -> اسماء جمال | AA70: =كشاف!BA45 -> محمود عبدالهادى | AG70: =كشاف!BF45 -> 0 | AH70: =كشاف!BG45 -> 0 | AI70: =كشاف!BH45 -> 0 | AJ70: =كشاف!BI45 -> 0 | AK70: =كشاف!BJ45 -> 0
A71: =كشاف!BG74 -> 6/6 | E71: جدول فصل | F71: =A11 -> 1/2 | G71: =A12 -> 0 | O71: جدول فصل | P71: =A27 -> 3/3 | Q71: =A28 -> 0 | Y71: جدول فصل | Z71: =A43 -> 4/4 | AA71: =A44 -> 0 | AI71: جدول فصل | AJ71: =J43 -> 0 | AK71: =J44 -> 8
A72: =كشاف!BG75 -> 0 | B72: اليوم | C72: 1 | D72: 2 | E72: 3 | F72: 4 | G72: 5 | H72: 6 | I72: 7 | J72: 8 | L72: اليوم | M72: 1 | N72: 2 | O72: 3 | P72: 4 | Q72: 5 | R72: 6 | S72: 7 | T72: 8 | V72: اليوم | W72: 1 | X72: 2 | Y72: 3 | Z72: 4 | AA72: 5 | AB72: 6 | AC72: 7 | AD72: 8 | AF72: اليوم | AG72: 1 | AH72: 2 | AI72: 3 | AJ72: 4 | AK72: 5 | AL72: 6 | AM72: 7 | AN72: 8
A73: =كشاف!BG76 -> 0 | B73: السبت | C73: =كشاف!D14 -> 0 | D73: =كشاف!E14 -> 0 | E73: =كشاف!F14 -> 0 | F73: =كشاف!G14 -> 0 | G73: =كشاف!H14 -> 0 | H73: =كشاف!I14 -> 0 | I73: =كشاف!J14 -> 0 | J73: =كشاف!K14 -> 0 | L73: السبت | M73: =كشاف!D30 -> 0 | N73: =كشاف!E30 -> 0 | O73: =كشاف!F30 -> 0 | P73: =كشاف!G30 -> 0 | Q73: =كشاف!H30 -> 0 | R73: =كشاف!I30 -> 0 | S73: =كشاف!J30 -> 0 | T73: =كشاف!K30 -> 0 | V73: السبت | W73: =كشاف!D46 -> 0 | X73: =كشاف!E46 -> 0 | Y73: =كشاف!F46 -> 0 | Z73: =كشاف!G46 -> 0 | AA73: =كشاف!H46 -> 0 | AB73: =كشاف!I46 -> 0 | AC73: =كشاف!J46 -> 0 | AD73: =كشاف!K46 -> 0 | AF73: السبت | AG73: =كشاف!N46 -> حساب | AH73: =كشاف!O46 -> عربي | AI73: =كشاف!P46 -> علوم | AJ73: =كشاف!Q46 -> دراسات | AK73: =كشاف!R46 -> عربي | AL73: =كشاف!S46 -> E | AM73: =كشاف!T46 -> قيم | AN73: =كشاف!V46 -> عربي
A74: =كشاف!BG77 -> 0 | C74: =كشاف!D15 -> 0 | D74: =كشاف!E15 -> 0 | E74: =كشاف!F15 -> 0 | F74: =كشاف!G15 -> 0 | G74: =كشاف!H15 -> 0 | H74: =كشاف!I15 -> 0 | I74: =كشاف!J15 -> 0 | J74: =كشاف!K15 -> 0 | M74: =كشاف!D31 -> 0 | N74: =كشاف!E31 -> 0 | O74: =كشاف!F31 -> 0 | P74: =كشاف!G31 -> 0 | Q74: =كشاف!H31 -> 0 | R74: =كشاف!I31 -> 0 | S74: =كشاف!J31 -> 0 | T74: =كشاف!K31 -> 0 | W74: =كشاف!D47 -> 0 | X74: =كشاف!E47 -> 0 | Y74: =كشاف!F47 -> 0 | Z74: =كشاف!G47 -> 0 | AA74: =كشاف!H47 -> 0 | AB74: =كشاف!I47 -> 0 | AC74: =كشاف!J47 -> 0 | AD74: =كشاف!K47 -> 0 | AG74: =كشاف!N47 -> محمود عبدالهادى | AH74: =كشاف!O47 -> اشجان احمد | AI74: =كشاف!P47 -> اسماء جمال | AJ74: =كشاف!Q47 -> احمد ابراهيم | AK74: =كشاف!R47 -> اشجان احمد | AL74: =كشاف!S47 -> ايمان عبدالناصر | AM74: =كشاف!T47 -> محمود عبدالهادى | AN74: =كشاف!V47 -> اشجان احمد
A75: =كشاف!BG78 -> 0 | B75: الأحد | C75: =كشاف!M14 -> E | D75: =كشاف!N14 -> متعدد | E75: =كشاف!O14 -> متعدد | F75: =كشاف!P14 -> متعدد | G75: =كشاف!Q14 -> دين | H75: =كشاف!R14 -> عربي | I75: =كشاف!S14 -> عربي | J75: =كشاف!T14 -> توكاتسو | L75: الأحد | M75: =كشاف!M20 -> متعدد | N75: =كشاف!N20 -> E | O75: =كشاف!O20 -> حساب | P75: =كشاف!P20 -> حساب | Q75: =كشاف!Q20 -> عربي | R75: =كشاف!R20 -> عربي | S75: =كشاف!S20 -> متعدد | T75: =كشاف!T20 -> متعدد | V75: الأحد | W75: =كشاف!M46 -> رسم | X75: =كشاف!N46 -> حساب | Y75: =كشاف!O46 -> عربي | Z75: =كشاف!P46 -> علوم | AA75: =كشاف!Q46 -> دراسات | AB75: =كشاف!R46 -> عربي | AC75: =كشاف!S46 -> E | AD75: =كشاف!T46 -> قيم | AF75: الأحد | AG75: =كشاف!W46 -> مهارات | AH75: =كشاف!X46 -> علوم | AI75: =كشاف!Y46 -> عربي | AJ75: =كشاف!Z46 -> حساب | AK75: =كشاف!AA46 -> موسيقى | AL75: =كشاف!AB46 -> E | AM75: =كشاف!AC46 -> تكنولوجيا | AN75: =كشاف!AE46 -> حساب
A76: =كشاف!BG79 -> 0 | C76: =كشاف!M15 -> احمد ابراهيم | D76: =كشاف!N15 -> محمد صبحي | E76: =كشاف!O15 -> محمد صبحي | F76: =كشاف!P15 -> محمد صبحي | G76: =كشاف!Q15 -> محمد صبحي | H76: =كشاف!R15 -> محمد صبحي | I76: =كشاف!S15 -> محمد صبحي | J76: =كشاف!T15 -> محمد صبحي | M76: =كشاف!M21 -> اشجان احمد | N76: =كشاف!N21 -> احمد ابراهيم | O76: =كشاف!O21 -> اشجان احمد | P76: =كشاف!P21 -> اشجان احمد | Q76: =كشاف!Q21 -> اشجان احمد | R76: =كشاف!R21 -> اشجان احمد | S76: =كشاف!S21 -> اشجان احمد | T76: =كشاف!T21 -> اشجان احمد | W76: =كشاف!M47 -> منال جمعه | X76: =كشاف!N47 -> محمود عبدالهادى | Y76: =كشاف!O47 -> اشجان احمد | Z76: =كشاف!P47 -> اسماء جمال | AA76: =كشاف!Q47 -> احمد ابراهيم | AB76: =كشاف!R47 -> اشجان احمد | AC76: =كشاف!S47 -> ايمان عبدالناصر | AD76: =كشاف!T47 -> محمود عبدالهادى | AG76: =كشاف!W47 -> صلاح شعبان:صبرى سعيد | AH76: =كشاف!X47 -> اسماء جمال | AI76: =كشاف!Y47 -> اشجان احمد | AJ76: =كشاف!Z47 -> محمود عبدالهادى | AK76: =كشاف!AA47 -> اشجان احمد | AL76: =كشاف!AB47 -> ايمان عبدالناصر | AM76: =كشاف!AC47 -> كوثر سعيد | AN76: =كشاف!AE47 -> محمود عبدالهادى
A77: =كشاف!BG80 -> 0 | B77: الإثنين | C77: =كشاف!M16 -> حساب | D77: =كشاف!N16 -> حساب | E77: =كشاف!O16 -> متعدد | F77: =كشاف!P16 -> عربي | G77: =كشاف!Q16 -> عربي | H77: =كشاف!R16 -> متعدد | I77: =كشاف!S16 -> عربي | J77: =كشاف!T16 -> عربي | L77: الإثنين | M77: =كشاف!V20 -> عربي | N77: =كشاف!W20 -> عربي | O77: =كشاف!X20 -> حساب | P77: =كشاف!Y20 -> حساب | Q77: =كشاف!Z20 -> توكاتسو | R77: =كشاف!AA20 -> متعدد | S77: =كشاف!AB20 -> عربي | T77: =كشاف!AC20 -> عربي | V77: الإثنين | W77: =كشاف!V46 -> عربي | X77: =كشاف!W46 -> مهارات | Y77: =كشاف!X46 -> علوم | Z77: =كشاف!Y46 -> عربي | AA77: =كشاف!Z46 -> حساب | AB77: =كشاف!AA46 -> موسيقى | AC77: =كشاف!AB46 -> E | AD77: =كشاف!AC46 -> تكنولوجيا | AF77: الإثنين | AG77: =كشاف!AF46 -> E | AH77: =كشاف!AG46 -> حساب | AI77: =كشاف!AH46 -> العاب | AJ77: =كشاف!AI46 -> دين | AK77: =كشاف!AJ46 -> عربي | AL77: =كشاف!AK46 -> عربي | AM77: =كشاف!AL46 -> دراسات | AN77: =كشاف!AN46 -> حساب
A78: =كشاف!BG81 -> 0 | C78: =كشاف!M17 -> محمود عبدالهادى | D78: =كشاف!N17 -> محمود عبدالهادى | E78: =كشاف!O17 -> محمود عبدالهادى | F78: =كشاف!P17 -> محمود عبدالهادى | G78: =كشاف!Q17 -> محمود عبدالهادى | H78: =كشاف!R17 -> محمود عبدالهادى | I78: =كشاف!S17 -> محمود عبدالهادى | J78: =كشاف!T17 -> محمود عبدالهادى | M78: =كشاف!V21 -> اشجان احمد | N78: =كشاف!W21 -> اشجان احمد | O78: =كشاف!X21 -> اشجان احمد | P78: =كشاف!Y21 -> اشجان احمد | Q78: =كشاف!Z21 -> اشجان احمد | R78: =كشاف!AA21 -> اشجان احمد | S78: =كشاف!AB21 -> اشجان احمد | T78: =كشاف!AC21 -> اشجان احمد | W78: =كشاف!V47 -> اشجان احمد | X78: =كشاف!W47 -> صلاح شعبان:صبرى سعيد | Y78: =كشاف!X47 -> اسماء جمال | Z78: =كشاف!Y47 -> اشجان احمد | AA78: =كشاف!Z47 -> محمود عبدالهادى | AB78: =كشاف!AA47 -> اشجان احمد | AC78: =كشاف!AB47 -> ايمان عبدالناصر | AD78: =كشاف!AC47 -> كوثر سعيد | AG78: =كشاف!AF47 -> ايمان عبدالناصر | AH78: =كشاف!AG47 -> محمود عبدالهادى | AI78: =كشاف!AH47 -> ابوبكر عزت | AJ78: =كشاف!AI47 -> اشجان احمد | AK78: =كشاف!AJ47 -> اشجان احمد | AL78: =كشاف!AK47 -> اشجان احمد | AM78: =كشاف!AL47 -> احمد ابراهيم | AN78: =كشاف!AN47 -> محمود عبدالهادى
A79: =كشاف!BG82 -> 0 | B79: الثلاثاء | C79: =كشاف!M18 -> متعدد | D79: =كشاف!N18 -> عربي | E79: =كشاف!O18 -> عربي | F79: =كشاف!P18 -> متعدد | G79: =كشاف!Q18 -> E | H79: =كشاف!R18 -> حساب | I79: =كشاف!S18 -> حساب | J79: =كشاف!T18 -> متعدد | L79: الثلاثاء | M79: =كشاف!AE20 -> العاب | N79: =كشاف!AF20 -> متعدد | O79: =كشاف!AG20 -> متعدد | P79: =كشاف!AH20 -> E | Q79: =كشاف!AI20 -> عربي | R79: =كشاف!AJ20 -> عربي | S79: =كشاف!AK20 -> حساب | T79: =كشاف!AL30 -> متعدد | V79: الثلاثاء | W79: =كشاف!AE46 -> حساب | X79: =كشاف!AF46 -> E | Y79: =كشاف!AG46 -> حساب | Z79: =كشاف!AH46 -> العاب | AA79: =كشاف!AI46 -> دين | AB79: =كشاف!AJ46 -> عربي | AC79: =كشاف!AK46 -> عربي | AD79: =كشاف!AL46 -> دراسات | AF79: الثلاثاء | AG79: =كشاف!AO46 -> عربي | AH79: =كشاف!AP46 -> عربي | AI79: =كشاف!AQ46 -> دراسات | AJ79: =كشاف!AR46 -> تكنولوجيا | AK79: =كشاف!AS46 -> علوم | AL79: =كشاف!AT46 -> E | AM79: =كشاف!AU46 -> رسم | AN79: =كشاف!AW46 -> علوم
A80: =كشاف!BG83 -> 0 | C80: =كشاف!M19 -> سعيد عبدالباسط | D80: =كشاف!N19 -> سعيد عبدالباسط | E80: =كشاف!O19 -> سعيد عبدالباسط | F80: =كشاف!P19 -> سعيد عبدالباسط | G80: =كشاف!Q19 -> احمد ابراهيم | H80: =كشاف!R19 -> سعيد عبدالباسط | I80: =كشاف!S19 -> سعيد عبدالباسط | J80: =كشاف!T19 -> سعيد عبدالباسط | M80: =كشاف!AE21 -> اشجان احمد | N80: =كشاف!AF21 -> اشجان احمد | O80: =كشاف!AG21 -> اشجان احمد | P80: =كشاف!AH21 -> احمد ابراهيم | Q80: =كشاف!AI21 -> اشجان احمد | R80: =كشاف!AJ21 -> اشجان احمد | S80: =كشاف!AK21 -> اشجان احمد | T80: =كشاف!AL31 -> عطيه عبدالغفار
A81: =كشاف!BG84 -> 0 | B81: الأربعاء | C81: =كشاف!M20 -> متعدد | D81: =كشاف!AO14 -> حساب | E81: =كشاف!AP14 -> حساب | F81: =كشاف!AQ14 -> العاب | G81: =كشاف!AR14 -> متعدد | H81: =كشاف!AS14 -> عربي | I81: =كشاف!AT14 -> عربي | J81: =كشاف!AU14 -> متعدد | L81: الأربعاء | M81: =كشاف!AN30 -> دين | N81: =كشاف!AO30 -> متعدد | O81: =كشاف!AP30 -> متعدد | P81: =كشاف!AQ30 -> E | Q81: =كشاف!AR30 -> حساب | R81: =كشاف!AS30 -> حساب | S81: =كشاف!AT30 -> عربي | T81: =كشاف!AU30 -> عربي | V81: الأربعاء | W81: =كشاف!AN46 -> حساب | X81: =كشاف!AO46 -> عربي | Y81: =كشاف!AP46 -> عربي | Z81: =كشاف!AQ46 -> دراسات | AA81: =كشاف!AR46 -> تكنولوجيا | AB81: =كشاف!AS46 -> علوم | AC81: =كشاف!AT46 -> E | AD81: =كشاف!AU46 -> رسم | AF81: الأربعاء | AG81: =كشاف!AX46 -> العاب | AH81: =كشاف!AY46 -> عربي | AI81: =كشاف!AZ46 -> عربي | AJ81: =كشاف!BA46 -> دين | AK81: =كشاف!BB46 -> حساب | AL81: =كشاف!BC46 -> مهارات | AM81: =كشاف!BD46 -> توكاتسو | AN81: =كشاف!BE46 -> 0
A82: =كشاف!BG85 -> 0 | C82: =كشاف!M21 -> اشجان احمد | D82: =كشاف!AO15 -> محمد صبحي | E82: =كشاف!AP15 -> محمد صبحي | F82: =كشاف!AQ15 -> محمد صبحي | G82: =كشاف!AR15 -> محمد صبحي | H82: =كشاف!AS15 -> محمد صبحي | I82: =كشاف!AT15 -> محمد صبحي | J82: =كشاف!AU15 -> محمد صبحي | M82: =كشاف!AN31 -> عطيه عبدالغفار | N82: =كشاف!AO31 -> عطيه عبدالغفار | O82: =كشاف!AP31 -> عطيه عبدالغفار | P82: =كشاف!AQ31 -> ايمان عبدالناصر | Q82: =كشاف!AR31 -> عطيه عبدالغفار | R82: =كشاف!AS31 -> عطيه عبدالغفار | S82: =كشاف!AT31 -> عطيه عبدالغفار | T82: =كشاف!AU31 -> عطيه عبدالغفار | W82: =كشاف!AN47 -> محمود عبدالهادى | X82: =كشاف!AO47 -> اشجان احمد | Y82: =كشاف!AP47 -> اشجان احمد | Z82: =كشاف!AQ47 -> احمد ابراهيم | AA82: =كشاف!AR47 -> كوثر سعيد | AB82: =كشاف!AS47 -> اسماء جمال | AC82: =كشاف!AT47 -> ايمان عبدالناصر | AD82: =كشاف!AU47 -> منال جمعه | AG82: =كشاف!AX47 -> ابوبكر عزت | AH82: =كشاف!AY47 -> اشجان احمد | AI82: =كشاف!AZ47 -> اشجان احمد | AJ82: =كشاف!BA47 -> اشجان احمد | AK82: =كشاف!BB47 -> محمود عبدالهادى | AL82: =كشاف!BC47 -> صلاح شعبان:صبرى سعيد | AM82: =كشاف!BD47 -> محمود عبدالهادى | AN82: =كشاف!BE47 -> 0
A83: =كشاف!BG86 -> 0 | B83: الخميس | C83: =كشاف!M22 -> حساب | D83: =كشاف!AX14 -> E | E83: =كشاف!AY14 -> عربي | F83: =كشاف!AZ14 -> عربي | G83: =كشاف!BA14 -> متعدد | L83: الخميس | M83: =كشاف!AW30 -> متعدد | N83: =كشاف!AX30 -> متعدد | O83: =كشاف!AY30 -> حساب | P83: =كشاف!AZ30 -> حساب | Q83: =كشاف!BA30 -> عربي | V83: الخميس | W83: =كشاف!AW46 -> علوم | X83: =كشاف!AX46 -> العاب | Y83: =كشاف!AY46 -> عربي | Z83: =كشاف!AZ46 -> عربي | AA83: =كشاف!BA46 -> دين | AF83: الخميس | AG83: =كشاف!BF46 -> 0 | AH83: =كشاف!BG46 -> 4/4 | AI83: =كشاف!BH46 -> 0 | AJ83: =كشاف!BI46 -> 0 | AK83: =كشاف!BJ46 -> 0
A84: =كشاف!BG87 -> 0 | C84: =كشاف!M23 -> زكيه سيد | D84: =كشاف!AX15 -> احمد ابراهيم | E84: =كشاف!AY15 -> محمد صبحي | F84: =كشاف!AZ15 -> محمد صبحي | G84: =كشاف!BA15 -> محمد صبحي | M84: =كشاف!AW31 -> عطيه عبدالغفار | N84: =كشاف!AX31 -> عطيه عبدالغفار | O84: =كشاف!AY31 -> عطيه عبدالغفار | P84: =كشاف!AZ31 -> عطيه عبدالغفار | Q84: =كشاف!BA31 -> عطيه عبدالغفار | W84: =كشاف!AW47 -> اسماء جمال | X84: =كشاف!AX47 -> ابوبكر عزت | Y84: =كشاف!AY47 -> اشجان احمد | Z84: =كشاف!AZ47 -> اشجان احمد | AA84: =كشاف!BA47 -> اشجان احمد | AG84: =كشاف!BF47 -> 0 | AH84: =كشاف!BG47 -> 0 | AI84: =كشاف!BH47 -> 0 | AJ84: =كشاف!BI47 -> 0 | AK84: =كشاف!BJ47 -> 0
A85: =كشاف!BG88 -> 0 | E85: جدول فصل | F85: =A13 -> 2/2 | G85: =A14 -> 0 | O85: جدول فصل | P85: =A29 -> 4/3 | Q85: =A30 -> 0 | Y85: جدول فصل | Z85: =A45 | AA85: =A46 -> 0 | AI85: جدول فصل | AJ85: 5/4 | AK85: =J46 -> 0
A86: =كشاف!BG89 -> 0 | B86: اليوم | C86: 1 | D86: 2 | E86: 3 | F86: 4 | G86: 5 | H86: 6 | I86: 7 | J86: 8 | L86: اليوم | M86: 1 | N86: 2 | O86: 3 | P86: 4 | Q86: 5 | R86: 6 | S86: 7 | T86: 8 | V86: اليوم | W86: 1 | X86: 2 | Y86: 3 | Z86: 4 | AA86: 5 | AB86: 6 | AC86: 7 | AD86: 8 | AF86: اليوم | AG86: 1 | AH86: 2 | AI86: 3 | AJ86: 4 | AK86: 5 | AL86: 6 | AM86: 7 | AN86: 8
A87: =كشاف!BG90 -> 0 | B87: السبت | C87: =كشاف!D16 -> 0 | D87: =كشاف!E16 -> 0 | E87: =كشاف!F16 -> 0 | F87: =كشاف!G16 -> 0 | G87: =كشاف!H16 -> 0 | H87: =كشاف!I16 -> 0 | I87: =كشاف!J16 -> 0 | J87: =كشاف!K16 -> 0 | L87: السبت | M87: =كشاف!D32 -> 0 | N87: =كشاف!E32 -> 0 | O87: =كشاف!F32 -> 0 | P87: =كشاف!G32 -> 0 | Q87: =كشاف!H32 -> 0 | R87: =كشاف!I32 -> 0 | S87: =كشاف!J32 -> 0 | T87: =كشاف!K32 -> 0 | V87: السبت | W87: =كشاف!D48 -> 0 | X87: =كشاف!E48 -> 0 | Y87: =كشاف!F48 -> 0 | Z87: =كشاف!G48 -> 0 | AA87: =كشاف!H48 -> 0 | AB87: =كشاف!I48 -> 0 | AC87: =كشاف!J48 -> 0 | AD87: =كشاف!K48 -> 0 | AF87: السبت | AG87: =كشاف!N48 -> عربي | AH87: =كشاف!O48 -> دين | AI87: =كشاف!P48 -> توكاتسو | AJ87: =كشاف!Q48 -> رسم | AK87: =كشاف!R48 -> E | AL87: =كشاف!S48 -> حساب | AM87: =كشاف!T48 -> علوم | AN87: =كشاف!V48 -> مهارات
A88: =كشاف!BG91 -> 0 | C88: =كشاف!D17 -> 0 | D88: =كشاف!E17 -> 0 | E88: =كشاف!F17 -> 0 | F88: =كشاف!G17 -> 0 | G88: =كشاف!H17 -> 0 | H88: =كشاف!I17 -> 0 | I88: =كشاف!J17 -> 0 | J88: =كشاف!K17 -> 0 | M88: =كشاف!D33 -> 0 | N88: =كشاف!E33 -> 0 | O88: =كشاف!F33 -> 0 | P88: =كشاف!G33 -> 0 | Q88: =كشاف!H33 -> 0 | R88: =كشاف!I33 -> 0 | S88: =كشاف!J33 -> 0 | T88: =كشاف!K33 -> 0 | W88: =كشاف!D49 -> 0 | X88: =كشاف!E49 -> 0 | Y88: =كشاف!F49 -> 0 | Z88: =كشاف!G49 -> 0 | AA88: =كشاف!H49 -> 0 | AB88: =كشاف!I49 -> 0 | AC88: =كشاف!J49 -> 0 | AD88: =كشاف!K49 -> 0 | AG88: =كشاف!N49 -> زكيه سيد | AH88: =كشاف!O49 -> زكيه سيد | AI88: =كشاف!P49 -> فاطمه كامل | AJ88: =كشاف!Q49 -> عطيه عبدالغفار | AK88: =كشاف!R49 -> ايمان عبدالناصر | AL88: =كشاف!S49 -> عطيه عبدالغفار | AM88: =كشاف!T49 -> اسماء جمال | AN88: =كشاف!V49 -> صلاح شعبان:صبرى سعيد
A89: =كشاف!BG92 -> 0 | B89: الأحد | C89: =كشاف!M6 -> متعدد | D89: =كشاف!N6 -> العاب | E89: =كشاف!O6 -> حساب | F89: =كشاف!P6 -> حساب | G89: =كشاف!Q6 -> عربي | H89: =كشاف!R6 -> عربي | I89: =كشاف!S6 -> E | J89: =كشاف!T6 -> دين | L89: الأحد | M89: =كشاف!M22 -> حساب | N89: =كشاف!N22 -> حساب | O89: =كشاف!O22 -> عربي | P89: =كشاف!P22 -> عربي | Q89: =كشاف!Q22 -> عربي | R89: =كشاف!R22 -> عربي | S89: =كشاف!S22 -> العاب | T89: =كشاف!T22 -> متعدد | V89: الأحد | W89: =كشاف!M48 -> عربي | X89: =كشاف!N48 -> عربي | Y89: =كشاف!O48 -> دين | Z89: =كشاف!P48 -> توكاتسو | AA89: =كشاف!Q48 -> رسم | AB89: =كشاف!R48 -> E | AC89: =كشاف!S48 -> حساب | AD89: =كشاف!T48 -> علوم | AF89: الأحد | AG89: =كشاف!W48 -> عربي | AH89: =كشاف!X48 -> عربي | AI89: =كشاف!Y48 -> E | AJ89: =كشاف!Z48 -> دين | AK89: =كشاف!AA48 -> حساب | AL89: =كشاف!AB48 -> تكنولوجيا | AM89: =كشاف!AC48 -> دراسات | AN89: =كشاف!AE48 -> علوم
A90: =كشاف!BG93 -> 0 | C90: =كشاف!M7 -> نورا كامل | D90: =كشاف!N7 -> نورا كامل | E90: =كشاف!O7 -> نورا كامل | F90: =كشاف!P7 -> نورا كامل | G90: =كشاف!Q7 -> نورا كامل | H90: =كشاف!R7 -> نورا كامل | I90: =كشاف!S7 -> احمد ابراهيم | J90: =كشاف!T7 -> نورا كامل | M90: =كشاف!M23 -> زكيه سيد | N90: =كشاف!N23 -> زكيه سيد | O90: =كشاف!O23 -> زكيه سيد | P90: =كشاف!P23 -> زكيه سيد | Q90: =كشاف!Q23 -> زكيه سيد | R90: =كشاف!R23 -> زكيه سيد | S90: =كشاف!S23 -> زكيه سيد | T90: =كشاف!T23 -> زكيه سيد | W90: =كشاف!M49 -> زكيه سيد | X90: =كشاف!N49 -> زكيه سيد | Y90: =كشاف!O49 -> زكيه سيد | Z90: =كشاف!P49 -> فاطمه كامل | AA90: =كشاف!Q49 -> عطيه عبدالغفار | AB90: =كشاف!R49 -> ايمان عبدالناصر | AC90: =كشاف!S49 -> عطيه عبدالغفار | AD90: =كشاف!T49 -> اسماء جمال | AG90: =كشاف!W49 -> زكيه سيد | AH90: =كشاف!X49 -> زكيه سيد | AI90: =كشاف!Y49 -> ايمان عبدالناصر | AJ90: =كشاف!Z49 -> زكيه سيد | AK90: =كشاف!AA49 -> عطيه عبدالغفار | AL90: =كشاف!AB49 -> كوثر سعيد | AM90: =كشاف!AC49 -> احمد ابراهيم | AN90: =كشاف!AE49 -> اسماء جمال
A91: =كشاف!BG94 -> 0 | B91: الإثنين | C91: =كشاف!V6 -> متعدد | D91: =كشاف!W6 -> متعدد | E91: =كشاف!X6 -> عربي | F91: =كشاف!Y6 -> عربي | G91: =كشاف!Z6 -> متعدد | H91: =كشاف!AA6 -> E | I91: =كشاف!AB6 -> عربي | J91: =كشاف!AC6 -> عربي | L91: الإثنين | M91: =كشاف!V22 -> متعدد | N91: =كشاف!W22 -> العاب | O91: =كشاف!X22 -> متعدد | P91: =كشاف!Y22 -> متعدد | Q91: =كشاف!Z22 -> E | R91: =كشاف!AA22 -> دين | S91: =كشاف!AB22 -> عربي | T91: =كشاف!AC22 -> عربي | V91: الإثنين | W91: =كشاف!V48 -> مهارات | X91: =كشاف!W48 -> عربي | Y91: =كشاف!X48 -> عربي | Z91: =كشاف!Y48 -> E | AA91: =كشاف!Z48 -> دين | AB91: =كشاف!AA48 -> حساب | AC91: =كشاف!AB48 -> تكنولوجيا | AD91: =كشاف!AC48 -> دراسات | AF91: الإثنين | AG91: =كشاف!AF48 -> عربي | AH91: =كشاف!AG48 -> عربي | AI91: =كشاف!AH48 -> دراسات | AJ91: =كشاف!AI48 -> حساب | AK91: =كشاف!AJ48 -> العاب | AL91: =كشاف!AK48 -> حساب | AM91: =كشاف!AL48 -> E | AN91: =كشاف!AN48 -> حساب
A92: =كشاف!BG95 -> 0 | C92: =كشاف!V7 -> نورا كامل | D92: =كشاف!W7 -> نورا كامل | E92: =كشاف!X7 -> نورا كامل | F92: =كشاف!Y7 -> نورا كامل | G92: =كشاف!Z7 -> نورا كامل | H92: =كشاف!AA7 -> احمد ابراهيم | I92: =كشاف!AB7 -> نورا كامل | J92: =كشاف!AC7 -> نورا كامل | M92: =كشاف!V23 -> زكيه سيد | N92: =كشاف!W23 -> زكيه سيد | O92: =كشاف!X23 -> زكيه سيد | P92: =كشاف!Y23 -> زكيه سيد | Q92: =كشاف!Z23 -> ايمان عبدالناصر | R92: =كشاف!AA23 -> زكيه سيد | S92: =كشاف!AB23 -> زكيه سيد | T92: =كشاف!AC23 -> زكيه سيد | W92: =كشاف!V49 -> صلاح شعبان:صبرى سعيد | X92: =كشاف!W49 -> زكيه سيد | Y92: =كشاف!X49 -> زكيه سيد | Z92: =كشاف!Y49 -> ايمان عبدالناصر | AA92: =كشاف!Z49 -> زكيه سيد | AB92: =كشاف!AA49 -> عطيه عبدالغفار | AC92: =كشاف!AB49 -> كوثر سعيد | AD92: =كشاف!AC49 -> احمد ابراهيم | AG92: =كشاف!AF49 -> زكيه سيد | AH92: =كشاف!AG49 -> زكيه سيد | AI92: =كشاف!AH49 -> احمد ابراهيم | AJ92: =كشاف!AI49 -> عطيه عبدالغفار | AK92: =كشاف!AJ49 -> ايمان عبدالناصر | AL92: =كشاف!AK49 -> عطيه عبدالغفار | AM92: =كشاف!AL49 -> ايمان عبدالناصر | AN92: =كشاف!AN49 -> عطيه عبدالغفار
A93: =كشاف!BG96 -> 0 | B93: الثلاثاء | C93: =كشاف!AE6 -> عربي | D93: =كشاف!AF6 -> عربي | E93: =كشاف!AG6 -> متعدد | F93: =كشاف!AH6 -> متعدد | G93: =كشاف!AI6 -> حساب | H93: =كشاف!AJ6 -> حساب | I93: =كشاف!AK6 -> E | J93: =كشاف!AL16 -> متعدد | L93: الثلاثاء | M93: =كشاف!AE22 -> E | N93: =كشاف!AF22 -> عربي | O93: =كشاف!AG22 -> عربي | P93: =كشاف!AH22 -> متعدد | Q93: =كشاف!AI22 -> حساب | R93: =كشاف!AJ22 -> حساب | S93: =كشاف!AK22 -> متعدد | T93: =كشاف!AL32 -> عربي | V93: الثلاثاء | W93: =كشاف!AE48 -> علوم | X93: =كشاف!AF48 -> عربي | Y93: =كشاف!AG48 -> عربي | Z93: =كشاف!AH48 -> دراسات | AA93: =كشاف!AI48 -> حساب | AB93: =كشاف!AJ48 -> العاب | AC93: =كشاف!AK48 -> حساب | AD93: =كشاف!AL48 -> E | AF93: الثلاثاء | AG93: =كشاف!AO48 -> عربي | AH93: =كشاف!AP48 -> عربي | AI93: =كشاف!AQ48 -> تكنولوجيا | AJ93: =كشاف!AR48 -> E | AK93: =كشاف!AS48 -> رسم | AL93: =كشاف!AT48 -> موسيقى | AM93: =كشاف!AU48 -> علوم | AN93: =كشاف!AW48 -> قيم
A94: =كشاف!BG97 -> 0 | C94: =كشاف!AE7 -> نورا كامل | D94: =كشاف!AF7 -> نورا كامل | E94: =كشاف!AG7 -> نورا كامل | F94: =كشاف!AH7 -> نورا كامل | G94: =كشاف!AI7 -> نورا كامل | H94: =كشاف!AJ7 -> نورا كامل | I94: =كشاف!AK7 -> احمد ابراهيم | J94: =كشاف!AL17 -> محمود عبدالهادى | M94: =كشاف!AE23 -> ايمان عبدالناصر | N94: =كشاف!AF23 -> زكيه سيد | O94: =كشاف!AG23 -> زكيه سيد | P94: =كشاف!AH23 -> زكيه سيد | Q94: =كشاف!AI23 -> زكيه سيد | R94: =كشاف!AJ23 -> زكيه سيد | S94: =كشاف!AK23 -> زكيه سيد | T94: =كشاف!AL33 -> مصطفى عبدالحميد | W94: =كشاف!AE49 -> اسماء جمال | X94: =كشاف!AF49 -> زكيه سيد | Y94: =كشاف!AG49 -> زكيه سيد | Z94: =كشاف!AH49 -> احمد ابراهيم | AA94: =كشاف!AI49 -> عطيه عبدالغفار | AB94: =كشاف!AJ49 -> ايمان عبدالناصر | AC94: =كشاف!AK49 -> عطيه عبدالغفار | AD94: =كشاف!AL49 -> ايمان عبدالناصر | AG94: =كشاف!AO49 -> زكيه سيد | AH94: =كشاف!AP49 -> زكيه سيد | AI94: =كشاف!AQ49 -> كوثر سعيد | AJ94: =كشاف!AR49 -> ايمان عبدالناصر | AK94: =كشاف!AS49 -> عطيه عبدالغفار | AL94: =كشاف!AT49 -> زكيه سيد | AM94: =كشاف!AU49 -> اسماء جمال | AN94: =كشاف!AW49 -> زكيه سيد
A95: =كشاف!BG98 -> 0 | B95: الأربعاء | C95: =كشاف!AN16 -> حساب | D95: =كشاف!AO16 -> حساب | E95: =كشاف!AP16 -> دين | F95: =كشاف!AQ16 -> متعدد | G95: =كشاف!AR16 -> متعدد | H95: =كشاف!AS16 -> عربي | I95: =كشاف!AT16 -> عربي | J95: =كشاف!AU16 -> E | L95: الأربعاء | M95: =كشاف!AN32 -> عربي | N95: =كشاف!AO32 -> عربي | O95: =كشاف!AP32 -> عربي | P95: =كشاف!AQ32 -> عربي | Q95: =كشاف!AR32 -> حساب | R95: =كشاف!AS32 -> حساب | S95: =كشاف!AT32 -> متعدد | T95: =كشاف!AU32 -> E | V95: الأربعاء | W95: =كشاف!AN48 -> حساب | X95: =كشاف!AO48 -> عربي | Y95: =كشاف!AP48 -> عربي | Z95: =كشاف!AQ48 -> تكنولوجيا | AA95: =كشاف!AR48 -> E | AB95: =كشاف!AS48 -> رسم | AC95: =كشاف!AT48 -> موسيقى | AD95: =كشاف!AU48 -> علوم | AF95: الأربعاء | AG95: =كشاف!AX48 -> دراسات | AH95: =كشاف!AY48 -> عربي | AI95: =كشاف!AZ48 -> العاب | AJ95: =كشاف!BA48 -> علوم | AK95: =كشاف!BB48 -> حساب | AL95: =كشاف!BC48 -> عربي | AM95: =كشاف!BD48 -> مهارات | AN95: =كشاف!BE48 -> 0
A96: =كشاف!BG99 -> 0 | C96: =كشاف!AN17 -> محمود عبدالهادى | D96: =كشاف!AO17 -> محمود عبدالهادى | E96: =كشاف!AP17 -> محمود عبدالهادى | F96: =كشاف!AQ17 -> محمود عبدالهادى | G96: =كشاف!AR17 -> محمود عبدالهادى | H96: =كشاف!AS17 -> محمود عبدالهادى | I96: =كشاف!AT17 -> محمود عبدالهادى | J96: =كشاف!AU17 -> احمد ابراهيم | M96: =كشاف!AN33 -> مصطفى عبدالحميد | N96: =كشاف!AO33 -> مصطفى عبدالحميد | O96: =كشاف!AP33 -> مصطفى عبدالحميد | P96: =كشاف!AQ33 -> مصطفى عبدالحميد | Q96: =كشاف!AR33 -> مصطفى عبدالحميد | R96: =كشاف!AS33 -> مصطفى عبدالحميد | S96: =كشاف!AT33 -> مصطفى عبدالحميد | T96: =كشاف!AU33 -> ايمان عبدالناصر | W96: =كشاف!AN49 -> عطيه عبدالغفار | X96: =كشاف!AO49 -> زكيه سيد | Y96: =كشاف!AP49 -> زكيه سيد | Z96: =كشاف!AQ49 -> كوثر سعيد | AA96: =كشاف!AR49 -> ايمان عبدالناصر | AB96: =كشاف!AS49 -> عطيه عبدالغفار | AC96: =كشاف!AT49 -> زكيه سيد | AD96: =كشاف!AU49 -> اسماء جمال | AG96: =كشاف!AX49 -> احمد ابراهيم | AH96: =كشاف!AY49 -> زكيه سيد | AI96: =كشاف!AZ49 -> ايمان عبدالناصر | AJ96: =كشاف!BA49 -> اسماء جمال | AK96: =كشاف!BB49 -> عطيه عبدالغفار | AL96: =كشاف!BC49 -> زكيه سيد | AM96: =كشاف!BD49 -> صلاح شعبان:صبرى سعيد | AN96: =كشاف!BE49 -> 0
A97: =كشاف!BG100 -> 0 | B97: الخميس | C97: =كشاف!AW16 -> عربي | D97: =كشاف!AX16 -> عربي | E97: =كشاف!AY16 -> حساب | F97: =كشاف!AZ16 -> حساب | G97: =كشاف!BA16 -> متعدد | L97: الخميس | M97: =كشاف!AW32 -> حساب | N97: =كشاف!AX32 -> حساب | O97: =كشاف!AY32 -> عربي | P97: =كشاف!AZ32 -> عربي | Q97: =كشاف!BA32 -> العاب | V97: الخميس | W97: =كشاف!AW48 -> قيم | X97: =كشاف!AX48 -> دراسات | Y97: =كشاف!AY48 -> عربي | Z97: =كشاف!AZ48 -> العاب | AA97: =كشاف!BA48 -> علوم | AF97: الخميس | AG97: =كشاف!BF48 -> 0 | AH97: =كشاف!BG48 -> 5/4 | AI97: =كشاف!BH48 -> 0 | AJ97: =كشاف!BI48 -> 0 | AK97: =كشاف!BJ48 -> 0
A98: =كشاف!BG101 -> 0 | C98: =كشاف!AW17 -> محمود عبدالهادى | D98: =كشاف!AX17 -> محمود عبدالهادى | E98: =كشاف!AY17 -> محمود عبدالهادى | F98: =كشاف!AZ17 -> محمود عبدالهادى | G98: =كشاف!BA17 -> محمود عبدالهادى | M98: =كشاف!AW33 -> مصطفى عبدالحميد | N98: =كشاف!AX33 -> مصطفى عبدالحميد | O98: =كشاف!AY33 -> مصطفى عبدالحميد | P98: =كشاف!AZ33 -> مصطفى عبدالحميد | Q98: =كشاف!BA33 -> مصطفى عبدالحميد | W98: =كشاف!AW49 -> زكيه سيد | X98: =كشاف!AX49 -> احمد ابراهيم | Y98: =كشاف!AY49 -> زكيه سيد | Z98: =كشاف!AZ49 -> ايمان عبدالناصر | AA98: =كشاف!BA49 -> اسماء جمال | AG98: =كشاف!BF49 -> 0 | AH98: =كشاف!BG49 -> 0 | AI98: =كشاف!BH49 -> 0 | AJ98: =كشاف!BI49 -> 0 | AK98: =كشاف!BJ49 -> 0
E99: جدول فصل | F99: =A15 -> 3/2 | G99: =A16 -> 0 | O99: جدول فصل | P99: =A31 -> 5/3 | Q99: =A32 -> 0
B100: اليوم | C100: 1 | D100: 2 | E100: 3 | F100: 4 | G100: 5 | H100: 6 | I100: 7 | J100: 8 | L100: اليوم | M100: 1 | N100: 2 | O100: 3 | P100: 4 | Q100: 5 | R100: 6 | S100: 7 | T100: 8 | Y100: جدول فصل | Z100: =A45 -> 5/4 | AI100: جدول فصل | AJ100: =J45 -> 0
B101: السبت | C101: =كشاف!D18 -> 0 | D101: =كشاف!E18 -> 0 | E101: =كشاف!F18 -> 0 | F101: =كشاف!G18 -> 0 | G101: =كشاف!H18 -> 0 | H101: =كشاف!I18 -> 0 | I101: =كشاف!J18 -> 0 | J101: =كشاف!K18 -> 0 | L101: السبت | M101: =كشاف!D34 -> 0 | N101: =كشاف!E34 -> 0 | O101: =كشاف!F34 -> 0 | P101: =كشاف!G34 -> 0 | Q101: =كشاف!H34 -> 0 | R101: =كشاف!I34 -> 0 | S101: =كشاف!J34 -> 0 | T101: =كشاف!K34 -> 0 | V101: اليوم | W101: 1 | X101: 2 | Y101: 3 | Z101: 4 | AA101: 5 | AB101: 6 | AC101: 7 | AD101: 8 | AF101: اليوم | AG101: 1 | AH101: 2 | AI101: 3 | AJ101: 4 | AK101: 5 | AL101: 6 | AM101: 7 | AN101: 8
C102: =كشاف!D19 -> 0 | D102: =كشاف!E19 -> 0 | E102: =كشاف!F19 -> 0 | F102: =كشاف!G19 -> 0 | G102: =كشاف!H19 -> 0 | H102: =كشاف!I19 -> 0 | I102: =كشاف!J19 -> 0 | J102: =كشاف!K19 -> 0 | M102: =كشاف!D35 -> 0 | N102: =كشاف!E35 -> 0 | O102: =كشاف!F35 -> 0 | P102: =كشاف!G35 -> 0 | Q102: =كشاف!H35 -> 0 | R102: =كشاف!I35 -> 0 | S102: =كشاف!J35 -> 0 | T102: =كشاف!K35 -> 0 | V102: السبت | W102: =كشاف!D63 -> 0 | X102: =كشاف!E63 -> 0 | Y102: =كشاف!F63 -> 0 | Z102: =كشاف!G63 -> 0 | AA102: =كشاف!H63 -> 0 | AB102: =كشاف!I63 -> 0 | AC102: =كشاف!J63 -> 0 | AD102: =كشاف!K63 -> 0 | AF102: السبت | AG102: =كشاف!N63 -> فاطمه كامل | AH102: =كشاف!O63 -> فاطمه كامل | AI102: =كشاف!P63 -> احمد سليمان | AJ102: =كشاف!Q63 -> ابوبكر عزت | AK102: =كشاف!R63 -> دعاء | AL102: =كشاف!S63 -> سعيد عبدالباسط | AM102: =كشاف!T63 -> سعيد عبدالباسط | AN102: =كشاف!V63 -> فاطمه كامل
B103: الأحد | C103: =كشاف!M8 -> متعدد | D103: =كشاف!N8 -> متعدد | E103: =كشاف!O8 -> عربي | F103: =كشاف!P8 -> عربي | G103: =كشاف!Q8 -> متعدد | H103: =كشاف!R8 -> حساب | I103: =كشاف!S8 -> حساب | J103: =كشاف!T8 -> E | L103: الأحد | M103: =كشاف!M24 -> عربي | N103: =كشاف!N24 -> عربي | O103: =كشاف!O24 -> العاب | P103: =كشاف!P24 -> متعدد | Q103: =كشاف!Q24 -> دين | R103: =كشاف!R24 -> متعدد | S103: =كشاف!S24 -> E | T103: =كشاف!T24 -> متعدد | W103: =كشاف!D64 -> 0 | X103: =كشاف!E64 -> 0 | Y103: =كشاف!F64 -> 0 | Z103: =كشاف!G64 -> 0 | AA103: =كشاف!H64 -> 0 | AB103: =كشاف!I64 -> 0 | AC103: =كشاف!J64 -> 0 | AD103: =كشاف!K64 -> 0 | AG103: =كشاف!N64 -> عربي | AH103: =كشاف!O64 -> علوم | AI103: =كشاف!P64 -> عربي | AJ103: =كشاف!Q64 -> عربي | AK103: =كشاف!R64 -> نشاط 2 | AL103: =كشاف!S64 -> حساب | AM103: =كشاف!T64 -> E | AN103: =كشاف!V64 -> عربي
C104: =كشاف!M9 -> فاطمه كامل | D104: =كشاف!N9 -> فاطمه كامل | E104: =كشاف!O9 -> فاطمه كامل | F104: =كشاف!P9 -> فاطمه كامل | G104: =كشاف!Q9 -> فاطمه كامل | H104: =كشاف!R9 -> فاطمه كامل | I104: =كشاف!S9 -> فاطمه كامل | J104: =كشاف!T9 -> احمد ابراهيم | M104: =كشاف!M25 -> مصطفى جمعه | N104: =كشاف!N25 -> مصطفى جمعه | O104: =كشاف!O25 -> مصطفى جمعه | P104: =كشاف!P25 -> مصطفى جمعه | Q104: =كشاف!Q25 -> مصطفى جمعه | R104: =كشاف!R25 -> مصطفى جمعه | S104: =كشاف!S25 -> ايمان عبدالناصر | T104: =كشاف!T25 -> مصطفى جمعه | V104: الأحد | W104: =كشاف!M63 -> سعيد عبدالباسط | X104: =كشاف!N63 -> فاطمه كامل | Y104: =كشاف!O63 -> فاطمه كامل | Z104: =كشاف!P63 -> احمد سليمان | AA104: =كشاف!Q63 -> ابوبكر عزت | AB104: =كشاف!R63 -> دعاء | AC104: =كشاف!S63 -> سعيد عبدالباسط | AD104: =كشاف!T63 -> سعيد عبدالباسط | AF104: الأحد | AG104: =كشاف!W63 -> سعيد عبدالباسط | AH104: =كشاف!X63 -> دعاء | AI104: =كشاف!Y63 -> احمد سليمان | AJ104: =كشاف!Z63 -> فاطمه كامل | AK104: =كشاف!AA63 -> منال جمعه | AL104: =كشاف!AB63 -> فاطمه كامل | AM104: =كشاف!AC63 -> ابوبكر عزت | AN104: =كشاف!AE63 -> فاطمه كامل
B105: الإثنين | C105: =كشاف!V8 -> متعدد | D105: =كشاف!W8 -> العاب | E105: =كشاف!X8 -> حساب | F105: =كشاف!Y8 -> حساب | G105: =كشاف!Z8 -> عربي | H105: =كشاف!AA8 -> عربي | I105: =كشاف!AB8 -> E | J105: =كشاف!AC8 -> متعدد | L105: الإثنين | M105: =كشاف!V24 -> عربي | N105: =كشاف!W24 -> عربي | O105: =كشاف!X24 -> حساب | P105: =كشاف!Y24 -> حساب | Q105: =كشاف!Z24 -> متعدد | R105: =كشاف!AA24 -> العاب | S105: =كشاف!AB24 -> متعدد | T105: =كشاف!AC24 -> متعدد | W105: =كشاف!M64 -> دين | X105: =كشاف!N64 -> عربي | Y105: =كشاف!O64 -> علوم | Z105: =كشاف!P64 -> عربي | AA105: =كشاف!Q64 -> عربي | AB105: =كشاف!R64 -> نشاط 2 | AC105: =كشاف!S64 -> حساب | AD105: =كشاف!T64 -> E | AG105: =كشاف!W64 -> نشاط1 | AH105: =كشاف!X64 -> حاسب | AI105: =كشاف!Y64 -> العاب | AJ105: =كشاف!Z64 -> دين | AK105: =كشاف!AA64 -> دراسات | AL105: =كشاف!AB64 -> حساب | AM105: =كشاف!AC64 -> رسم | AN105: =كشاف!AE64 -> عربي
C106: =كشاف!V9 -> فاطمه كامل | D106: =كشاف!W9 -> فاطمه كامل | E106: =كشاف!X9 -> فاطمه كامل | F106: =كشاف!Y9 -> فاطمه كامل | G106: =كشاف!Z9 -> فاطمه كامل | H106: =كشاف!AA9 -> فاطمه كامل | I106: =كشاف!AB9 -> احمد ابراهيم | J106: =كشاف!AC9 -> فاطمه كامل | M106: =كشاف!V25 -> مصطفى جمعه | N106: =كشاف!W25 -> مصطفى جمعه | O106: =كشاف!X25 -> مصطفى جمعه | P106: =كشاف!Y25 -> مصطفى جمعه | Q106: =كشاف!Z25 -> مصطفى جمعه | R106: =كشاف!AA25 -> مصطفى جمعه | S106: =كشاف!AB25 -> مصطفى جمعه | T106: =كشاف!AC25 -> مصطفى جمعه | V106: الإثنين | W106: =كشاف!V63 -> فاطمه كامل | X106: =كشاف!W63 -> سعيد عبدالباسط | Y106: =كشاف!X63 -> دعاء | Z106: =كشاف!Y63 -> احمد سليمان | AA106: =كشاف!Z63 -> فاطمه كامل | AB106: =كشاف!AA63 -> منال جمعه | AC106: =كشاف!AB63 -> فاطمه كامل | AD106: =كشاف!AC63 -> ابوبكر عزت | AF106: الإثنين | AG106: =كشاف!AF63 -> فاطمه كامل | AH106: =كشاف!AG63 -> ابوبكر عزت | AI106: =كشاف!AH63 -> محمد ناجى | AJ106: =كشاف!AI63 -> فاطمه كامل | AK106: =كشاف!AJ63 -> فاطمه كامل | AL106: =كشاف!AK63 -> سعيد عبدالباسط | AM106: =كشاف!AL63 -> دعاء | AN106: =كشاف!AN63 -> احمد سليمان
B107: الثلاثاء | C107: =كشاف!AE8 -> توكاتسو | D107: =كشاف!AF8 -> حساب | E107: =كشاف!AG8 -> حساب | F107: =كشاف!AH8 -> متعدد | G107: =كشاف!AI8 -> عربي | H107: =كشاف!AJ8 -> عربي | I107: =كشاف!AK8 -> متعدد | J107: =كشاف!AL18 -> متعدد | L107: الثلاثاء | M107: =كشاف!AE24 -> متعدد | N107: =كشاف!AF24 -> E | O107: =كشاف!AG24 -> حساب | P107: =كشاف!AH24 -> حساب | Q107: =كشاف!AI24 -> متعدد | R107: =كشاف!AJ24 -> عربي | S107: =كشاف!AK24 -> عربي | T107: =كشاف!AL34 -> العاب | W107: =كشاف!V64 -> عربي | X107: =كشاف!W64 -> نشاط1 | Y107: =كشاف!X64 -> حاسب | Z107: =كشاف!Y64 -> العاب | AA107: =كشاف!Z64 -> دين | AB107: =كشاف!AA64 -> دراسات | AC107: =كشاف!AB64 -> حساب | AD107: =كشاف!AC64 -> رسم | AG107: =كشاف!AF64 -> عربي | AH107: =كشاف!AG64 -> دراسات | AI107: =كشاف!AH64 -> عربي | AJ107: =كشاف!AI64 -> العاب | AK107: =كشاف!AJ64 -> حساب | AL107: =كشاف!AK64 -> E | AM107: =كشاف!AL64 -> نشاط 2 | AN107: =كشاف!AN64 -> عربي
C108: =كشاف!AE9 -> فاطمه كامل | D108: =كشاف!AF9 -> فاطمه كامل | E108: =كشاف!AG9 -> فاطمه كامل | F108: =كشاف!AH9 -> فاطمه كامل | G108: =كشاف!AI9 -> فاطمه كامل | H108: =كشاف!AJ9 -> فاطمه كامل | I108: =كشاف!AK9 -> فاطمه كامل | J108: =كشاف!AL19 -> سعيد عبدالباسط | M108: =كشاف!AE25 -> مصطفى جمعه | N108: =كشاف!AF25 -> ايمان عبدالناصر | O108: =كشاف!AG25 -> مصطفى جمعه | P108: =كشاف!AH25 -> مصطفى جمعه | Q108: =كشاف!AI25 -> مصطفى جمعه | R108: =كشاف!AJ25 -> مصطفى جمعه | S108: =كشاف!AK25 -> مصطفى جمعه | T108: =كشاف!AL35 -> ابوبكر عزت | V108: الثلاثاء | W108: =كشاف!AE63 -> فاطمه كامل | X108: =كشاف!AF63 -> فاطمه كامل | Y108: =كشاف!AG63 -> ابوبكر عزت | Z108: =كشاف!AH63 -> محمد ناجى | AA108: =كشاف!AI63 -> فاطمه كامل | AB108: =كشاف!AJ63 -> فاطمه كامل | AC108: =كشاف!AK63 -> سعيد عبدالباسط | AD108: =كشاف!AL63 -> دعاء | AF108: الثلاثاء | AG108: =كشاف!AO63 -> فاطمه كامل | AH108: =كشاف!AP63 -> محمد ناجى | AI108: =كشاف!AQ63 -> سعيد عبدالباسط | AJ108: =كشاف!AR63 -> فاطمه كامل | AK108: =كشاف!AS63 -> منال جمعه | AL108: =كشاف!AT63 -> فاطمه كامل | AM108: =كشاف!AU63 -> فاطمه كامل | AN108: =كشاف!AW63 -> ابوبكر عزت
B109: الأربعاء | C109: =كشاف!AN18 -> E | D109: =كشاف!AO18 -> حساب | E109: =كشاف!AP18 -> حساب | F109: =كشاف!AQ18 -> متعدد | G109: =كشاف!AR18 -> عربي | H109: =كشاف!AS18 -> عربي | I109: =كشاف!AT18 -> متعدد | J109: =كشاف!AU18 -> العاب | L109: الأربعاء | M109: =كشاف!AN34 -> توكاتسو | N109: =كشاف!AO34 -> دين | O109: =كشاف!AP34 -> E | P109: =كشاف!AQ34 -> حساب | Q109: =كشاف!AR34 -> حساب | R109: =كشاف!AS34 -> متعدد | S109: =كشاف!AT34 -> عربي | T109: =كشاف!AU34 -> عربي | W109: =كشاف!AE64 -> عربي | X109: =كشاف!AF64 -> عربي | Y109: =كشاف!AG64 -> دراسات | Z109: =كشاف!AH64 -> عربي | AA109: =كشاف!AI64 -> العاب | AB109: =كشاف!AJ64 -> حساب | AC109: =كشاف!AK64 -> E | AD109: =كشاف!AL64 -> نشاط 2 | AG109: =كشاف!AO64 -> عربي | AH109: =كشاف!AP64 -> علوم | AI109: =كشاف!AQ64 -> حساب | AJ109: =كشاف!AR64 -> دراسات | AK109: =كشاف!AS64 -> رسم | AL109: =كشاف!AT64 -> نشاط1 | AM109: =كشاف!AU64 -> حاسب | AN109: =كشاف!AW64 -> E
C110: =كشاف!AN19 -> احمد ابراهيم | D110: =كشاف!AO19 -> سعيد عبدالباسط | E110: =كشاف!AP19 -> سعيد عبدالباسط | F110: =كشاف!AQ19 -> سعيد عبدالباسط | G110: =كشاف!AR19 -> سعيد عبدالباسط | H110: =كشاف!AS19 -> سعيد عبدالباسط | I110: =كشاف!AT19 -> سعيد عبدالباسط | J110: =كشاف!AU19 -> سعيد عبدالباسط | M110: =كشاف!AN35 -> ابوبكر عزت | N110: =كشاف!AO35 -> ابوبكر عزت | O110: =كشاف!AP35 -> ايمان عبدالناصر | P110: =كشاف!AQ35 -> ابوبكر عزت | Q110: =كشاف!AR35 -> ابوبكر عزت | R110: =كشاف!AS35 -> ابوبكر عزت | S110: =كشاف!AT35 -> ابوبكر عزت | T110: =كشاف!AU35 -> ابوبكر عزت | V110: الأربعاء | W110: =كشاف!AN63 -> احمد سليمان | X110: =كشاف!AO63 -> فاطمه كامل | Y110: =كشاف!AP63 -> محمد ناجى | Z110: =كشاف!AQ63 -> سعيد عبدالباسط | AA110: =كشاف!AR63 -> فاطمه كامل | AB110: =كشاف!AS63 -> منال جمعه | AC110: =كشاف!AT63 -> فاطمه كامل | AD110: =كشاف!AU63 -> فاطمه كامل | AF110: الأربعاء | AG110: =كشاف!AX63 -> سعيد عبدالباسط | AH110: =كشاف!AY63 -> سعيد عبدالباسط | AI110: =كشاف!AZ63 -> فاطمه كامل | AJ110: =كشاف!BA63 -> ابوبكر عزت | AK110: =كشاف!BB63 -> فاطمه كامل | AL110: =كشاف!BC63 -> فاطمه كامل | AM110: =كشاف!BD63 -> فاطمه كامل | AN110: =كشاف!BE63 -> 0
B111: الخميس | C111: =كشاف!AW18 -> توكاتسو | D111: =كشاف!AX18 -> عربي | E111: =كشاف!AY18 -> عربي | F111: =كشاف!AZ18 -> متعدد | G111: =كشاف!BA18 -> متعدد | L111: الخميس | M111: =كشاف!AW34 -> متعدد | N111: =كشاف!AX34 -> متعدد | O111: =كشاف!AY34 -> E | P111: =كشاف!AZ34 -> حساب | Q111: =كشاف!BA34 -> حساب | W111: =كشاف!AN64 -> عربي | X111: =كشاف!AO64 -> عربي | Y111: =كشاف!AP64 -> علوم | Z111: =كشاف!AQ64 -> حساب | AA111: =كشاف!AR64 -> دراسات | AB111: =كشاف!AS64 -> رسم | AC111: =كشاف!AT64 -> نشاط1 | AD111: =كشاف!AU64 -> حاسب | AG111: =كشاف!AX64 -> عربي | AH111: =كشاف!AY64 -> حساب | AI111: =كشاف!AZ64 -> حساب | AJ111: =كشاف!BA64 -> عربي | AK111: =كشاف!BB64 -> علوم | AL111: =كشاف!BC64 -> عربي | AM111: =كشاف!BD64 -> دين | AN111: =كشاف!BE64 -> 0
C112: =كشاف!AW19 -> سعيد عبدالباسط | D112: =كشاف!AX19 -> سعيد عبدالباسط | E112: =كشاف!AY19 -> سعيد عبدالباسط | F112: =كشاف!AZ19 -> سعيد عبدالباسط | G112: =كشاف!BA19 -> سعيد عبدالباسط | M112: =كشاف!AW35 -> ابوبكر عزت | N112: =كشاف!AX35 -> ابوبكر عزت | O112: =كشاف!AY35 -> ايمان عبدالناصر | P112: =كشاف!AZ35 -> ابوبكر عزت | Q112: =كشاف!BA35 -> ابوبكر عزت | V112: الخميس | W112: =كشاف!AW63 -> ابوبكر عزت | X112: =كشاف!AX63 -> سعيد عبدالباسط | Y112: =كشاف!AY63 -> سعيد عبدالباسط | Z112: =كشاف!AZ63 -> فاطمه كامل | AA112: =كشاف!BA63 -> ابوبكر عزت | AF112: الخميس | AG112: =كشاف!BF63 -> 0 | AH112: =كشاف!BG63 -> 0 | AI112: =كشاف!BH63 -> 0 | AJ112: =كشاف!BI63 -> 0 | AK112: =كشاف!BJ63 -> 0
W113: =كشاف!AW64 -> E | X113: =كشاف!AX64 -> عربي | Y113: =كشاف!AY64 -> حساب | Z113: =كشاف!AZ64 -> حساب | AA113: =كشاف!BA64 -> عربي | AG113: =كشاف!BF64 -> 0 | AH113: =كشاف!BG64 -> 1/6 | AI113: =كشاف!BH64 -> 0 | AJ113: =كشاف!BI64 -> 0 | AK113: =كشاف!BJ64 -> 0

Sheet الجدول
P1: 10
F5: جدول الاستاذ/ | G5: =IFERROR(VLOOKUP($P$1,كشاف!$BI$4:$BJ$150,2,0),"") -> سعيد عبدالباسط | H5: عدد الحصص | J5: =SUM($M$11:$M$19) -> 36
C7: اليوم | D7: الأولى | E7: الثانية | F7: الثالثة | G7: الرابعة | H7: الخامسة | I7: السادسة | J7: السابعة | K7: الثامنة
C8: السبت
C10: الأحد | D10: متعدد | E10: عربي | F10: عربي | G10: متعدد | I10: حساب | J10: حساب | K10: متعدد
D11: 3/2 | E11: 3/2 | F11: 3/2 | G11: 3/2 | I11: 3/2 | J11: 3/2 | K11: 3/2 | M11: =COUNTIF($D$11:$L$11,"<>") -> 7
C12: الإثنين | D12: متعدد | E12: دين | G12: متعدد | H12: حساب | I12: حساب | J12: عربي | K12: عربي
D13: 3/2 | E13: 3/2 | G13: 3/2 | H13: 3/2 | I13: 3/2 | J13: 3/2 | K13: 3/2 | M13: =COUNTIF($D$13:$K$13,"<>") -> 7
C14: الثلاثاء | D14: العاب | E14: عربي | F14: عربي | G14: عربي | H14: عربي | J14: متعدد | K14: متعدد
D15: 3/2 | E15: 3/2 | F15: 3/2 | G15: 3/2 | H15: 3/2 | J15: 3/2 | K15: 3/2 | M15: =COUNTIF($D$15:$K$15,"<>") -> 7
C16: الأربعاء | E16: حساب | F16: حساب | G16: متعدد | H16: عربي | I16: عربي | J16: متعدد | K16: العاب
E17: 3/2 | F17: 3/2 | G17: 3/2 | H17: 3/2 | I17: 3/2 | J17: 3/2 | K17: 3/2 | M17: =COUNTIF($D$17:$K$17,"<>") -> 7
C18: الخميس | D18: توكاتسو | E18: عربي | F18: عربي | G18: متعدد | H18: متعدد | I18: دين | J18: حساب | K18: حساب
D19: 3/2 | E19: 3/2 | F19: 3/2 | G19: 3/2 | H19: 3/2 | I19: 3/2 | J19: 3/2 | K19: 3/2 | M19: =COUNTIF($D$19:$K$19,"<>") -> 8
F22: جدول الاستاذ/ | G22: =IFERROR(VLOOKUP($P$22,كشاف!$BI$4:$BJ$150,2,0),"") -> محمد صبحي | H22: عدد الحصص | J22: =SUM($M$27:$M$36) -> 36 | P22: =P1+1 -> 11
C24: اليوم | D24: الأولى | E24: الثانية | F24: الثالثة | G24: الرابعة | H24: الخامسة | I24: السادسة | J24: السابعة | K24: الثامنة
C25: السبت
C27: الأحد | E27: متعدد | F27: متعدد | G27: متعدد | H27: دين | I27: عربي | J27: عربي | K27: توكاتسو | M27: =COUNTIF($D$28:$L$28,"<>") -> 7
E28: 1/2 | F28: 1/2 | G28: 1/2 | H28: 1/2 | I28: 1/2 | J28: 1/2 | K28: 1/2
C29: الإثنين | D29: متعدد | E29: حساب | F29: حساب | G29: عربي | H29: عربي | I29: عربي | J29: عربي | M29: =COUNTIF($D$29:$K$29,"<>") -> 7
D30: 1/2 | E30: 1/2 | F30: 1/2 | G30: 1/2 | H30: 1/2 | I30: 1/2 | J30: 1/2
C31: الثلاثاء | D31: متعدد | F31: العاب | G31: حساب | H31: حساب | I31: متعدد | J31: عربي | K31: عربي | M31: =COUNTIF($D$31:$K$31,"<>") -> 7
D32: 1/2 | F32: 1/2 | G32: 1/2 | H32: 1/2 | I32: 1/2 | J32: 1/2 | K32: 1/2
C33: الأربعاء | D33: متعدد | E33: حساب | F33: حساب | G33: العاب | H33: متعدد | I33: عربي | J33: عربي | K33: متعدد | M33: =COUNTIF($D$33:$K$33,"<>") -> 8
D34: 1/2 | E34: 1/2 | F34: 1/2 | G34: 1/2 | H34: 1/2 | I34: 1/2 | J34: 1/2 | K34: 1/2
C35: الخميس | D35: متعدد | F35: عربي | G35: عربي | H35: متعدد | I35: دين | J35: حساب | K35: حساب | M35: =COUNTIF($D$35:$K$35,"<>") -> 7
D36: 1/2 | F36: 1/2 | G36: 1/2 | H36: 1/2 | I36: 1/2 | J36: 1/2 | K36: 1/2
F39: جدول الاستاذ/ | G39: =IFERROR(VLOOKUP($P$44,كشاف!$BI$4:$BJ$150,2,0),"") -> رضا ناجى | H39: عدد الحصص | J39: =SUM($M$44:$M$53) -> 36
C41: اليوم | D41: الأولى | E41: الثانية | F41: الثالثة | G41: الرابعة | H41: الخامسة | I41: السادسة | J41: السابعة | K41: الثامنة
C42: السبت
C44: الأحد | D44: العاب | F44: توكاتسو | G44: متعدد | H44: متعدد | I44: متعدد | J44: عربي | K44: عربي | P44: =P22+1 -> 12
D45: 6/3 | F45: 6/3 | G45: 6/3 | H45: 6/3 | I45: 6/3 | J45: 6/3 | K45: 6/3 | M45: =COUNTIF($D$45:$L$45,"<>") -> 7
C46: الإثنين | D46: حساب | E46: حساب | F46: متعدد | H46: متعدد | I46: العاب | J46: عربي | K46: عربي
D47: 6/3 | E47: 6/3 | F47: 6/3 | H47: 6/3 | I47: 6/3 | J47: 6/3 | K47: 6/3 | M47: =COUNTIF($D$47:$K$47,"<>") -> 7
C48: الثلاثاء | D48: عربي | E48: عربي | G48: حساب | H48: حساب | I48: متعدد | J48: دين | K48: متعدد
D49: 6/3 | E49: 6/3 | G49: 6/3 | H49: 6/3 | I49: 6/3 | J49: 6/3 | K49: 6/3 | M49: =COUNTIF($D$49:$K$49,"<>") -> 7
C50: الأربعاء | D50: متعدد | E50: دين | F50: متعدد | G50: حساب | H50: حساب | I50: متعدد | J50: عربي | K50: عربي
D51: 6/3 | E51: 6/3 | F51: 6/3 | G51: 6/3 | H51: 6/3 | I51: 6/3 | J51: 6/3 | K51: 6/3 | M51: =COUNTIF($D$51:$K$51,"<>") -> 8
C52: الخميس | D52: متعدد | E52: عربي | F52: عربي | G52: حساب | H52: حساب | J52: عربي | K52: عربي
D53: 6/3 | E53: 6/3 | F53: 6/3 | G53: 6/3 | H53: 6/3 | J53: 6/3 | K53: 6/3 | M53: =COUNTIF($D$53:$K$53,"<>") -> 7

Sheet T2
P1: 10
F5: جدول الاستاذ/ | G5: =IFERROR(VLOOKUP($P$1,كشاف!$BI$4:$BJ$150,2,0),"") -> سعيد عبدالباسط | H5: عدد الحصص | J5: =SUM($M$11:$M$19) -> 33
C7: اليوم | D7: الأولى | E7: الثانية | F7: الثالثة | G7: الرابعة | H7: الخامسة | I7: السادسة | J7: السابعة | K7: الثامنة | L7: التاسعة
C8: السبت
C10: الأحد | D10: حساب | F10: حساب | I10: حساب | J10: حساب | K10: حاسب | L10: ريادة
D11: 6/5 | F11: 5/5 | I11: 4/5 | J11: 6/5 | K11: 6/5 | L11: 6/5 | M11: =COUNTIF($D$11:$L$11,"<>") -> 6
C12: الإثنين | D12: حساب | E12: حساب | G12: حساب | H12: حاسب | J12: حساب | K12: رسم
D13: 5/5 | E13: 6/5 | G13: 5/5 | H13: 3/5 | J13: 4/5 | K13: 4/5 | M13: =COUNTIF($D$13:$K$13,"<>") -> 6
C14: الثلاثاء | D14: حساب | E14: حساب | G14: حاسب | H14: رسم | I14: رسم | J14: حساب | K14: رسم
D15: 5/5 | E15: 4/5 | G15: 4/6 | H15: 4/6 | I15: 3/6 | J15: 6/5 | K15: 4/5 | M15: =COUNTIF($D$15:$K$15,"<>") -> 7
C16: الأربعاء | E16: حساب | F16: رسم | G16: حساب | H16: رسم | I16: حساب | J16: حساب | K16: حاسب
E17: 4/5 | F17: 4/6 | G17: 6/5 | H17: 2/6 | I17: 5/5 | J17: 4/5 | K17: 4/6 | M17: =COUNTIF($D$17:$K$17,"<>") -> 7
C18: الخميس | D18: حساب | E18: حاسب | F18: حساب | G18: حاسب | H18: رسم | J18: حساب | K18: رسم
D19: 4/5 | E19: 6/5 | F19: 6/5 | G19: 3/5 | H19: 3/6 | J19: 5/5 | K19: 2/6 | M19: =COUNTIF($D$19:$K$19,"<>") -> 7
F22: جدول الاستاذ/ | G22: =IFERROR(VLOOKUP($P$22,كشاف!$BI$4:$BJ$150,2,0),"") -> محمد صبحي | H22: عدد الحصص | J22: =SUM($M$28:$M$36) -> 36 | P22: =P1+1 -> 11
C24: اليوم | D24: الأولى | E24: الثانية | F24: الثالثة | G24: الرابعة | H24: الخامسة | I24: السادسة | J24: السابعة | K24: الثامنة | L24: التاسعة
C25: السبت
C27: الأحد | D27: عربي | E27: عربي | F27: عربي | G27: عربي | H27: عربي | I27: دين | K27: العاب | L27: ريادة
D28: 2/5 | E28: 1/5 | F28: 2/5 | G28: 1/5 | H28: 2/5 | I28: 1/5 | K28: 1/5 | L28: 1/5 | M28: =COUNTIF($D$28:$L$28,"<>") -> 8
C29: الإثنين | D29: عربي | E29: عربي | F29: عربي | G29: عربي | H29: عربي | I29: دين | J29: عربي
D30: 1/5 | E30: 1/5 | F30: 1/5 | G30: 2/5 | H30: 2/5 | I30: 2/5 | J30: 2/5 | M30: =COUNTIF($D$30:$K$30,"<>") -> 7
C31: الثلاثاء | D31: عربي | E31: دين | F31: عربي | G31: عربي | H31: موسيقى | J31: عربي | K31: دين
D32: 1/5 | E32: 1/5 | F32: 1/5 | G32: 2/5 | H32: 3/4 | J32: 2/5 | K32: 2/5 | M32: =COUNTIF($D$32:$K$32,"<>") -> 7
C33: الأربعاء | D33: توكاتسو | E33: دين | F33: عربي | G33: عربي | I33: عربي | J33: عربي
D34: 2/4 | E34: 2/5 | F34: 1/5 | G34: 2/5 | I34: 1/5 | J34: 1/5 | M34: =COUNTIF($D$34:$K$34,"<>") -> 6
C35: الخميس | D35: عربي | E35: عربي | F35: عربي | G35: عربي | H35: العاب | I35: عربي | J35: دين | K35: توكاتسو
D36: 2/5 | E36: 1/5 | F36: 2/5 | G36: 2/5 | H36: 1/5 | I36: 1/5 | J36: 1/5 | K36: 3/4 | M36: =COUNTIF($D$36:$K$36,"<>") -> 8
F39: جدول الاستاذ/ | G39: =IFERROR(VLOOKUP($P$44,كشاف!$BI$4:$BJ$150,2,0),"") -> رضا ناجى | H39: عدد الحصص | J39: =SUM($M$44:$M$53) -> 37
C41: اليوم | D41: الأولى | E41: الثانية | F41: الثالثة | G41: الرابعة | H41: الخامسة | I41: السادسة | J41: السابعة | K41: الثامنة | L41: التاسعة
C42: السبت
C44: الأحد | D44: عربي | E44: العاب | F44: عربي | G44: عربي | H44: دين | J44: عربي | K44: دين | L44: ريادة | P44: =P22+1 -> 12
D45: 3/5 | E45: 3/4 | F45: 4/5 | G45: 3/5 | H45: 4/5 | J45: 4/5 | K45: 3/5 | L45: 3/5 | M45: =COUNTIF($D$45:$L$45,"<>") -> 8
C46: الإثنين | D46: عربي | E46: رسم | F46: دين | G46: عربي | H46: عربي | I46: عربي | J46: نشاط1
D47: 3/5 | E47: 2/5 | F47: 3/5 | G47: 4/5 | H47: 4/5 | I47: 3/5 | J47: 6/6 | M47: =COUNTIF($D$47:$K$47,"<>") -> 7
C48: الثلاثاء | D48: نشاط1 | E48: عربي | F48: عربي | G48: عربي | H48: عربي | I48: العاب | J48: عربي | K48: دين
D49: 6/6 | E49: 3/5 | F49: 4/5 | G49: 3/5 | H49: 4/5 | I49: 3/4 | J49: 4/5 | K49: 3/5 | M49: =COUNTIF($D$49:$K$49,"<>") -> 8
C50: الأربعاء | D50: عربي | E50: عربي | G50: عربي | H50: عربي | I50: عربي | J50: عربي | K50: دين
D51: 3/5 | E51: 3/5 | G51: 4/5 | H51: 4/5 | I51: 4/5 | J51: 3/5 | K51: 4/5 | M51: =COUNTIF($D$51:$K$51,"<>") -> 7
C52: الخميس | D52: عربي | E52: دين | F52: عربي | H52: عربي | I52: عربي | J52: عربي | K52: رسم
D53: 3/5 | E53: 4/5 | F53: 3/5 | H53: 4/5 | I53: 3/5 | J53: 4/5 | K53: 2/5 | M53: =COUNTIF($D$53:$K$53,"<>") -> 7

Sheet استمارة الحصص
A1: إدارة منشاة القناطر التعليمية | L1: طلب مكافاة الحصص الزائدة عن النصاب | V1: نوفمبر | W1: محمد ناجى | X1: 1/6 | Y1: ريادة
A2: مدرسة المنصورية الابتدائية المشتركة | N2: نصاب المعلم | T2: =VLOOKUP(الجدول!$P$1,ورقة2!$A$2:$F$30,6,0) -> 22 | V2: 2021 | W2: عطيه عبدالغفار | X2: 6/6 | Y2: ريادة
A3: اسم المدرس / | C3: =VLOOKUP(الجدول!$P$1,ورقة2!$A$2:$F$30,2,0) -> سعيد عبدالباسط حسين محمد | L3: المادة / | N3: =VLOOKUP(الجدول!$P$1,ورقة2!$A$2:$F$30,4,0) -> فصل / رياضيات | W3: صابر صالح | X3: 3/6 | Y3: ريادة
A4: الوظيفة على الكادر / | D4: =VLOOKUP(الجدول!$P$1,ورقة2!$A$2:$F$30,3,0) -> معلم اول | L4: التخصص / | N4: =VLOOKUP(الجدول!$P$1,ورقة2!$A$2:$F$30,5,0) -> فصل | W4: نورا كامل | X4: 2/6 | Y4: ريادة
A5: صورة من الجدول الاسبوعى للمدرس | W5: فاطمه كامل | X5: 4/5 | Y5: ريادة
A6: اليوم | B6: فترة صباحية | E6: =VLOOKUP(الجدول!$P$1,ورقة2!$A$2:$J$30,7,0) -> 36 | F6: حصة | K6: فترة مسائية | N6: ='T2'!$J$5 -> 33 | O6: حصة | T6: تحاط الحصص الزائدة عن النصاب بدائرة حمراء | W6: زكيه سيد | X6: 4/6 | Y6: ريادة
B7: 1 | C7: 2 | D7: 3 | E7: 4 | F7: 5 | G7: 6 | H7: 7 | I7: 8 | K7: 1 | L7: 2 | M7: 3 | N7: 4 | O7: 5 | P7: 6 | Q7: 7 | R7: 8 | S7: 9 | W7: منال جمعه | X7: 2/5 | Y7: ريادة
A8: الاحد | B8: =INDIRECT("الجدول!d"&10+ROW()-ROW($B$8)) -> متعدد | C8: =INDIRECT("الجدول!e"&10+ROW()-ROW($C$8)) -> عربي | D8: =INDIRECT("الجدول!f"&10+ROW()-ROW($D$8)) -> عربي | E8: =INDIRECT("الجدول!g"&10+ROW()-ROW($E$8)) -> متعدد | F8: =INDIRECT("الجدول!h"&10+ROW()-ROW($F$8)) -> 0 | G8: =INDIRECT("الجدول!i"&10+ROW()-ROW($F$8)) -> حساب | H8: =INDIRECT("الجدول!j"&10+ROW()-ROW($F$8)) -> حساب | I8: =INDIRECT("الجدول!k"&10+ROW()-ROW($F$8)) -> متعدد | K8: ='T2'!D10 -> حساب | L8: ='T2'!E10 -> 0 | M8: ='T2'!F10 -> حساب | N8: ='T2'!G10 -> 0 | O8: ='T2'!H10 -> 0 | P8: ='T2'!I10 -> حساب | Q8: ='T2'!J10 -> حساب | R8: ='T2'!K10 -> حاسب | S8: ='T2'!L10 -> ريادة | W8: ابوبكر عزت | X8: 5/5 | Y8: ريادة
B9: =INDIRECT("الجدول!d"&10+ROW()-ROW($B$8)) -> 3/2 | C9: =INDIRECT("الجدول!e"&10+ROW()-ROW($C$8)) -> 3/2 | D9: =INDIRECT("الجدول!f"&10+ROW()-ROW($D$8)) -> 3/2 | E9: =INDIRECT("الجدول!g"&10+ROW()-ROW($E$8)) -> 3/2 | F9: =INDIRECT("الجدول!h"&10+ROW()-ROW($F$8)) -> 0 | G9: =INDIRECT("الجدول!i"&10+ROW()-ROW($F$8)) -> 3/2 | H9: =INDIRECT("الجدول!j"&10+ROW()-ROW($F$8)) -> 3/2 | I9: =INDIRECT("الجدول!k"&10+ROW()-ROW($F$8)) -> 3/2 | K9: ='T2'!D11 -> 6/5 | L9: ='T2'!E11 -> 0 | M9: ='T2'!F11 -> 5/5 | N9: ='T2'!G11 -> 0 | O9: ='T2'!H11 -> 0 | P9: ='T2'!I11 -> 4/5 | Q9: ='T2'!J11 -> 6/5 | R9: ='T2'!K11 -> 6/5 | S9: ='T2'!L11 -> 6/5 | W9: مصطفى عبدالحميد | X9: 5/6 | Y9: ريادة
A10: الإثنين | B10: متعدد | C10: دين | D10: 0 | E10: متعدد | F10: حساب | G10: حساب | H10: عربي | I10: عربي | K10: ='T2'!D12 -> حساب | L10: ='T2'!E12 -> حساب | M10: ='T2'!F12 -> 0 | N10: ='T2'!G12 -> حساب | O10: ='T2'!H12 -> حاسب | P10: ='T2'!I12 -> 0 | Q10: ='T2'!J12 -> حساب | R10: ='T2'!K12 -> رسم | S10: ='T2'!L12 -> 0 | W10: سعيد عبدالباسط | X10: 6/5 | Y10: ريادة
B11: 3/2 | C11: 3/2 | D11: 0 | E11: 3/2 | F11: 3/2 | G11: 3/2 | H11: 3/2 | I11: 3/2 | K11: ='T2'!D13 -> 5/5 | L11: ='T2'!E13 -> 6/5 | M11: ='T2'!F13 -> 0 | N11: ='T2'!G13 -> 5/5 | O11: ='T2'!H13 -> 3/5 | P11: ='T2'!I13 -> 0 | Q11: ='T2'!J13 -> 4/5 | R11: ='T2'!K13 -> 4/5 | S11: ='T2'!L13 -> 0 | W11: محمد صبحي | X11: 1/5 | Y11: ريادة
A12: الثلاثاء | B12: العاب | C12: عربي | D12: عربي | E12: عربي | F12: عربي | G12: 0 | H12: متعدد | I12: متعدد | K12: ='T2'!D14 -> حساب | L12: ='T2'!E14 -> حساب | M12: ='T2'!F14 -> 0 | N12: ='T2'!G14 -> حاسب | O12: ='T2'!H14 -> رسم | P12: ='T2'!I14 -> رسم | Q12: ='T2'!J14 -> حساب | R12: ='T2'!K14 -> رسم | S12: ='T2'!L14 -> 0 | W12: رضا ناجى | X12: 3/5 | Y12: ريادة
B13: 3/2 | C13: 3/2 | D13: 3/2 | E13: 3/2 | F13: 3/2 | G13: 0 | H13: 3/2 | I13: 3/2 | K13: ='T2'!D15 -> 5/5 | L13: ='T2'!E15 -> 4/5 | M13: ='T2'!F15 -> 0 | N13: ='T2'!G15 -> 4/6 | O13: ='T2'!H15 -> 4/6 | P13: ='T2'!I15 -> 3/6 | Q13: ='T2'!J15 -> 6/5 | R13: ='T2'!K15 -> 4/5 | S13: ='T2'!L15 -> 0
A14: الأربعاء | B14: 0 | C14: حساب | D14: حساب | E14: متعدد | F14: عربي | G14: عربي | H14: متعدد | I14: العاب | K14: ='T2'!D16 -> 0 | L14: ='T2'!E16 -> حساب | M14: ='T2'!F16 -> رسم | N14: ='T2'!G16 -> حساب | O14: ='T2'!H16 -> رسم | P14: ='T2'!I16 -> حساب | Q14: ='T2'!J16 -> حساب | R14: ='T2'!K16 -> حاسب | S14: ='T2'!L16 -> 0
B15: 0 | C15: 3/2 | D15: 3/2 | E15: 3/2 | F15: 3/2 | G15: 3/2 | H15: 3/2 | I15: 3/2 | K15: ='T2'!D17 -> 0 | L15: ='T2'!E17 -> 4/5 | M15: ='T2'!F17 -> 4/6 | N15: ='T2'!G17 -> 6/5 | O15: ='T2'!H17 -> 2/6 | P15: ='T2'!I17 -> 5/5 | Q15: ='T2'!J17 -> 4/5 | R15: ='T2'!K17 -> 4/6 | S15: ='T2'!L17 -> 0
A16: الخميس | B16: توكاتسو | C16: عربي | D16: عربي | E16: متعدد | F16: متعدد | G16: دين | H16: حساب | I16: حساب | K16: ='T2'!D18 -> حساب | L16: ='T2'!E18 -> حاسب | M16: ='T2'!F18 -> حساب | N16: ='T2'!G18 -> حاسب | O16: ='T2'!H18 -> رسم | P16: ='T2'!I18 -> 0 | Q16: ='T2'!J18 -> حساب | R16: ='T2'!K18 -> رسم | S16: ='T2'!L18 -> 0
B17: 3/2 | C17: 3/2 | D17: 3/2 | E17: 3/2 | F17: 3/2 | G17: 3/2 | H17: 3/2 | I17: 3/2 | K17: ='T2'!D19 -> 4/5 | L17: ='T2'!E19 -> 6/5 | M17: ='T2'!F19 -> 6/5 | N17: ='T2'!G19 -> 3/5 | O17: ='T2'!H19 -> 3/6 | P17: ='T2'!I19 -> 0 | Q17: ='T2'!J19 -> 5/5 | R17: ='T2'!K19 -> 2/6 | S17: ='T2'!L19 -> 0
A18: بيان بالحصص التي درست خلال شهر | L18: =$V$1 -> نوفمبر | N18: عام | P18: =$V$2 -> 2021
A20: اليوم | B20: التاريخ | C20: عدد الحصص | D20: التاريخ | E20: عدد الحصص | F20: التاريخ | G20: عدد الحصص | H20: التاريخ | I20: عدد الحصص | J20: التاريخ | L20: عدد الحصص | M20: التاريخ | N20: عدد الحصص | O20: جملة | Q20: بيان الاجازات
A22: الاحد | B22: =INDIRECT("كشاف!Bq"&6+ROW()-ROW($B$22)) -> ـــــ | C22: ـــــ | D22: =INDIRECT("كشاف!Bs"&6+ROW()-ROW($D$22)) -> 11/7 | E22: =IF(كشاف!$BT$6="اجازة","اجازة","") ->  | F22: =INDIRECT("كشاف!Bu"&6+ROW()-ROW($F$22)) -> 11/14 | G22: =IF(كشاف!$BV$6="اجازة","اجازة","") ->  | H22: =INDIRECT("كشاف!Bw"&6+ROW()-ROW($H$22)) -> 11/21 | I22: =IF(كشاف!$BX$6="اجازة","اجازة","") ->  | J22: =INDIRECT("كشاف!By"&6+ROW()-ROW($J$22)) -> 11/28 | L22: =IF(كشاف!$BX$6="اجازة","اجازة","") ->  | N22: =IF(كشاف!$BZ$6="اجازة","اجازة","") -> 
A23: الإثنين | B23: =INDIRECT("كشاف!Bq"&6+ROW()-ROW($B$22)) -> 11/1 | D23: =INDIRECT("كشاف!Bs"&6+ROW()-ROW($D$22)) -> 11/8 | E23: =IF(كشاف!$BT$7="اجازة","اجازة","") ->  | F23: =INDIRECT("كشاف!Bu"&6+ROW()-ROW($F$22)) -> 11/15 | G23: =IF(كشاف!BT7="اجازة","اجازة","") ->  | H23: =INDIRECT("كشاف!Bw"&6+ROW()-ROW($H$22)) -> 11/22 | I23: =IF(كشاف!BX7="اجازة","اجازة","") ->  | J23: =INDIRECT("كشاف!By"&6+ROW()-ROW($J$22)) -> 11/29 | L23: =IF(كشاف!$BX$7="اجازة","اجازة","") ->  | N23: =IF(كشاف!$BZ$7="اجازة","اجازة","") ->  | Q23: =IF(كشاف!$CB$7="اجازة","اجازة","") -> 
A24: الثلاثاء | B24: =INDIRECT("كشاف!Bq"&6+ROW()-ROW($B$22)) -> 11/2 | D24: =INDIRECT("كشاف!Bs"&6+ROW()-ROW($D$22)) -> 11/9 | E24: =IF(كشاف!$BT$8="اجازة","اجازة","") ->  | F24: =INDIRECT("كشاف!Bu"&6+ROW()-ROW($F$22)) -> 11/16 | G24: =IF(كشاف!BT8="اجازة","اجازة","") ->  | H24: =INDIRECT("كشاف!Bw"&6+ROW()-ROW($H$22)) -> 11/23 | I24: =IF(كشاف!BX8="اجازة","اجازة","") ->  | J24: =INDIRECT("كشاف!By"&6+ROW()-ROW($J$22)) -> 11/30 | L24: =IF(كشاف!$BX$8="اجازة","اجازة","") ->  | N24: =IF(كشاف!$BZ$8="اجازة","اجازة","") ->  | Q24: =IF(كشاف!$CB$8="اجازة","اجازة","") -> 
A25: الأربعاء | B25: 11/3 | D25: 11/10 | E25: =IF(كشاف!$BT$9="اجازة","اجازة","") ->  | F25: 11/17 | G25: =IF(كشاف!BT9="اجازة","اجازة","") ->  | H25: 11/24 | I25: =IF(كشاف!BX9="اجازة","اجازة","") ->  | J25: 0 | L25: =IF(كشاف!$BX$9="اجازة","اجازة","") ->  | N25: =IF(كشاف!$BZ$9="اجازة","اجازة","") ->  | Q25: =IF(كشاف!$CB$9="اجازة","اجازة","") -> 
A26: الخميس | B26: 11/4 | D26: 11/11 | E26: =IF(كشاف!$BT$10="اجازة","اجازة","") ->  | F26: 11/18 | G26: =IF(كشاف!BV10="اجازة","اجازة","") ->  | H26: 11/25 | I26: =IF(كشاف!BX10="اجازة","اجازة","") ->  | J26: 0 | L26: =IF(كشاف!$BX$10="اجازة","اجازة","") ->  | N26: =IF(كشاف!$BZ$10="اجازة","اجازة","") ->  | Q26: =IF(كشاف!$CB$10="اجازة","اجازة","") ->  | W26: =IF(كشاف!BR6="إجازة","ــــ","") -> 
A27: الجملة
A28: إقرار
A29: اقر انا | B29: =C3 -> سعيد عبدالباسط حسين محمد | H29: بـان جـملـة الحصص الـتي قـمـت بـتـدريسـها زيـادة عـن نصابي خـلال شـهر
A30: =$V$1 -> نوفمبر | B30: عام | C30: =$V$2 -> 2021 | E30: هي ( ) فقط حصة
M31: توقيع المدرس : | P31: .............................................
T32: يعتمد ,,,,
A33: مدير المدرسة | D33: الموجه | I33: رئيس القسم | M33: مدير المرحلة | R33: المديرالعام
A34: إدارة منشاة القناطر التعليمية | L34: طلب مكافاة الحصص الزائدة عن النصاب
A35: مدرسة المنصورية الابتدائية المشتركة | N35: نصاب المعلم | T35: =VLOOKUP(الجدول!$P$22,ورقة2!$A$2:$F$30,6,0) -> 24
A36: اسم المدرس / | C36: =VLOOKUP(الجدول!$P$22,ورقة2!$A$2:$F$30,2,0) -> محمد صبحى زكى حسين | L36: المادة / | N36: =VLOOKUP(الجدول!$P$22,ورقة2!$A$2:$F$30,4,0) -> فصل / عربي ودين
A37: الوظيفة على الكادر / | D37: =VLOOKUP(الجدول!$P$22,ورقة2!$A$2:$F$30,3,0) -> معلم | L37: التخصص / | N37: =VLOOKUP(الجدول!$P$22,ورقة2!$A$2:$F$30,5,0) -> فصل
A38: صورة من الجدول الاسبوعى للمدرس
A39: اليوم | B39: فترة صباحية | E39: =VLOOKUP(الجدول!$P$22,ورقة2!$A$2:$J$30,7,0) -> 36 | F39: حصة | K39: فترة مسائية | N39: ='T2'!$J$22 -> 36 | O39: حصة | T39: تحاط الحصص الزائدة عن النصاب بدائرة حمراء
B40: 1 | C40: 2 | D40: 3 | E40: 4 | F40: 5 | G40: 6 | H40: 7 | I40: 8 | K40: 1 | L40: 2 | M40: 3 | N40: 4 | O40: 5 | P40: 6 | Q40: 7 | R40: 8 | S40: 9
A41: الاحد | B41: =INDIRECT("الجدول!d"&27+ROW()-ROW($B$41)) -> 0 | C41: =INDIRECT("الجدول!e"&27+ROW()-ROW($C$41)) -> متعدد | D41: =INDIRECT("الجدول!f"&27+ROW()-ROW($D$41)) -> متعدد | E41: =INDIRECT("الجدول!g"&27+ROW()-ROW($E$41)) -> متعدد | F41: =INDIRECT("الجدول!h"&27+ROW()-ROW($F$41)) -> دين | G41: =INDIRECT("الجدول!i"&27+ROW()-ROW($F$41)) -> عربي | H41: =INDIRECT("الجدول!j"&27+ROW()-ROW($F$41)) -> عربي | I41: =INDIRECT("الجدول!k"&27+ROW()-ROW($F$41)) -> توكاتسو | K41: ='T2'!D27 -> عربي | L41: ='T2'!E27 -> عربي | M41: ='T2'!F27 -> عربي | N41: ='T2'!G27 -> عربي | O41: ='T2'!H27 -> عربي | P41: ='T2'!I27 -> دين | Q41: ='T2'!J27 -> 0 | R41: ='T2'!K27 -> العاب | S41: ='T2'!L27 -> ريادة
B42: =INDIRECT("الجدول!d"&27+ROW()-ROW($B$41)) -> 0 | C42: =INDIRECT("الجدول!e"&27+ROW()-ROW($C$41)) -> 1/2 | D42: =INDIRECT("الجدول!f"&27+ROW()-ROW($D$41)) -> 1/2 | E42: =INDIRECT("الجدول!g"&27+ROW()-ROW($E$41)) -> 1/2 | F42: =INDIRECT("الجدول!h"&27+ROW()-ROW($F$41)) -> 1/2 | G42: =INDIRECT("الجدول!i"&27+ROW()-ROW($F$41)) -> 1/2 | H42: =INDIRECT("الجدول!j"&27+ROW()-ROW($F$41)) -> 1/2 | I42: =INDIRECT("الجدول!k"&27+ROW()-ROW($F$41)) -> 1/2 | K42: ='T2'!D28 -> 2/5 | L42: ='T2'!E28 -> 1/5 | M42: ='T2'!F28 -> 2/5 | N42: ='T2'!G28 -> 1/5 | O42: ='T2'!H28 -> 2/5 | P42: ='T2'!I28 -> 1/5 | Q42: ='T2'!J28 -> 0 | R42: ='T2'!K28 -> 1/5 | S42: ='T2'!L28 -> 1/5
A43: الإثنين | B43: متعدد | C43: حساب | D43: حساب | E43: عربي | F43: عربي | G43: عربي | H43: عربي | I43: 0 | K43: ='T2'!D29 -> عربي | L43: ='T2'!E29 -> عربي | M43: ='T2'!F29 -> عربي | N43: ='T2'!G29 -> عربي | O43: ='T2'!H29 -> عربي | P43: ='T2'!I29 -> دين | Q43: ='T2'!J29 -> عربي | R43: ='T2'!K29 -> 0 | S43: ='T2'!L29 -> 0
B44: 1/2 | C44: 1/2 | D44: 1/2 | E44: 1/2 | F44: 1/2 | G44: 1/2 | H44: 1/2 | I44: 0 | K44: ='T2'!D30 -> 1/5 | L44: ='T2'!E30 -> 1/5 | M44: ='T2'!F30 -> 1/5 | N44: ='T2'!G30 -> 2/5 | O44: ='T2'!H30 -> 2/5 | P44: ='T2'!I30 -> 2/5 | Q44: ='T2'!J30 -> 2/5 | R44: ='T2'!K30 -> 0 | S44: ='T2'!L30 -> 0
A45: الثلاثاء | B45: متعدد | C45: 0 | D45: العاب | E45: حساب | F45: حساب | G45: متعدد | H45: عربي | I45: عربي | K45: ='T2'!D31 -> عربي | L45: ='T2'!E31 -> دين | M45: ='T2'!F31 -> عربي | N45: ='T2'!G31 -> عربي | O45: ='T2'!H31 -> موسيقى | P45: ='T2'!I31 -> 0 | Q45: ='T2'!J31 -> عربي | R45: ='T2'!K31 -> دين | S45: ='T2'!L31 -> 0
B46: 1/2 | C46: 0 | D46: 1/2 | E46: 1/2 | F46: 1/2 | G46: 1/2 | H46: 1/2 | I46: 1/2 | K46: ='T2'!D32 -> 1/5 | L46: ='T2'!E32 -> 1/5 | M46: ='T2'!F32 -> 1/5 | N46: ='T2'!G32 -> 2/5 | O46: ='T2'!H32 -> 3/4 | P46: ='T2'!I32 -> 0 | Q46: ='T2'!J32 -> 2/5 | R46: ='T2'!K32 -> 2/5 | S46: ='T2'!L32 -> 0
A47: الأربعاء | B47: متعدد | C47: حساب | D47: حساب | E47: العاب | F47: متعدد | G47: عربي | H47: عربي | I47: متعدد | K47: ='T2'!D33 -> توكاتسو | L47: ='T2'!E33 -> دين | M47: ='T2'!F33 -> عربي | N47: ='T2'!G33 -> عربي | O47: ='T2'!H33 -> 0 | P47: ='T2'!I33 -> عربي | Q47: ='T2'!J33 -> عربي | R47: ='T2'!K33 -> 0 | S47: ='T2'!L33 -> 0
B48: 1/2 | C48: 1/2 | D48: 1/2 | E48: 1/2 | F48: 1/2 | G48: 1/2 | H48: 1/2 | I48: 1/2 | K48: ='T2'!D34 -> 2/4 | L48: ='T2'!E34 -> 2/5 | M48: ='T2'!F34 -> 1/5 | N48: ='T2'!G34 -> 2/5 | O48: ='T2'!H34 -> 0 | P48: ='T2'!I34 -> 1/5 | Q48: ='T2'!J34 -> 1/5 | R48: ='T2'!K34 -> 0 | S48: ='T2'!L34 -> 0
A49: الخميس | B49: متعدد | C49: 0 | D49: عربي | E49: عربي | F49: متعدد | G49: دين | H49: حساب | I49: حساب | K49: ='T2'!D35 -> عربي | L49: ='T2'!E35 -> عربي | M49: ='T2'!F35 -> عربي | N49: ='T2'!G35 -> عربي | O49: ='T2'!H35 -> العاب | P49: ='T2'!I35 -> عربي | Q49: ='T2'!J35 -> دين | R49: ='T2'!K35 -> توكاتسو | S49: ='T2'!L35 -> 0
B50: 1/2 | C50: 0 | D50: 1/2 | E50: 1/2 | F50: 1/2 | G50: 1/2 | H50: 1/2 | I50: 1/2 | K50: ='T2'!D36 -> 2/5 | L50: ='T2'!E36 -> 1/5 | M50: ='T2'!F36 -> 2/5 | N50: ='T2'!G36 -> 2/5 | O50: ='T2'!H36 -> 1/5 | P50: ='T2'!I36 -> 1/5 | Q50: ='T2'!J36 -> 1/5 | R50: ='T2'!K36 -> 3/4 | S50: ='T2'!L36 -> 0
A51: بيان بالحصص التي درست خلال شهر | L51: =$V$1 -> نوفمبر | N51: عام | P51: =$V$2 -> 2021
A53: اليوم | B53: التاريخ | C53: عدد الحصص | D53: التاريخ | E53: عدد الحصص | F53: التاريخ | G53: عدد الحصص | H53: التاريخ | I53: عدد الحصص | J53: التاريخ | L53: عدد الحصص | M53: التاريخ | N53: عدد الحصص | O53: جملة | Q53: بيان الاجازات
A55: الاحد | B55: =INDIRECT("كشاف!Bq"&6+ROW()-ROW($B$55)) -> ـــــ | C55: ـــــ | D55: =INDIRECT("كشاف!Bs"&6+ROW()-ROW($D$55)) -> 11/7 | E55: =IF(كشاف!$BT$6="اجازة","اجازة","") ->  | F55: =INDIRECT("كشاف!Bu"&6+ROW()-ROW($F$55)) -> 11/14 | G55: =IF(كشاف!$BV$6="اجازة","اجازة","") ->  | H55: =INDIRECT("كشاف!Bw"&6+ROW()-ROW($H$55)) -> 11/21 | I55: =IF(كشاف!$BX$6="اجازة","اجازة","") ->  | J55: =INDIRECT("كشاف!By"&6+ROW()-ROW($J$55)) -> 11/28 | L55: =IF(كشاف!$BZ$6="اجازة","اجازة","") ->  | N55: =IF(كشاف!$BZ$6="اجازة","اجازة","") -> 
A56: الإثنين | B56: =INDIRECT("كشاف!Bq"&6+ROW()-ROW($B$55)) -> 11/1 | D56: =INDIRECT("كشاف!Bs"&6+ROW()-ROW($D$55)) -> 11/8 | E56: =IF(كشاف!$BT$7="اجازة","اجازة","") ->  | F56: =INDIRECT("كشاف!Bu"&6+ROW()-ROW($F$55)) -> 11/15 | G56: =IF(كشاف!BT7="اجازة","اجازة","") ->  | H56: =INDIRECT("كشاف!Bw"&6+ROW()-ROW($H$55)) -> 11/22 | I56: =IF(كشاف!BX7="اجازة","اجازة","") ->  | J56: =INDIRECT("كشاف!By"&6+ROW()-ROW($J$55)) -> 11/29 | L56: =IF(كشاف!$BZ$7="اجازة","اجازة","") ->  | N56: =IF(كشاف!$BZ$7="اجازة","اجازة","") ->  | Q56: =IF(كشاف!$CB$7="اجازة","اجازة","") -> 
A57: الثلاثاء | B57: =INDIRECT("كشاف!Bq"&6+ROW()-ROW($B$55)) -> 11/2 | D57: =INDIRECT("كشاف!Bs"&6+ROW()-ROW($D$55)) -> 11/9 | E57: =IF(كشاف!$BT$8="اجازة","اجازة","") ->  | F57: =INDIRECT("كشاف!Bu"&6+ROW()-ROW($F$55)) -> 11/16 | G57: =IF(كشاف!BT8="اجازة","اجازة","") ->  | H57: =INDIRECT("كشاف!Bw"&6+ROW()-ROW($H$55)) -> 11/23 | I57: =IF(كشاف!BX8="اجازة","اجازة","") ->  | J57: =INDIRECT("كشاف!By"&6+ROW()-ROW($J$55)) -> 11/30 | L57: =IF(كشاف!$BZ$8="اجازة","اجازة","") ->  | N57: =IF(كشاف!$BZ$8="اجازة","اجازة","") ->  | Q57: =IF(كشاف!$CB$8="اجازة","اجازة","") -> 
A58: الأربعاء | B58: 11/3 | D58: 11/10 | E58: =IF(كشاف!$BT$9="اجازة","اجازة","") ->  | F58: 11/17 | G58: =IF(كشاف!BT9="اجازة","اجازة","") ->  | H58: 11/24 | I58: =IF(كشاف!BX9="اجازة","اجازة","") ->  | J58: 0 | L58: =IF(كشاف!$BZ$9="اجازة","اجازة","") ->  | N58: =IF(كشاف!$BZ$9="اجازة","اجازة","") ->  | Q58: =IF(كشاف!$CB$9="اجازة","اجازة","") -> 
A59: الخميس | B59: 11/4 | D59: 11/11 | E59: =IF(كشاف!$BT$10="اجازة","اجازة","") ->  | F59: 11/18 | G59: =IF(كشاف!BV10="اجازة","اجازة","") ->  | H59: 11/25 | I59: =IF(كشاف!BX10="اجازة","اجازة","") ->  | J59: 0 | L59: =IF(كشاف!$BZ$10="اجازة","اجازة","") ->  | N59: =IF(كشاف!$BZ$10="اجازة","اجازة","") ->  | Q59: =IF(كشاف!$CB$10="اجازة","اجازة","") -> 
A60: الجملة
A61: إقرار
A62: اقر انا | B62: =C36 -> محمد صبحى زكى حسين | H62: بـان جـملـة الحصص الـتي قـمـت بـتـدريسـها زيـادة عـن نصابي خـلال شـهر
A63: =$V$1 -> نوفمبر | B63: عام | C63: =$V$2 -> 2021 | E63: هي ( ) فقط حصة
M64: توقيع المدرس : | P64: .............................................
T65: يعتمد ,,,,
A66: مدير المدرسة | D66: الموجه | I66: رئيس القسم | M66: مدير المرحلة | R66: المديرالعام
A67: إدارة منشاة القناطر التعليمية | L67: طلب مكافاة الحصص الزائدة عن النصاب
A68: مدرسة المنصورية الابتدائية المشتركة | N68: نصاب المعلم | T68: =VLOOKUP(الجدول!$P$44,ورقة2!$A$2:$F$30,6,0) -> 22
A69: اسم المدرس / | C69: =VLOOKUP(الجدول!$P$44,ورقة2!$A$2:$B$30,2,0) -> رضا ناجى احمد غانم | L69: المادة / | N69: =VLOOKUP(الجدول!$P$44,ورقة2!$A$2:$F$30,4,0) -> فصل /عربى ودين
A70: الوظيفة على الكادر / | D70: =VLOOKUP(الجدول!$P$44,ورقة2!$A$2:$F$30,3,0) -> معلم اول | L70: التخصص / | N70: =VLOOKUP(الجدول!$P$44,ورقة2!$A$2:$F$30,5,0) -> فصل
A71: صورة من الجدول الاسبوعى للمدرس
A72: اليوم | B72: فترة صباحية | E72: =VLOOKUP(الجدول!$P$1,ورقة2!$A$2:$J$30,7,0) -> 36 | F72: حصة | K72: فترة مسائية | N72: ='T2'!$J$39 -> 37 | O72: حصة | T72: تحاط الحصص الزائدة عن النصاب بدائرة حمراء
B73: 1 | C73: 2 | D73: 3 | E73: 4 | F73: 5 | G73: 6 | H73: 7 | I73: 8 | K73: 1 | L73: 2 | M73: 3 | N73: 4 | O73: 5 | P73: 6 | Q73: 7 | R73: 8 | S73: 9
A74: الاحد | B74: =INDIRECT("الجدول!d"&44+ROW()-ROW($B$74)) -> العاب | C74: =INDIRECT("الجدول!e"&44+ROW()-ROW($C$74)) -> 0 | D74: =INDIRECT("الجدول!f"&44+ROW()-ROW($D$74)) -> توكاتسو | E74: =INDIRECT("الجدول!g"&44+ROW()-ROW($E$74)) -> متعدد | F74: =INDIRECT("الجدول!h"&44+ROW()-ROW($F$74)) -> متعدد | G74: =INDIRECT("الجدول!i"&44+ROW()-ROW($G$74)) -> متعدد | H74: =INDIRECT("الجدول!j"&44+ROW()-ROW($H$74)) -> عربي | I74: =INDIRECT("الجدول!k"&44+ROW()-ROW($I$74)) -> عربي | K74: ='T2'!D44 -> عربي | L74: ='T2'!E44 -> العاب | M74: ='T2'!F44 -> عربي | N74: ='T2'!G44 -> عربي | O74: ='T2'!H44 -> دين | P74: ='T2'!I44 -> 0 | Q74: ='T2'!J44 -> عربي | R74: ='T2'!K44 -> دين | S74: ='T2'!L44 -> ريادة
B75: =INDIRECT("الجدول!d"&44+ROW()-ROW($B$74)) -> 6/3 | C75: =INDIRECT("الجدول!e"&44+ROW()-ROW($C$74)) -> 0 | D75: =INDIRECT("الجدول!f"&44+ROW()-ROW($D$74)) -> 6/3 | E75: =INDIRECT("الجدول!g"&44+ROW()-ROW($E$74)) -> 6/3 | F75: =INDIRECT("الجدول!h"&44+ROW()-ROW($F$74)) -> 6/3 | G75: =INDIRECT("الجدول!i"&44+ROW()-ROW($G$74)) -> 6/3 | H75: =INDIRECT("الجدول!j"&44+ROW()-ROW($H$74)) -> 6/3 | I75: =INDIRECT("الجدول!k"&44+ROW()-ROW($I$74)) -> 6/3 | K75: ='T2'!D45 -> 3/5 | L75: ='T2'!E45 -> 3/4 | M75: ='T2'!F45 -> 4/5 | N75: ='T2'!G45 -> 3/5 | O75: ='T2'!H45 -> 4/5 | P75: ='T2'!I45 -> 0 | Q75: ='T2'!J45 -> 4/5 | R75: ='T2'!K45 -> 3/5 | S75: ='T2'!L45 -> 3/5
A76: الإثنين | B76: حساب | C76: حساب | D76: متعدد | E76: 0 | F76: متعدد | G76: العاب | H76: عربي | I76: عربي | K76: ='T2'!D46 -> عربي | L76: ='T2'!E46 -> رسم | M76: ='T2'!F46 -> دين | N76: ='T2'!G46 -> عربي | O76: ='T2'!H46 -> عربي | P76: ='T2'!I46 -> عربي | Q76: ='T2'!J46 -> نشاط1 | R76: ='T2'!K46 -> 0 | S76: ='T2'!L46 -> 0
B77: 6/3 | C77: 6/3 | D77: 6/3 | E77: 0 | F77: 6/3 | G77: 6/3 | H77: 6/3 | I77: 6/3 | K77: ='T2'!D47 -> 3/5 | L77: ='T2'!E47 -> 2/5 | M77: ='T2'!F47 -> 3/5 | N77: ='T2'!G47 -> 4/5 | O77: ='T2'!H47 -> 4/5 | P77: ='T2'!I47 -> 3/5 | Q77: ='T2'!J47 -> 6/6 | R77: ='T2'!K47 -> 0 | S77: ='T2'!L47 -> 0
A78: الثلاثاء | B78: عربي | C78: عربي | D78: 0 | E78: حساب | F78: حساب | G78: متعدد | H78: دين | I78: متعدد | K78: ='T2'!D48 -> نشاط1 | L78: ='T2'!E48 -> عربي | M78: ='T2'!F48 -> عربي | N78: ='T2'!G48 -> عربي | O78: ='T2'!H48 -> عربي | P78: ='T2'!I48 -> العاب | Q78: ='T2'!J48 -> عربي | R78: ='T2'!K48 -> دين | S78: ='T2'!L48 -> 0
B79: 6/3 | C79: 6/3 | D79: 0 | E79: 6/3 | F79: 6/3 | G79: 6/3 | H79: 6/3 | I79: 6/3 | K79: ='T2'!D49 -> 6/6 | L79: ='T2'!E49 -> 3/5 | M79: ='T2'!F49 -> 4/5 | N79: ='T2'!G49 -> 3/5 | O79: ='T2'!H49 -> 4/5 | P79: ='T2'!I49 -> 3/4 | Q79: ='T2'!J49 -> 4/5 | R79: ='T2'!K49 -> 3/5 | S79: ='T2'!L49 -> 0
A80: الأربعاء | B80: متعدد | C80: دين | D80: متعدد | E80: حساب | F80: حساب | G80: متعدد | H80: عربي | I80: عربي | K80: ='T2'!D50 -> عربي | L80: ='T2'!E50 -> عربي | M80: ='T2'!F50 -> 0 | N80: ='T2'!G50 -> عربي | O80: ='T2'!H50 -> عربي | P80: ='T2'!I50 -> عربي | Q80: ='T2'!J50 -> عربي | R80: ='T2'!K50 -> دين | S80: ='T2'!L50 -> 0
B81: 6/3 | C81: 6/3 | D81: 6/3 | E81: 6/3 | F81: 6/3 | G81: 6/3 | H81: 6/3 | I81: 6/3 | K81: ='T2'!D51 -> 3/5 | L81: ='T2'!E51 -> 3/5 | M81: ='T2'!F51 -> 0 | N81: ='T2'!G51 -> 4/5 | O81: ='T2'!H51 -> 4/5 | P81: ='T2'!I51 -> 4/5 | Q81: ='T2'!J51 -> 3/5 | R81: ='T2'!K51 -> 4/5 | S81: ='T2'!L51 -> 0
A82: الخميس | B82: متعدد | C82: عربي | D82: عربي | E82: حساب | F82: حساب | G82: 0 | H82: عربي | I82: عربي | K82: ='T2'!D52 -> عربي | L82: ='T2'!E52 -> دين | M82: ='T2'!F52 -> عربي | N82: ='T2'!G52 -> 0 | O82: ='T2'!H52 -> عربي | P82: ='T2'!I52 -> عربي | Q82: ='T2'!J52 -> عربي | R82: ='T2'!K52 -> رسم | S82: ='T2'!L52 -> 0
B83: 6/3 | C83: 6/3 | D83: 6/3 | E83: 6/3 | F83: 6/3 | G83: 0 | H83: 6/3 | I83: 6/3 | K83: ='T2'!D53 -> 3/5 | L83: ='T2'!E53 -> 4/5 | M83: ='T2'!F53 -> 3/5 | N83: ='T2'!G53 -> 0 | O83: ='T2'!H53 -> 4/5 | P83: ='T2'!I53 -> 3/5 | Q83: ='T2'!J53 -> 4/5 | R83: ='T2'!K53 -> 2/5 | S83: ='T2'!L53 -> 0
A84: بيان بالحصص التي درست خلال شهر | L84: =$V$1 -> نوفمبر | N84: عام | P84: =$V$2 -> 2021
A86: اليوم | B86: التاريخ | C86: عدد الحصص | D86: التاريخ | E86: عدد الحصص | F86: التاريخ | G86: عدد الحصص | H86: التاريخ | I86: عدد الحصص | J86: التاريخ | L86: عدد الحصص | M86: التاريخ | N86: عدد الحصص | O86: جملة | Q86: بيان الاجازات
A88: الاحد | B88: =INDIRECT("كشاف!Bq"&6+ROW()-ROW($B$88)) -> ـــــ | C88: ـــــ | D88: =INDIRECT("كشاف!Bs"&6+ROW()-ROW($D$88)) -> 11/7 | E88: =IF(كشاف!$BT$6="اجازة","اجازة","") ->  | F88: =INDIRECT("كشاف!Bu"&6+ROW()-ROW($F$88)) -> 11/14 | G88: =IF(كشاف!$BV$6="اجازة","اجازة","") ->  | H88: =INDIRECT("كشاف!Bw"&6+ROW()-ROW($H$88)) -> 11/21 | I88: =IF(كشاف!$BX$6="اجازة","اجازة","") ->  | J88: =INDIRECT("كشاف!By"&6+ROW()-ROW($J$88)) -> 11/28 | L88: =IF(كشاف!$BZ$6="اجازة","اجازة","") ->  | N88: =IF(كشاف!$BZ$6="اجازة","اجازة","") -> 
A89: الإثنين | B89: =INDIRECT("كشاف!Bq"&6+ROW()-ROW($B$88)) -> 11/1 | D89: =INDIRECT("كشاف!Bs"&6+ROW()-ROW($D$88)) -> 11/8 | E89: =IF(كشاف!$BT$7="اجازة","اجازة","") ->  | F89: =INDIRECT("كشاف!Bu"&6+ROW()-ROW($F$88)) -> 11/15 | G89: =IF(كشاف!BT40="اجازة","اجازة","") ->  | H89: =INDIRECT("كشاف!Bw"&6+ROW()-ROW($H$88)) -> 11/22 | I89: =IF(كشاف!BX40="اجازة","اجازة","") ->  | J89: =INDIRECT("كشاف!By"&6+ROW()-ROW($J$88)) -> 11/29 | L89: =IF(كشاف!$BZ$7="اجازة","اجازة","") ->  | N89: =IF(كشاف!$BZ$7="اجازة","اجازة","") ->  | Q89: =IF(كشاف!$CB$7="اجازة","اجازة","") -> 
A90: الثلاثاء | B90: =INDIRECT("كشاف!Bq"&6+ROW()-ROW($B$88)) -> 11/2 | D90: =INDIRECT("كشاف!Bs"&6+ROW()-ROW($D$88)) -> 11/9 | E90: =IF(كشاف!$BT$8="اجازة","اجازة","") ->  | F90: =INDIRECT("كشاف!Bu"&6+ROW()-ROW($F$88)) -> 11/16 | G90: =IF(كشاف!BT41="اجازة","اجازة","") ->  | H90: =INDIRECT("كشاف!Bw"&6+ROW()-ROW($H$88)) -> 11/23 | I90: =IF(كشاف!BX41="اجازة","اجازة","") ->  | J90: =INDIRECT("كشاف!By"&6+ROW()-ROW($J$88)) -> 11/30 | L90: =IF(كشاف!$BZ$8="اجازة","اجازة","") ->  | N90: =IF(كشاف!$BZ$8="اجازة","اجازة","") ->  | Q90: =IF(كشاف!$CB$8="اجازة","اجازة","") -> 
A91: الأربعاء | B91: 11/3 | D91: 11/10 | E91: =IF(كشاف!$BT$9="اجازة","اجازة","") ->  | F91: 11/17 | G91: =IF(كشاف!BT42="اجازة","اجازة","") ->  | H91: 11/24 | I91: =IF(كشاف!BX42="اجازة","اجازة","") ->  | J91: 0 | L91: =IF(كشاف!$BZ$9="اجازة","اجازة","") ->  | N91: =IF(كشاف!$BZ$9="اجازة","اجازة","") ->  | Q91: =IF(كشاف!$CB$9="اجازة","اجازة","") -> 
A92: الخميس | B92: 11/4 | D92: 11/11 | E92: =IF(كشاف!$BT$10="اجازة","اجازة","") ->  | F92: 11/18 | G92: =IF(كشاف!BV43="اجازة","اجازة","") ->  | H92: 11/25 | I92: =IF(كشاف!BX43="اجازة","اجازة","") ->  | J92: 0 | L92: =IF(كشاف!$BZ$10="اجازة","اجازة","") ->  | N92: =IF(كشاف!$BZ$10="اجازة","اجازة","") ->  | Q92: =IF(كشاف!$CB$10="اجازة","اجازة","") -> 
A93: الجملة
A94: إقرار
A95: اقر انا | B95: =C69 -> رضا ناجى احمد غانم | H95: بـان جـملـة الحصص الـتي قـمـت بـتـدريسـها زيـادة عـن نصابي خـلال شـهر
A96: =$V$1 -> نوفمبر | B96: عام | C96: =$V$2 -> 2021 | E96: هي ( ) فقط حصة
M97: توقيع المدرس : | P97: .............................................
T98: يعتمد ,,,,
A99: مدير المدرسة | D99: الموجه | I99: رئيس القسم | M99: مدير المرحلة | R99: المديرالعام

Sheet ورقة1
A1: محافظة الجيزة
A2: إدارة منشاة القناطر التعليمية
A3: مدرسة المنصورية الابتدائية المشتركة
A4: كشف تفريغ الحصص الزائدة عن النصاب عن شهر نوفمبر 2021
A5: م | B5: الاســـــــــــــــــــــــــم | C5: الوظيفة | D5: حصص زائدة فترة صباحية | I5: حصص زائدة فترة مسائية | N5: اجمالى الحصص الزائدة | O5: الصف | P5: عدد الفصول | Q5: عدد الحصص | R5: الجملة
D6: النصاب | E6: المنفذ | F6: الزيادة في أسبوع | G6: حصص بدون اجر | H6: جملة الحصص الزائدة | I6: النصاب | J6: المنفذ | K6: الزيادة في أسبوع | L6: حصص بدون اجر | M6: جملة الحصص الزائدة | W6: 159
A7: 1 | B7: محمد ناجى محمد عويضة | C7: خبير | D7: 18 | E7: 36 | F7: =30-D7 -> 12 | G7: 6 | H7: 50 | I7: =IF(E7<D7,D7-E7,0) -> 0 | J7: 37 | K7: 30 | L7: =J7-K7 -> 7 | M7: 126 | N7: =M7+H7 -> 176 | O7: الأول | P7: 5 | Q7: 40 | R7: =P7*Q7 -> 200 | W7: 33
A8: 2 | B8: عطيه عبدالغفار احمد محمد | C8: معلم اول أ | D8: 20 | E8: 36 | F8: =30-D8 -> 10 | G8: 6 | H8: 42 | I8: =IF(E8<D8,D8-E8,0) -> 0 | J8: 37 | K8: 30 | L8: =J8-K8 -> 7 | M8: 126 | N8: =M8+H8 -> 168 | O8: الثانى | P8: 6 | Q8: 40 | R8: =P8*Q8 -> 240 | W8: =W6-W7 -> 126
A9: 3 | B9: صابر صالح عبدالحميد سالم | C9: معلم اول | D9: 22 | E9: 36 | F9: 8 | G9: 6 | H9: 33 | I9: 0 | J9: 35 | K9: 30 | L9: =J9-K9 -> 5 | M9: 127 | N9: 160 | O9: الثالث | P9: 7 | Q9: 40 | R9: =P9*Q9 -> 280
A10: 4 | B10: نورا كامل محمد الاطروش | C10: معلم اول | D10: 22 | E10: 36 | F10: 8 | G10: 6 | H10: 35 | J10: 34 | K10: 30 | L10: 4 | M10: 126 | N10: 161 | O10: الرابع | P10: 6 | Q10: 40 | R10: 240
A11: 5 | B11: مصطفى جمعه حسن حسن | C11: معلم اول | D11: 22 | E11: 36 | F11: 8 | G11: 6 | H11: 39 | I11: 0 | J11: 34 | K11: 30 | L11: 4 | M11: 122 | N11: 161 | O11: الخامس | P11: 6 | Q11: 41 | R11: 246
A12: 6 | B12: زكيه سيد محمد فرج | C12: معلم اول | D12: 22 | E12: 36 | F12: 8 | G12: 6 | I12: 0 | J12: 36 | K12: 30 | L12: 6 | N12: 0 | O12: السادس | P12: 6 | Q12: 41 | R12: 246
A13: 7 | B13: احمد السيد سليمان السيد | C13: معلم اول | D13: 22 | E13: 36 | F13: 8 | G13: 6 | I13: 0 | J13: 36 | K13: 30 | L13: 6 | N13: 0 | O13: دين مسيحى | P13: 0 | Q13: 0 | R13: 0
A14: 8 | B14: منال جمعه عبدالسلام بدوى | C14: معلم اول | D14: 22 | E14: 36 | F14: 8 | G14: 6 | H14: 33 | I14: 0 | J14: 37 | K14: 30 | L14: 7 | M14: 126 | N14: 159 | O14: مهارات مهنية مكتبة | P14: 6 | Q14: 2 | R14: 12
A15: 9 | B15: ابوبكر عزت متولى جالى | C15: معلم اول | D15: 22 | E15: 36 | F15: 8 | G15: 6 | I15: 0 | J15: 36 | K15: 30 | L15: 6 | N15: 0 | O15: الجملة | P15: =SUM(P7:P14) -> 42 | Q15: ــــ | R15: =SUM(R7:R14) -> 1464
A16: 10 | B16: مصطفى عبدالحميد محمد سلطان | C16: معلم اول | D16: 22 | E16: 36 | F16: 8 | G16: 6 | I16: 0 | J16: 35 | K16: 30 | L16: 5 | N16: 0 | O16: اقر انا / | P16: حسن على عبدالله
A17: 11 | B17: محمود عبدالهادى محمود جبر | C17: معلم اول | D17: 22 | E17: 36 | F17: 8 | G17: 6 | I17: 0 | J17: 35 | K17: 30 | L17: 5 | N17: 0 | O17: مدير المدرسة بان الحصص
A18: 12 | B18: فاطمه كامل عامر عبدالهادى | C18: معلم اول | D18: 22 | E18: 36 | F18: 8 | G18: 6 | H18: 39 | I18: 0 | J18: 34 | K18: 30 | L18: 4 | M18: 122 | N18: 161 | O18: قد وزعت على مستوى المدرسة
A19: 13 | B19: سعيد عبدالباسط حسين محمد | C19: معلم اول | D19: 22 | E19: 36 | F19: 8 | G19: 6 | I19: 0 | J19: 33 | K19: 30 | L19: 3 | N19: 0 | O19: وليس على مستوى الإدارة
A20: 14 | B20: محمد صبحي زكى حسين | C20: معلم | D20: 24 | E20: 36 | F20: 6 | G20: 6 | I20: 0 | J20: 36 | K20: 30 | L20: 6 | N20: 0 | O20: المقر بما فيه
A21: 15 | B21: ايمان عبدالناصر عبداللطيف | C21: معلم | D21: 24 | E21: 36 | F21: 6 | G21: 6 | I21: 0 | J21: 36 | K21: 30 | L21: 6 | N21: 0 | O21: الاسم / | P21: =$P$16 -> حسن على عبدالله
A22: 16 | B22: رضا ناجى احمد غانم | C22: معلم اول | D22: 22 | E22: 36 | F22: 8 | G22: 6 | I22: 0 | J22: 37 | K22: 30 | L22: 7 | N22: 0 | O22: التوقيع /
A23: 17 | B23: اسماء جمال ابوزيد عبدالحميد | C23: معلم | D23: 24 | E23: 36 | F23: 6 | G23: 6 | I23: 0 | J23: 36 | K23: 30 | L23: 6 | N23: 0
A24: 18 | B24: احمد إبراهيم على | C24: معلم اول | D24: 22 | E24: 36 | F24: 8 | G24: 6 | I24: 0 | J24: 36 | K24: 30 | L24: 6 | N24: 0
A25: 19 | B25: اشجان احمد عبدالفتاح | C25: معلم اول | D25: 22 | E25: 36 | F25: 8 | G25: 6 | I25: 0 | J25: 36 | K25: 30 | L25: 6 | N25: 0
A26: 20 | B26: ماجده عبدالله سعداوى | C26: خبير | D26: 18 | E26: 36 | F26: 12 | G26: 6 | I26: 0 | J26: 0 | L26: 0 | N26: 0
A27: 21 | B27: س | C27: تطوع | I27: 30 | J27: 30 | N27: 0 | O27: تطوع فترة واحدة
A28: 22 | B28: كوثر سعيد مصطفى | C28: معلم | F28: =$E28-$D28 -> 0 | I28: 14 | J28: 14 | N28: 0 | O28: منتدبة يومان من مدرسة الشهيد إبراهيم ناجى
A29: 23 | B29: صلاح شعبان محمد إبراهيم | C29: خبير | F29: 0 | I29: 12 | J29: 12 | O29: منتدب للقطاع 3 أيام ( مهارات مجال ) | T29: 0
A30: 24 | B30: صبرى سعيد عبدالفتاح عامر | C30: معلم اول | F30: 0 | I30: 12 | J30: 12 | M30: 0 | N30: 0 | O30: مكتبة ( مهارات مهنية ) | T30: 0
L31: 0
A33: الجملة | D33: =SUM(D7:D32) -> 436 | E33: =SUM(E7:E32) -> 720 | F33: =SUM(F7:F32) -> 164 | G33: =SUM(G7:G32) -> 120 | H33: 271 | I33: 68 | J33: 744 | K33: 570 | L33: 106 | M33: 875 | N33: 1146
E34: فقط | F34: =NumberToText(N33,"حصة لا غير"," ") -> ألف ومائة وستة وأربعون حصة لا غير | M34: حصة
B35: مدير المدرسة | C35: الموجه | E35: رئيس القسم | H35: مدير المرحلة | O35: يعتمد,,,,,
O36: مدير عام الإدارة

Sheet ورقة2
A1: م | B1: الاسم | C1: الوظيفة | D1: المادة | E1: التخصص | F1: النصاب | G1: المنفذ صباحى | H1: منفذ مسائي | I1: زيادة صباحى | J1: زيادة مسائى
A2: 1 | B2: محمد ناجي محمد عويضة | C2: خبير | D2: فصل / رياضيات | E2: فصل | F2: 18 | G2: 36 | H2: 37 | I2: =30-F2 -> 12 | J2: 30
A3: 2 | B3: عطيه عبدالغفار احمد محمد | C3: معلم اول أ | D3: فصل / رياضيات | E3: فصل | F3: 20 | G3: 36 | H3: 37 | I3: =30-F3 -> 10 | J3: 30
A4: 3 | B4: صابر صالح عبدالحميدسالم | C4: معلم اول | D4: فصل / عربي ودين | E4: عربي ودين | F4: 22 | G4: 36 | H4: 35 | I4: 8 | J4: 30
A5: 4 | B5: نورا كامل محمد الاطروش | C5: معلم اول | D5: فصل / عربي ودين | E5: فصل | F5: 22 | G5: 36 | H5: 34 | I5: 8 | J5: 30
A6: 5 | B6: فاطمه كامل عامر عبدالهادى | C6: معلم اول | D6: فصل / عربي ودين | E6: عربي ودين | F6: 22 | G6: 36 | H6: 34 | I6: 8 | J6: 30
A7: 6 | B7: زكية سيد محمد فرج | C7: معلم اول | D7: فصل / عربي ودين | E7: عربي ودين | F7: 22 | G7: 36 | H7: 36 | I7: 8 | J7: 30
A8: 7 | B8: منال جمعه عبدالسلام بدوى | C8: معلم اول | D8: فصل / رياضيات | E8: فصل | F8: 22 | G8: 36 | H8: 37 | I8: 8 | J8: 30
A9: 8 | B9: ابوبكر عزت متولى جالى | C9: معلم اول | D9: فصل / دراسات | E9: فصل | F9: 22 | G9: 36 | H9: 36 | I9: 8 | J9: 30
A10: 9 | B10: مصطفى عبدالحميد محمد سلطان | C10: معلم اول | D10: فصل /عربى ودين | E10: فصل | F10: 22 | G10: 36 | H10: 35 | I10: 8 | J10: 30
A11: 10 | B11: سعيد عبدالباسط حسين محمد | C11: معلم اول | D11: فصل / رياضيات | E11: فصل | F11: 22 | G11: 36 | H11: 33 | I11: 8 | J11: 30
A12: 11 | B12: محمد صبحى زكى حسين | C12: معلم | D12: فصل / عربي ودين | E12: فصل | F12: 24 | G12: 36 | H12: 36 | I12: 6 | J12: 30
A13: 12 | B13: رضا ناجى احمد غانم | C13: معلم اول | D13: فصل /عربى ودين | E13: فصل | F13: 22 | G13: 36 | H13: 37 | I13: 8 | J13: 30
A14: 13 | B14: احمد السيد سليمان السيد | C14: معلم اول | D14: فصل / علوم | E14: فصل | F14: 22 | G14: 36 | H14: 36 | I14: 8 | J14: 30
A15: 14 | B15: ايمان عبدالناصر عبداللطيف | C15: معلم | D15: E | E15: فصل | F15: 24 | G15: 36 | H15: 36 | I15: 6 | J15: 30
A16: 15 | B16: مصطفى جمعه حسن حسن | C16: معلم اول | D16: فصل /عربى ودين | E16: E | F16: 22 | G16: 36 | H16: 34 | I16: 8 | J16: 30
A17: 16 | B17: محمود عبدالهادى محمود جبر | C17: معلم اول | D17: فصل / رياضيات | E17: فصل | F17: 22 | G17: 36 | H17: 35 | I17: 8 | J17: 30
A18: 17 | B18: اسماء جمال ابوزيد عبدالحميد | C18: معلم | D18: فصل /علوم | E18: علوم | F18: 24 | G18: 36 | H18: 36 | I18: 6 | J18: 30
A19: 18 | B19: احمد إبراهيم على احمد | C19: معلم اول | D19: فصل / دراسات | E19: دراسات | F19: 22 | G19: 36 | H19: 36 | I19: 8 | J19: 30
A20: 19 | B20: وفاء محمد عبدالصمد كشك | C20: معلم | D20: فصل / عربي ودين | E20: عربي ودين | F20: 24 | G20: 36 | H20: 36 | I20: 6 | J20: 30
A21: 20 | B21: ماجده عبدالله سعداوى | C21: خبير | D21: فصل | E21: عربي ودين | F21: 18 | G21: 36 | H21: 0 | I21: 12
A22: 21 | B22: س | C22: تطوع | D22: E | E22: E | F22: 24 | H22: 30
A23: 22 | B23: كوثر سعيد مصطفى | D23: تكنولوجيا | E23: تكنولوجيا | F23: 12 | H23: 14
A24: 23 | B24: صبرى سعيد عبدالفتاح | C24: مكتبة | D24: مكتبة | E24: مكتبة | F24: 12 | H24: 12
A25: 24 | B25: صلاح شعبان محمد | C25: مجال | D25: مجال | E25: مجال | F25: 12 | H25: 12
A26: 25
A27: 26
A28: 27 | G28: =SUM(G2:G27) -> 720 | H28: =SUM(H2:H27) -> 744
